Workbook

Sheet Welcome
AA1: 19 | AB1: =INDEX(AB$4:AB$45,MATCH(MyVoteNo,$AA$4:$AA$45,0)) -> Social Development | AC1: =INDEX(AC$4:AC$45,MATCH(MyVoteNo,$AA$4:$AA$45,0)) -> Pebetse Maleka | AE1: =INDEX(AE$4:AE$45,MATCH(MyVoteNo,$AA$4:$AA$45,0)) -> Pebetse.Maleka@treasury.gov.za | AF1: =INDEX(AF$4:AF$45,MATCH(MyVoteNo,$AA$4:$AA$45,0)) -> Yusuf Mayet | AH1: =INDEX(AH$4:AH$45,MATCH(MyVoteNo,$AA$4:$AA$45,0)) -> Yusuf.Mayet@treasury.gov.za
E2: MTEC Submission Workbook - 2021/22 | AI2: Dept Ceilings | AL2: CoE Ceilings | AS2: Departmental | AT2: =SUM(AT4:AT45) -> 1724950365 | AU2: 1779048023 | AV2: 1807879862 | AY2: Compensation | AZ2: =SUM(AZ4:AZ45) -> 174066007 | BA2: 173531816 | BB2: 170160998
Z3: Dept Index No. | AA3: Vote No. | AB3: Department | AC3: Contact Person | AD3: Tel | AE3: email | AF3: Contact Person | AG3: Tel | AH3: email | AI3: 2021/22 | AJ3: 2022/23 | AK3: 2023/24 | AL3: 2021/22 | AM3: 2022/23 | AN3: 2023/24 | AS3: Department | AT3: 2021/22 Ceiling | AU3: 2022/23 Ceiling | AV3: 2023/24 Ceiling | AY3: Department | AZ3: 2021/22 Ceiling | BA3: 2022/23 Ceiling | BB3: 2023/24 Ceiling | BF3: Month | BG3: MonthNo. | BH3: Month Selection
Z4: 1 | AA4: 29 | AB4: Agriculture, Land Reform and Rural Development | AC4: Bothwell Deka | AD4: (012) 395 6784 | AE4: Bothwell.Deka@treasury.gov.za | AF4: Humbelani Ramuedzisi | AG4: (012) 315 5585 | AH4: Humbelani.Ramuedzisi@treasury.gov.za | AI4: =IFERROR(INDEX((AT$4:AT$45),MATCH($AB4,$AS$4:$AS$45,0)),0) -> 16488238 | AJ4: =IFERROR(INDEX((AU$4:AU$45),MATCH($AB4,$AS$4:$AS$45,0)),0) -> 16398897 | AK4: =IFERROR(INDEX((AV$4:AV$45),MATCH($AB4,$AS$4:$AS$45,0)),0) -> 16403341 | AL4: =IFERROR(INDEX((AZ$4:AZ$45),MATCH($AB4,$AY$4:$AY$45,0)),0) -> 4125542 | AM4: =IFERROR(INDEX((BA$4:BA$45),MATCH($AB4,$AY$4:$AY$45,0)),0) -> 4100208 | AN4: =IFERROR(INDEX((BB$4:BB$45),MATCH($AB4,$AY$4:$AY$45,0)),0) -> 4020368 | AS4: Agriculture, Land Reform and Rural Development | AT4: 16488238 | AU4: 16398897 | AV4: 16403341 | AY4: Agriculture, Land Reform and Rural Development | AZ4: 4125542 | BA4: 4100208 | BB4: 4020368 | BF4: April | BG4: 1 | BH4: =+INDEX(($BG$4:$BG$15),MATCH(Welcome!$B$7,Welcome!BF4:BF15,0)) -> 
Z5: 2 | AA5: 16 | AB5: Basic Education | AC5: Spencer Janari | AD5: (012) 315 5436 | AE5: Spencer.Janari@treasury.gov.za | AF5: Pindi Masiso | AG5: (012) 315 5722 | AH5: Pindi.Masiso@treasury.gov.za | AI5: 25725854 | AJ5: 26090658 | AK5: 26097727 | AL5: 542698 | AM5: 541386 | AN5: 530853 | AS5: Basic Education | AT5: 25725854 | AU5: 26090658 | AV5: 26097727 | AY5: Basic Education | AZ5: 542698 | BA5: 541386 | BB5: 530853 | BF5: May | BG5: 2
Z6: 3 | AA6: 42 | AB6: Centre for Public Service Innovation | AC6: George Tembo | AD6: (012) 315 5514 | AE6: George.Tembo@treasury.gov.za | AF6: Uvadhya Singh | AG6: (012) 315 9030 | AH6: Uvadhya.Singh@treasury.gov.za | AI6: 0 | AJ6: 0 | AK6: 0 | AL6: 0 | AM6: 0 | AN6: 0 | AS6: Civilian Secretariat for the Police Service | AT6: 148497 | AU6: 148486 | AV6: 148526 | AY6: Civilian Secretariat for the Police Service | AZ6: 104161 | BA6: 103829 | BB6: 101809 | BF6: June | BG6: 3
B7: ="VOTE " &$AA$1&": " -> VOTE 19: | C7: =MyDeptName -> Social Development | Z7: 4 | AA7: 21 | AB7: Civilian Secretariat for the Police Service | AC7: Nompumelelo Radebe | AD7: (012) 315 5957 | AE7: Nompumelelo.Radebe@treasury.gov.za | AF7: Velisubuhle Buti | AG7: (012) 395 6709 | AH7: Velisubuhle.Buti@treasury.gov.za | AI7: 148497 | AJ7: 148486 | AK7: 148526 | AL7: 104161 | AM7: 103829 | AN7: 101809 | AS7: Communications and Digital Technologies | AT7: 3594529 | AU7: 2318493 | AV7: 2319121 | AY7: Communications and Digital Technologies | AZ7: 323579 | BA7: 322564 | BB7: 316307 | BF7: July | BG7: 4
Z8: 5 | AA8: 30 | AB8: Communications and Digital Technologies | AC8: Rezah Atcha | AD8: (012) 315 5287 | AE8: Rezah.Atcha@treasury.gov.za | AF8: Keitumetse Motshegwe | AG8: (012) 395 6750 | AH8: keitumetse.motshegwe@treasury.gov.za | AI8: 3594529 | AJ8: 2318493 | AK8: 2319121 | AL8: 323579 | AM8: 322564 | AN8: 316307 | AS8: Cooperative Governance | AT8: 98283946 | AU8: 102074704 | AV8: 102102361 | AY8: Cooperative Governance | AZ8: 367021 | BA8: 365953 | BB8: 358848 | BF8: August | BG8: 5
Z9: 6 | AA9: 3 | AB9: Cooperative Governance | AC9: Misaveni Ngobeni | AD9: (012) 315 5305 | AE9: Misaveni.Ngobeni@treasury.gov.za | AF9: Millicent Mulaudzi | AG9: (012) 395 6576 | AH9: Millicent.Mulaudzi@treasury.gov.za | AI9: 98283946 | AJ9: 102074704 | AK9: 102102361 | AL9: 367021 | AM9: 365953 | AN9: 358848 | AS9: Correctional Services | AT9: 25540903 | AU9: 25552292 | AV9: 25559215 | AY9: Correctional Services | AZ9: 17487333 | BA9: 17412677 | BB9: 17075121 | BF9: September | BG9: 6
B10: Enquiries | F10: Department Contact Details | I10: PLEASE CLICK THE BUTTON BELOW TO SUBMIT AN INPUT… (Note: Input can not be submitted if ceilings on the 'Data' sheet are exceeded.) | Z10: 7 | AA10: 22 | AB10: Correctional Services | AC10: Elvis Ramafamba | AD10: (012) 315 5204 | AE10: Elvis.Ramafamba@treasury.gov.za | AF10: Keabetswe Matlwa | AG10: (012) 395 6678 | AH10: Keabetswe.Matlwa@treasury.gov.za | AI10: 25540903 | AJ10: 25552292 | AK10: 25559215 | AL10: 17487333 | AM10: 17412677 | AN10: 17075121 | AS10: Defence | AT10: 45424249 | AU10: 45502702 | AV10: 45515031 | AY10: Defence | AZ10: 28920012 | BA10: 28893457 | BB10: 28331302 | BF10: October | BG10: 7
B11: =AC1 -> Pebetse Maleka | D11: =AE1 -> Pebetse.Maleka@treasury.gov.za | F11: Name: | Z11: 8 | AA11: 23 | AB11: Defence | AC11: Mashudu Bidzha | AD11: (012) 315 5344 | AE11: Mashudu.Bidzha@treasury.gov.za | AF11: Lesiba Ledwaba | AG11: (012) 315 6660 | AH11: Lesiba.Ledwaba@treasury.gov.za | AI11: 45424249 | AJ11: 45502702 | AK11: 45515031 | AL11: 28920012 | AM11: 28893457 | AN11: 28331302 | AS11: Employment and Labour | AT11: 3449994 | AU11: 3438896 | AV11: 3439828 | AY11: Employment and Labour | AZ11: 1391536 | BA11: 1382634 | BB11: 1355733 | BF11: November | BG11: 8
B12: =AF1 -> Yusuf Mayet | D12: =AH1 -> Yusuf.Mayet@treasury.gov.za | F12: Email: | Z12: 9 | AA12: 31 | AB12: Employment and Labour | AC12: Judy Naidoo | AD12: (012) 315 5269 | AE12: Judy.Naidoo@treasury.gov.za | AI12: 3449994 | AJ12: 3438896 | AK12: 3439828 | AL12: 1391536 | AM12: 1382634 | AN12: 1355733 | AS12: Environment, Forestry and Fisheries | AT12: 8466845 | AU12: 8465616 | AV12: 8467910 | AY12: Environment, Forestry and Fisheries | AZ12: 1913715 | BA12: 1908535 | BB12: 1871449 | BF12: December | BG12: 9
F13: Telephone number: | Z13: 10 | AA13: 32 | AB13: Environment, Forestry and Fisheries | AC13: Gcobisa Magazi | AD13: (012) 315 5320 | AE13: Gcobisa.Magazi@treasury.gov.za | AF13: Ashley Ramasimu | AG13: (012) 315 5166 | AH13: Ashley.Ramasimu@treasury.gov.za | AI13: 8466845 | AJ13: 8465616 | AK13: 8467910 | AL13: 1913715 | AM13: 1908535 | AN13: 1871449 | AS13: Government Communication and Information System | AT13: 684970 | AU13: 684271 | AV13: 684457 | AY13: Government Communication and Information System | AZ13: 274381 | BA13: 273959 | BB13: 268609 | BF13: January | BG13: 10
F14: Mobile (optional): | Z14: 11 | AA14: 4 | AB14: Government Communication and Information System | AC14: Mokgatla Tema | AD14: (012) 315 5948 | AE14: Mokgatla.Tema@treasury.gov.za | AF14: Viwe Sobudula | AG14: (0)12 315 5015 | AH14: Viwe.Sobudula@treasury.gov.za | AI14: 684970 | AJ14: 684271 | AK14: 684457 | AL14: 274381 | AM14: 273959 | AN14: 268609 | AS14: Health | AT14: 56958002 | AU14: 57803100 | AV14: 57818761 | AY14: Health | AZ14: 831596 | BA14: 825829 | BB14: 810446 | BF14: February | BG14: 11
Z15: 12 | AA15: 18 | AB15: Health | AC15: Refiloe Thokoa | AD15: (012) 395 6559 | AE15: Refiloe.thokoa@treasury.gov.za | AF15: Jonatan Daven | AG15: (012) 315 6711 | AH15: Jonatan.Daven@treasury.gov.za | AI15: 56958002 | AJ15: 57803100 | AK15: 57818761 | AL15: 831596 | AM15: 825829 | AN15: 810446 | AS15: Higher Education and Training | AT15: 113801127 | AU15: 115288613 | AV15: 115319850 | AY15: Higher Education and Training | AZ15: 9559638 | BA15: 9527409 | BB15: 9342066 | BF15: March | BG15: 12
Z16: 13 | AA16: 17 | AB16: Higher Education and Training | AC16: Letsepa Pakkies | AD16: (012) 315 6656 | AE16: Letsepa.Pakkies@treasury.gov.za | AF16: Barileng Sape | AG16: (012) 406 9069 | AH16: barileng.sape@treasury.gov.za | AI16: 113801127 | AJ16: 115288613 | AK16: 115319850 | AL16: 9559638 | AM16: 9527409 | AN16: 9342066 | AS16: Home Affairs | AT16: 8700029 | AU16: 8707870 | AV16: 8710229 | AY16: Home Affairs | AZ16: 3606281 | BA16: 3553472 | BB16: 3487482
Z17: 14 | AA17: 5 | AB17: Home Affairs | AC17: Timothy Murwa | AD17: (012) 315 5002 | AE17: Timothy.Murwa@treasury.gov.za | AF17: Isaac Mabena | AG17: (012) 315 5582 | AH17: Isaac.Mabena@treasury.gov.za | AI17: 8700029 | AJ17: 8707870 | AK17: 8710229 | AL17: 3606281 | AM17: 3553472 | AN17: 3487482 | AS17: Human Settlements | AT17: 29918137 | AU17: 29918485 | AV17: 29926591 | AY17: Human Settlements | AZ17: 402702 | BA17: 401725 | BB17: 393910
Z18: 15 | AA18: 33 | AB18: Human Settlements | AC18: Ulrike Britton | AD18: (012) 315 5578 | AE18: Ulrike.Britton@treasury.gov.za | AF18: Lindiwe Ngcongwane | AG18: (012) 315 5357 | AH18: Lindiwe.Ngcongwane@treasury.gov.za | AI18: 29918137 | AJ18: 29918485 | AK18: 29926591 | AL18: 402702 | AM18: 401725 | AN18: 393910 | AS18: Independent Police Investigative Directorate | AT18: 337647 | AU18: 337814 | AV18: 337906 | AY18: Independent Police Investigative Directorate | AZ18: 225355 | BA18: 224789 | BB18: 220417
Z19: 16 | AA19: 24 | AB19: Independent Police Investigative Directorate | AC19: Nompumelelo Radebe | AD19: (012) 315 5957 | AE19: Nompumelelo.Radebe@treasury.gov.za | AF19: Velisubuhle Buti | AG19: (012) 395 6709 | AH19: Velisubuhle.Buti@treasury.gov.za | AI19: 337647 | AJ19: 337814 | AK19: 337906 | AL19: 225355 | AM19: 224789 | AN19: 220417 | AS19: International Relations and Cooperation | AT19: 6402455 | AU19: 6424213 | AV19: 6425954 | AY19: International Relations and Cooperation | AZ19: 2848739 | BA19: 2842004 | BB19: 2786701
Z20: 17 | AA20: 6 | AB20: International Relations and Cooperation | AC20: George Tembo | AD20: (012) 315 5514 | AE20: George.Tembo@treasury.gov.za | AF20: Mercy Mhlophe | AG20: (012) 315 5598 | AH20: mercy.mhlope@treasury.gov.za | AI20: 6402455 | AJ20: 6424213 | AK20: 6425954 | AL20: 2848739 | AM20: 2842004 | AN20: 2786701 | AS20: Justice and Constitutional Development | AT20: 21240759 | AU20: 21220225 | AV20: 21225974 | AY20: Justice and Constitutional Development | AZ20: 12035456 | BA20: 11991097 | BB20: 11757725
Z21: 18 | AA21: 25 | AB21: Justice and Constitutional Development | AC21: Werner Krause | AD21: (012) 315 5211 | AE21: Werner.Krause@treasury.gov.za | AF21: Maggy Mokoka | AG21: (012) 315 5468 | AH21: Maggy.Mokoka@treasury.gov.za | AI21: 21240759 | AJ21: 21220225 | AK21: 21225974 | AL21: 12035456 | AM21: 11991097 | AN21: 11757725 | AS21: Military Veterans | AT21: 656375 | AU21: 656076 | AV21: 656254 | AY21: Military Veterans | AZ21: 126953 | BA21: 126589 | BB21: 124134
Z22: 19 | AA22: 26 | AB22: Military Veterans | AC22: Mashudu Bidzha | AD22: (012) 315 5344 | AE22: Mashudu.Bidzha@treasury.gov.za | AF22: Lesiba Ledwaba | AG22: (012) 315 6660 | AH22: Lesiba.Ledwaba@treasury.gov.za | AI22: 656375 | AJ22: 656076 | AK22: 656254 | AL22: 126953 | AM22: 126589 | AN22: 124134 | AS22: Mineral Resources and Energy | AT22: 8736798 | AU22: 9334176 | AV22: 9336705 | AY22: Mineral Resources and Energy | AZ22: 1038691 | BA22: 1036179 | BB22: 1016019
Z23: 20 | AA23: 34 | AB23: Mineral Resources and Energy | AC23: Rezah Atcha | AD23: (012) 315 5287 | AE23: Rezah.Atcha@treasury.gov.za | AF23: Nomagugu Madikane | AG23: (012) 315 5312 | AH23: Nomagugu.Madikane@treasury.gov.za | AI23: 8736798 | AJ23: 9334176 | AK23: 9336705 | AL23: 1038691 | AM23: 1036179 | AN23: 1016019 | AS23: National School of Government | AT23: 197656 | AU23: 196065 | AV23: 196118 | AY23: National School of Government | AZ23: 57987 | BA23: 57848 | BB23: 56722
Z24: 21 | AA24: 7 | AB24: National School of Government | AC24: George Tembo | AD24: (012) 315 5514 | AE24: George.Tembo@treasury.gov.za | AF24: Uvadhya Singh | AG24: (012) 315 9030 | AH24: Uvadhya.Singh@treasury.gov.za | AI24: 197656 | AJ24: 196065 | AK24: 196118 | AL24: 57987 | AM24: 57848 | AN24: 56722 | AS24: National Treasury | AT24: 818909528 | AU24: 861678814 | AV24: 890262091 | AY24: National Treasury | AZ24: 862955 | BA24: 860874 | BB24: 844125
Z25: 22 | AA25: 8 | AB25: National Treasury | AC25: Mokgatla Tema | AD25: (012) 315 5948 | AE25: Mokgatla.Tema@treasury.gov.za | AF25: Rhoda Marais | AG25: (012) 315 5906 | AH25: Rhoda.Marais@treasury.gov.za | AI25: 818909528 | AJ25: 861678814 | AK25: 890262091 | AL25: 862955 | AM25: 860874 | AN25: 844125 | AS25: Not defined | AT25: 3773184 | AU25: 5489386 | AV25: 5490874 | AY25: Not defined | AZ25: 0 | BA25: 0 | BB25: 0
Z26: 23 | AA26: 27 | AB26: Office of the Chief Justice | AC26: Elvis Ramafamba | AD26: (012) 315 5204 | AE26: Elvis.Ramafamba@treasury.gov.za | AF26: Keabetswe Matlwa | AG26: (012) 395 6678 | AH26: Keabetswe.Matlwa@treasury.gov.za | AI26: 2313640 | AJ26: 2315662 | AK26: 2316290 | AL26: 1737282 | AM26: 1734392 | AN26: 1700541 | AS26: Office of the Chief Justice | AT26: 2313640 | AU26: 2315662 | AV26: 2316290 | AY26: Office of the Chief Justice | AZ26: 1737282 | BA26: 1734392 | BB26: 1700541
Z27: 24 | AA27: 2 | AB27: Parliament | AC27: Timothy Murwa | AD27: (012) 315 5002 | AE27: Timothy.Murwa@treasury.gov.za | AF27: Isaac Mabena | AG27: (012) 315 5582 | AH27: Isaac.Mabena@treasury.gov.za | AI27: 2595889 | AJ27: 2600609 | AK27: 2601314 | AL27: 1398315 | AM27: 1394884 | AN27: 1367746 | AS27: Parliament | AT27: 2595889 | AU27: 2600609 | AV27: 2601314 | AY27: Parliament | AZ27: 1398315 | BA27: 1394884 | BB27: 1367746
Z28: 25 | AA28: 9 | AB28: Planning, Monitoring and Evaluation | AC28: Mokgatla Tema | AD28: (012) 315 5948 | AE28: Mokgatla.Tema@treasury.gov.za | AF28: Viwe Sobudula | AG28: (0)12 315 5015 | AH28: Viwe.Sobudula@treasury.gov.za | AI28: 471341 | AJ28: 470992 | AK28: 471120 | AL28: 314999 | AM28: 311708 | AN28: 305667 | AS28: Planning, Monitoring and Evaluation | AT28: 471341 | AU28: 470992 | AV28: 471120 | AY28: Planning, Monitoring and Evaluation | AZ28: 314999 | BA28: 311708 | BB28: 305667
Z29: 26 | AA29: 28 | AB29: Police | AC29: Nompumelelo Radebe | AD29: (012) 315 5957 | AE29: Nompumelelo.Radebe@treasury.gov.za | AF29: Velisubuhle Buti | AG29: (012) 395 6709 | AH29: Velisubuhle.Buti@treasury.gov.za | AI29: 95469689 | AJ29: 95324513 | AK29: 95350341 | AL29: 75007194 | AM29: 74823053 | AN29: 73366432 | AS29: Police | AT29: 95469689 | AU29: 95324513 | AV29: 95350341 | AY29: Police | AZ29: 75007194 | BA29: 74823053 | BB29: 73366432
Z30: 27 | AA30: 10 | AB30: Public Enterprises | AC30: Isaac Kurasha | AD30: (012) 315 5213 | AE30: Isaac.Kurasha@treasury.gov.za | AF30: Ntandokazi Makaula | AG30: (012) 395 6667 | AH30: Ntandokazi.Makaula@treasury.gov.za | AI30: 4361231 | AJ30: 1921025 | AK30: 1921546 | AL30: 184824 | AM30: 182679 | AN30: 179125 | AS30: Public Enterprises | AT30: 4361231 | AU30: 1921025 | AV30: 1921546 | AY30: Public Enterprises | AZ30: 184824 | BA30: 182679 | BB30: 179125
Z31: 28 | AA31: 11 | AB31: Public Service and Administration | AC31: George Tembo | AD31: (012) 315 5514 | AE31: George.Tembo@treasury.gov.za | AF31: Uvadhya Singh | AG31: (012) 315 9030 | AH31: Uvadhya.Singh@treasury.gov.za | AI31: 546634 | AJ31: 542790 | AK31: 542938 | AL31: 314645 | AM31: 313091 | AN31: 306909 | AS31: Public Service and Administration | AT31: 546634 | AU31: 542790 | AV31: 542938 | AY31: Public Service and Administration | AZ31: 314645 | BA31: 313091 | BB31: 306909
Z32: 29 | AA32: 12 | AB32: Public Service Commission | AC32: George Tembo | AD32: (012) 315 5514 | AE32: George.Tembo@treasury.gov.za | AF32: Uvadhya Singh | AG32: (012) 315 9030 | AH32: Uvadhya.Singh@treasury.gov.za | AI32: 281082 | AJ32: 279683 | AK32: 279759 | AL32: 212616 | AM32: 210723 | AN32: 206736 | AS32: Public Service Commission | AT32: 281082 | AU32: 279683 | AV32: 279759 | AY32: Public Service Commission | AZ32: 212616 | BA32: 210723 | BB32: 206736
Z33: 30 | AA33: 13 | AB33: Public Works and Infrastructure | AC33: George Tembo | AD33: (012) 315 5514 | AE33: George.Tembo@treasury.gov.za | AF33: Mercy Mhlophe | AG33: (012) 315 5598 | AH33: mercy.mhlope@treasury.gov.za | AI33: 7950067 | AJ33: 7938000 | AK33: 7940151 | AL33: 552454 | AM33: 552539 | AN33: 541673 | AS33: Public Works and Infrastructure | AT33: 7950067 | AU33: 7938000 | AV33: 7940151 | AY33: Public Works and Infrastructure | AZ33: 552454 | BA33: 552539 | BB33: 541673
Z34: 31 | AA34: 35 | AB34: Science and Innovation | AC34: Gcobisa Magazi | AD34: (012) 315 5320 | AE34: Gcobisa.Magazi@treasury.gov.za | AF34: Thabiso Molewa | AG34: (012) 395 6780 | AH34: Thabiso.Molewa@treasury.gov.za | AI34: 8489418 | AJ34: 8425038 | AK34: 8427321 | AL34: 394253 | AM34: 391048 | AN34: 383439 | AS34: Science and Innovation | AT34: 8489418 | AU34: 8425038 | AV34: 8427321 | AY34: Science and Innovation | AZ34: 394253 | BA34: 391048 | BB34: 383439
Z35: 32 | AA35: 36 | AB35: Small Business Development | AC35: Isaac Kurasha | AD35: (012) 315 5213 | AE35: Isaac.Kurasha@treasury.gov.za | AF35: Rudzani Sikhwari | AG35: (012) 315 5823 | AH35: rudzani.sikhwari@treasury.gov.za | AI35: 2482236 | AJ35: 2450739 | AK35: 2451403 | AL35: 150789 | AM35: 150435 | AN35: 147507 | AS35: Small Business Development | AT35: 2482236 | AU35: 2450739 | AV35: 2451403 | AY35: Small Business Development | AZ35: 150789 | BA35: 150435 | BB35: 147507
Z36: 33 | AA36: 19 | AB36: Social Development | AC36: Pebetse Maleka | AD36: (012) 315 5566 | AE36: Pebetse.Maleka@treasury.gov.za | AF36: Yusuf Mayet | AG36: (012) 315 5189 | AH36: Yusuf.Mayet@treasury.gov.za | AI36: 199306961 | AJ36: 206984656 | AK36: 207040738 | AL36: 497757 | AM36: 498651 | AN36: 488931 | AS36: Social Development | AT36: 199306961 | AU36: 206984656 | AV36: 207040738 | AY36: Social Development | AZ36: 497757 | BA36: 498651 | BB36: 488931
Z37: 34 | AA37: 37 | AB37: Sports, Arts and Culture | AC37: Judy Naidoo | AD37: (012) 315 5269 | AE37: Judy.Naidoo@treasury.gov.za | AF37: Spencer Janari | AG37: (012) 315 5436 | AH37: Spencer.Janari@treasury.gov.za | AI37: 5542002 | AJ37: 5551914 | AK37: 5553418 | AL37: 374227 | AM37: 369542 | AN37: 362624 | AS37: Sports, Arts and Culture | AT37: 5542002 | AU37: 5551914 | AV37: 5553418 | AY37: Sports, Arts and Culture | AZ37: 374227 | BA37: 369542 | BB37: 362624
Z38: 35 | AA38: 14 | AB38: Statistics South Africa | AC38: Mokgatla Tema | AD38: (012) 315 5948 | AE38: Mokgatla.Tema@treasury.gov.za | AF38: Viwe Sobudula | AG38: (0)12 315 5015 | AH38: Viwe.Sobudula@treasury.gov.za | AI38: 4446840 | AJ38: 2472028 | AK38: 2472697 | AL38: 1518638 | AM38: 1498900 | AN38: 1470947 | AS38: Statistics South Africa | AT38: 4446840 | AU38: 2472028 | AV38: 2472697 | AY38: Statistics South Africa | AZ38: 1518638 | BA38: 1498900 | BB38: 1470947
Z39: 36 | AA39: 1 | AB39: The Presidency | AC39: Timothy Murwa | AD39: (012) 315 5002 | AE39: Timothy.Murwa@treasury.gov.za | AF39: Yamkela Ngewu | AG39: (012) 406 9078 | AH39: Yamkela.Ngewu@treasury.gov.za | AI39: 591091 | AJ39: 590684 | AK39: 590844 | AL39: 369412 | AM39: 367439 | AN39: 360278 | AS39: The Presidency | AT39: 591091 | AU39: 590684 | AV39: 590844 | AY39: The Presidency | AZ39: 369412 | BA39: 367439 | BB39: 360278
Z40: 37 | AA40: 38 | AB40: Tourism | AC40: Gcobisa Magazi | AD40: (012) 315 5320 | AE40: Gcobisa.Magazi@treasury.gov.za | AF40: Ashley Ramasimu | AG40: (012) 315 5166 | AH40: Ashley.Ramasimu@treasury.gov.za | AI40: 2369341 | AJ40: 2374742 | AK40: 2375385 | AL40: 332682 | AM40: 331864 | AN40: 325409 | AS40: Tourism | AT40: 2369341 | AU40: 2374742 | AV40: 2375385 | AY40: Tourism | AZ40: 332682 | BA40: 331864 | BB40: 325409
Z41: 38 | AA41: 39 | AB41: Trade, Industry and Competition | AC41: Isaac Kurasha | AD41: (012) 315 5213 | AE41: Isaac.Kurasha@treasury.gov.za | AF41: Rudzani Sikhwari | AG41: (012) 315 5823 | AH41: rudzani.sikhwari@treasury.gov.za | AI41: 9287504 | AJ41: 9308700 | AK41: 9311222 | AL41: 1088218 | AM41: 1085604 | AN41: 1064481 | AS41: Trade, Industry and Competition | AT41: 9287504 | AU41: 9308700 | AV41: 9311222 | AY41: Trade, Industry and Competition | AZ41: 1088218 | BA41: 1085604 | BB41: 1064481
Z42: 39 | AA42: 15 | AB42: Traditional Affairs | AC42: Misaveni Ngobeni | AD42: (012) 315 5305 | AE42: misaveni.ngobeni@treasury.gov.za | AF42: Millicent Mulaudzi | AG42: (012) 395 6576 | AH42: Millicent.Mulaudzi@treasury.gov.za | AI42: 164604 | AJ42: 164356 | AK42: 164400 | AL42: 78883 | AM42: 78694 | AN42: 77163 | AS42: Traditional Affairs | AT42: 164604 | AU42: 164356 | AV42: 164400 | AY42: Traditional Affairs | AZ42: 78883 | BA42: 78694 | BB42: 77163
Z43: 40 | AA43: 40 | AB43: Transport | AC43: Dumebi Ubogu | AD43: (012) 315 5077 | AE43: Dumebi.Ubogu@treasury.gov.za | AF43: Luyolo Ntlangula | AG43: (012) 315-5571 | AH43: luyolo.ntangula@treasury.gov.za | AI43: 64203859 | AJ43: 64949019 | AK43: 64966617 | AL43: 530815 | AM43: 529531 | AN43: 519229 | AS43: Transport | AT43: 64203859 | AU43: 64949019 | AV43: 64966617 | AY43: Transport | AZ43: 530815 | BA43: 529531 | BB43: 519229
Z44: 41 | AA44: 41 | AB44: Water and Sanitation | AC44: Misaveni Ngobeni | AD44: (012) 315 5305 | AE44: Misaveni.Ngobeni@treasury.gov.za | AF44: Iqbal Mahomed Alli | AG44: (012) 315 5809 | AH44: Iqbal.Mahomed-Alli@treasury.gov.za | AI44: 15892768 | AJ44: 15909361 | AK44: 15913672 | AL44: 1849275 | AM44: 1841602 | AN44: 1805805 | AS44: Water and Sanitation | AT44: 15892768 | AU44: 15909361 | AV44: 15913672 | AY44: Water and Sanitation | AZ44: 1849275 | BA44: 1841602 | BB44: 1805805
Z45: 42 | AA45: 20 | AB45: Women, Youth and Persons with Disabilities | AC45: Pebetse Maleka | AD45: (012) 315 5566 | AE45: Pebetse.Maleka@treasury.gov.za | AF45: Lindi Mzankomo | AG45: (012) 315 5256 | AH45: Lindi.Mzankomo@treasury.gov.za | AI45: 744446 | AJ45: 743660 | AK45: 743862 | AL45: 112398 | AM45: 112420 | AN45: 110210 | AS45: Women, Youth and Persons with Disabilities | AT45: 744446 | AU45: 743660 | AV45: 743862 | AY45: Women, Youth and Persons with Disabilities | AZ45: 112398 | BA45: 112420 | BB45: 110210
AI48: =SUM(AI4:AI45) -> 1721177181 | AJ48: 1773558637 | AK48: 1802388988 | AL48: 174066007 | AM48: 173531816 | AN48: 170160998
AI49: 1751895269 | AJ49: 1789735540 | AL49: 174140115.3 | AM49: 173620506.6

Sheet Notes
B42: Link to 2021 MTEF Guidelines
B43: http://www.treasury.gov.za/publications/guidelines/2021%20MTEF%20guidelines.pdf

Sheet Pivot % growth
B13: Econ2 | C13: (All)
B14: Econ3 | C14: (All)
B16: Row Labels | C16: 2021/22 Baseline | D16: 2021/22 Revised baseline | E16: 2022/23 Revised baseline | F16: 2023/24 Revised baseline | G16: % YoY 2021/22 | H16: % YoY 2022/23 | I16: % YoY 2023/24 | J16: Ave Ann growth History | K16: Ave Ann growth MTEF | L16: % adjust 2021/22 | M16: % adjust 2022/23 | N16: % adjust 2023/24
B17: (blank) | C17: 210933227 | D17: 210933227 | E17: 225722999 | F17: 235671471 | G17: 0 | H17: 0.07011589502 | I17: 0.04407380747 | J17: 0.07344230036 | K17: 0.06132055674 | L17: 0 | M17: 0 | N17: 0
B18: Administration | C18: 433633 | D18: 433633 | E18: 448760 | F18: 468538 | G18: 0 | H18: 0.03488433768 | I18: 0.04407255549 | J18: 0.0269086046 | K18: 0.04204088075 | L18: 0 | M18: 0 | N18: 0
B19: Social Assistance | C19: 201346660 | D19: 201346660 | E19: 216027093 | F19: 225548228 | G19: 0 | H19: 0.0729112318 | I19: 0.0440738005 | J19: 0.07705455254 | K19: 0.06288684764 | L19: 0 | M19: 0 | N19: 0
B20: Social Security Policy and Administration | C20: 7422780 | D20: 7422780 | E20: 7367859 | F20: 7692595 | G20: 0 | H20: -0.007398979897 | I20: 0.04407467624 | J20: 0.0009835900739 | K20: 0.01765118755 | L20: 0 | M20: 0 | N20: 0
B21: Welfare Services Policy Development and Implementation Support | C21: 1381199 | D21: 1381199 | E21: 1527555 | F21: 1594878 | G21: 0 | H21: 0.1059630075 | I21: 0.04407239019 | J21: 0.07822620537 | K21: 0.08519758341 | L21: 0 | M21: 0 | N21: 0
B22: Social Policy and Integrated Service Delivery | C22: 348955 | D22: 348955 | E22: 351732 | F22: 367232 | G22: 0 | H22: 0.007958046166 | I22: 0.04406764241 | J22: -0.04230541087 | K22: 0.02644726399 | L22: 0 | M22: 0 | N22: 0
B23: Grand Total | C23: 210933227 | D23: 210933227 | E23: 225722999 | F23: 235671471 | G23: 0 | H23: 0.07011589502 | I23: 0.04407380747 | J23: 0.07344230036 | K23: 0.06132055674 | L23: 0 | M23: 0 | N23: 0

Sheet Pivot_T
B13: DOR | C13: (All)
B14: Econ4 | C14: (All)
B16: Value | C16: Column Labels
C17: Baseline
B18: Row Labels | C18: 2021/22 | D18: 2022/23 | E18: 2023/24
B19: Current payments | C19: 962559 | D19: 993412 | E19: 1037194
B20: Compensation of employees | C20: 529199 | D20: 544419 | E20: 568414
B21: Goods and services | C21: 433360 | D21: 448993 | E21: 468780
B22: Transfers and subsidies | C22: 209958085 | D22: 224716298 | E22: 234620403
B23: Provinces and municipalities | C23: 1056661 | D23: 1191918 | E23: 1244450
B24: Departmental agencies and accounts | C24: 7510247 | D24: 7451081 | E24: 7779479
B25: Foreign governments and international organisations | C25: 7720 | D25: 8005 | E25: 8357
B26: Non-profit institutions | C26: 35047 | D26: 36357 | E26: 37960
B27: Households | C27: 201348410 | D27: 216028937 | E27: 225550157
B28: Payments for capital assets | C28: 12583 | D28: 13289 | E28: 13874
B29: Machinery and equipment | C29: 11929 | D29: 12610 | E29: 13165
B30: Software and other intangible assets | C30: 654 | D30: 679 | E30: 709
B31: Grand Total | C31: 210933227 | D31: 225722999 | E31: 235671471

Sheet Service delivery impact
B15: Note: Data in the table below is sourced from the individual IP sheets. Any adjustments should be made on the IP sheets. Ajustments made directly on this table will be over-written when the data is refreshed!
B17: Impact area | C17: IP no | D17: IP name | E17: Comment

Sheet Performance impact
B15: Note: Data in the table below is sourced from the individual IP sheets. Any adjustments should be made on the IP sheets. Ajustments made directly on this table will be over-written when the data is refreshed!
B17: Impact area | C17: IP no | D17: IP name | E17: Performance indicator | F17: 2021/22|Original target | G17: 2021/22 Revised target | H17: 2021/22 Change | I17: 2022/23 Original target | J17: 2022/23 Revised target | K17: 2022/23 Change | L17: 2023/24 Original target | M17: 2023/24 Revised target | N17: 2023/24 Change | O17: Comment | P17: Gov Priority

Sheet Pivot Infra impact
B14: Impact area | C14: (All)
B16: Row Labels

Sheet Pivot Personnel impact
B14: IP name | C14: (All)
B16: Row Labels | C16: 2021/22 Change | D16: 2022/23 Change | E16: 2023/24 Change
B17: Level 1 - 6 | C17: 0 | D17: 0 | E17: 0
B18: 1 | C18: 0 | D18: 0 | E18: 0
B19: 2 | C19: 0 | D19: 0 | E19: 0
B20: 3 | C20: 0 | D20: 0 | E20: 0
B21: 4 | C21: 0 | D21: 0 | E21: 0
B22: 5 | C22: 0 | D22: 0 | E22: 0
B23: 6 | C23: 0 | D23: 0 | E23: 0
B24: Levels 7 - 12 | C24: 0 | D24: 0 | E24: 0
B25: 7 | C25: 0 | D25: 0 | E25: 0
B26: 8 | C26: 0 | D26: 0 | E26: 0
B27: 9 | C27: 0 | D27: 0 | E27: 0
B28: 10 | C28: 0 | D28: 0 | E28: 0
B29: 11 | C29: 0 | D29: 0 | E29: 0
B30: 12 | C30: 0 | D30: 0 | E30: 0
B31: Levels 13 - 16 | C31: 0 | D31: 0 | E31: 0
B32: 13 | C32: 0 | D32: 0 | E32: 0
B33: 14 | C33: 0 | D33: 0 | E33: 0
B34: 15 | C34: 0 | D34: 0 | E34: 0
B35: 16 | C35: 0 | D35: 0 | E35: 0
B36: Other | C36: 0 | D36: 0 | E36: 0
B37: Other | C37: 0 | D37: 0 | E37: 0
B38: Grand Total | C38: 0 | D38: 0 | E38: 0

Sheet Data
AW1: Steps to complete…
BS6: 2021/22 | BT6: 2022/23 | BU6: 2023/24
BR8: Baseline ceiling: | BS8: =INDEX(DeptCeiling,MATCH(MyVoteNo,VoteNoList,0),1) -> 199306961 | BT8: =INDEX(DeptCeiling,MATCH(MyVoteNo,VoteNoList,0),2) -> 206984656 | BU8: =INDEX(DeptCeiling,MATCH(MyVoteNo,VoteNoList,0),3) -> 207040738
BR9: (Over)/Under | BS9: =BS8-SUM(T_DataComboFile[2021/22 Revised baseline]) -> -11626266 | BT9: =BT8-SUM(T_DataComboFile[2022/23 Revised baseline]) -> -18738343 | BU9: =BU8-SUM(T_DataComboFile[2023/24 Revised baseline]) -> -28630733
BR11: CoE ceiling: | BS11: =INDEX(CoECeiling,MATCH(MyVoteNo,VoteNoList,0),1) -> 497757 | BT11: =INDEX(CoECeiling,MATCH(MyVoteNo,VoteNoList,0),2) -> 498651 | BU11: =INDEX(CoECeiling,MATCH(MyVoteNo,VoteNoList,0),3) -> 488931
BR12: (Over)/Under | BS12: =BS11-SUMIF(T_DataComboFile[Econ3],"Compensation of employees",T_DataComboFile[2021/22 Revised baseline]) -> -31442 | BT12: =BT11-SUMIF(T_DataComboFile[Econ3],"Compensation of employees",T_DataComboFile[2022/23 Revised baseline]) -> -45768 | BU12: =BU11-SUMIF(T_DataComboFile[Econ3],"Compensation of employees",T_DataComboFile[2023/24 Revised baseline]) -> -79483
AX15: G&S reporting level | AZ15: 2016/17 | BA15: 2017/18 | BB15: 2018/19 | BC15: 2019/20 Main appropriation | BD15: 2019/20 Adjusted appropriation | BE15: 2019/20 Revised estimate | BF15: 2019/20 Preliminary outcome | BG15: 2020/21 Original | BH15: 2020/21 SAB | BI15: 2020/21 Baseline | BJ15: 2021/22 Baseline | BK15: 2022/23 Baseline | BL15: 2023/24 Baseline | BM15: 2021/22 Reduction | BN15: 2022/23 Reduction | BO15: 2023/24 Reduction | BP15: 2021/22 Increase | BQ15: 2022/23 Increase | BR15: 2023/24 Increase | BS15: 2021/22 Revised baseline | BT15: 2022/23 Revised baseline | BU15: 2023/24 Revised baseline
AX16: Level 3 | AY16: Subtotal: | AZ16: =SUBTOTAL(9,T_DataComboFile[2016/17]) -> 147324982 | BA16: =SUBTOTAL(9,T_DataComboFile[2017/18]) -> 159379026 | BB16: =SUBTOTAL(9,T_DataComboFile[2018/19]) -> 172562635 | BC16: =SUBTOTAL(9,T_DataComboFile[2019/20 Main appropriation]) -> 184767845 | BD16: =SUBTOTAL(9,T_DataComboFile[2019/20 Adjusted appropriation]) -> 184697845 | BE16: =SUBTOTAL(9,T_DataComboFile[2019/20 Revised estimate]) -> 184697845 | BF16: =SUBTOTAL(9,T_DataComboFile[2019/20 Preliminary outcome]) -> 184697845 | BG16: =SUBTOTAL(9,T_DataComboFile[2020/21 Original]) -> 197718275 | BH16: =SUBTOTAL(9,T_DataComboFile[2020/21 SAB]) -> 223192157 | BI16: =SUBTOTAL(9,T_DataComboFile[2020/21 Revised]) -> 197136610 | BJ16: =SUBTOTAL(9,T_DataComboFile[2021/22 Baseline]) -> 210933227 | BK16: =SUBTOTAL(9,T_DataComboFile[2022/23 Baseline]) -> 225722999 | BL16: =SUBTOTAL(9,T_DataComboFile[2023/24 Baseline]) -> 235671471 | BM16: =SUBTOTAL(9,T_DataComboFile[2021/22 Reduction]) -> 0 | BN16: =SUBTOTAL(9,T_DataComboFile[2022/23 Reduction]) -> 0 | BO16: =SUBTOTAL(9,T_DataComboFile[2023/24 Reduction]) -> 0 | BP16: =SUBTOTAL(9,T_DataComboFile[2021/22 Increase]) -> 0 | BQ16: =SUBTOTAL(9,T_DataComboFile[2022/23 Increase]) -> 0 | BR16: =SUBTOTAL(9,T_DataComboFile[2023/24 Increase]) -> 0 | BS16: =SUBTOTAL(9,T_DataComboFile[2021/22 Revised baseline]) -> 210933227 | BT16: =SUBTOTAL(9,T_DataComboFile[2022/23 Revised baseline]) -> 225722999 | BU16: =SUBTOTAL(9,T_DataComboFile[2023/24 Revised baseline]) -> 235671471
BS17: …red shaded cells below indicate negative budgets. | BV17: Budget Tagging
A18: Combo_DoR | B18: Combo_Econ | C18: Budget Year | D18: Process | E18: Vote No. - N | F18: Programme No. - N | G18: Subprogramme No. - N | H18: Index - N | I18: Index - N2 | J18: Vote No. | K18: Programme No. | L18: Subprogramme No. | M18: Index | N18: Index2 | O18: UID | P18: Econ1_IDn | Q18: Econ2_IDn | R18: Econ3_IDn | S18: Econ4_IDn | T18: Econ5_IDn | U18: Econ_UID | V18: Province | W18: Department | X18: Programme | Y18: Subprogramme | Z18: Transfers and subsidies / Payments for financial assets detail | AA18: Econ1 | AB18: Econ2 | AC18: Econ3 | AD18: Econ4 | AE18: Econ5 | AF18: Function group | AG18: Technical group | AH18: DOR | AI18: 2016/17_Source | AJ18: 2017/18_Source | AK18: 2018/19_Source | AL18: 2019/20 Main appropriation_Source | AM18: 2019/20 Adjusted appropriation_Source | AN18: 2019/20 Revised estimate_Source | AO18: 2019/20 Preliminary outcome_Source | AP18: 2020/21 Original_Source | AQ18: 2020/21 SAB_Source | AR18: 2020/21 Baseline_Source | AS18: 2021/22 Baseline_Source | AT18: 2022/23 Baseline_Source | AU18: 2023/24 Baseline_Source | AV18: New item Indi | AW18: Implementation programme | AX18: G&S Reporting level | AY18: G&S reporting level indicator | AZ18: 2016/17 | BA18: 2017/18 | BB18: 2018/19 | BC18: 2019/20 Main appropriation | BD18: 2019/20 Adjusted appropriation | BE18: 2019/20 Revised estimate | BF18: 2019/20 Preliminary outcome | BG18: 2020/21 Original | BH18: 2020/21 SAB | BI18: 2020/21 Revised | BJ18: 2021/22 Baseline | BK18: 2022/23 Baseline | BL18: 2023/24 Baseline | BM18: 2021/22 Reduction | BN18: 2022/23 Reduction | BO18: 2023/24 Reduction | BP18: 2021/22 Increase | BQ18: 2022/23 Increase | BR18: 2023/24 Increase | BS18: 2021/22 Revised baseline | BT18: 2022/23 Revised baseline | BU18: 2023/24 Revised baseline | BV18: Gender - Women | BW18: Gender - Men | BX18: Children and Youth - Women | BY18: Children and Youth - Men | BZ18: Persons with disabilities - Women | CA18: Persons with disabilities - Men
A19: NAT|Non-transfer item | B19: 19|Salaries and wages | C19: 2021_22 | D19: ENE2020 | E19: 19 | F19: 1 | G19: 1 | H19: 7412 | I19: 34515 | J19: 19 | K19: 1 | L19: 1 | M19: 7412 | N19: 034515 | O19: 19|01|01 | P19: 1 | Q19: 1 | R19: 1 | S19: 1 | T19: 1 | U19: 01|01|01|01|01 | V19: National | W19: Social Development | X19: Administration | Y19: Ministry | Z19: Non-transfer item | AA19: Current | AB19: Current payments | AC19: Compensation of employees | AD19: Salaries and wages | AE19: Salaries and wages | AF19: Social development | AG19: Social protection | AH19: NAT | AI19: 20352 | AJ19: 15226 | AK19: 21614 | AL19: 20907 | AM19: 20907 | AN19: 20907 | AO19: 20907 | AP19: 22476 | AQ19: 22476 | AR19: 21202 | AS19: 22082 | AT19: 22572 | AU19: 23567 | AV19: 1 | AX19: =IF(T_DataComboFile[[#This Row],[G&S reporting level indicator]]=1,$AX$16,"Not applicable") -> Level 3 | AY19: =IF(AND($AX$16="Level 3",T_DataComboFile[[#This Row],[Econ3]] = "Goods and services"),IF(T_DataComboFile[[#This Row],[Econ4]] = T_DataComboFile[[#This Row],[Econ3]],1,0),IF(AND($AX$16="Level 4",T_DataComboFile[[#This Row],[Econ4]] = "Goods and services"),0,1)) -> 1 | AZ19: =T_DataComboFile[[#This Row],[2016/17_Source]]*T_DataComboFile[[#This Row],[G&S reporting level indicator]] -> 20352 | BA19: =T_DataComboFile[[#This Row],[2017/18_Source]]*T_DataComboFile[[#This Row],[G&S reporting level indicator]] -> 15226 | BB19: =T_DataComboFile[[#This Row],[2018/19_Source]]*T_DataComboFile[[#This Row],[G&S reporting level indicator]] -> 21614 | BC19: =T_DataComboFile[[#This Row],[2019/20 Main appropriation_Source]]*T_DataComboFile[[#This Row],[G&S reporting level indicator]] -> 20907 | BD19: =T_DataComboFile[[#This Row],[2019/20 Adjusted appropriation_Source]]*T_DataComboFile[[#This Row],[G&S reporting level indicator]] -> 20907 | BE19: =T_DataComboFile[[#This Row],[2019/20 Revised estimate_Source]]*T_DataComboFile[[#This Row],[G&S reporting level indicator]] -> 20907 | BF19: =T_DataComboFile[[#This Row],[2019/20 Preliminary outcome_Source]]*T_DataComboFile[[#This Row],[G&S reporting level indicator]] -> 20907 | BG19: =T_DataComboFile[[#This Row],[2020/21 Original_Source]]*T_DataComboFile[[#This Row],[G&S reporting level indicator]] -> 22476 | BH19: =T_DataComboFile[[#This Row],[2020/21 SAB_Source]]*T_DataComboFile[[#This Row],[G&S reporting level indicator]] -> 22476 | BI19: =T_DataComboFile[[#This Row],[2020/21 Baseline_Source]]*T_DataComboFile[[#This Row],[G&S reporting level indicator]] -> 21202 | BJ19: =T_DataComboFile[[#This Row],[2021/22 Baseline_Source]]*T_DataComboFile[[#This Row],[G&S reporting level indicator]] -> 22082 | BK19: =T_DataComboFile[[#This Row],[2022/23 Baseline_Source]]*T_DataComboFile[[#This Row],[G&S reporting level indicator]] -> 22572 | BL19: =T_DataComboFile[[#This Row],[2023/24 Baseline_Source]]*T_DataComboFile[[#This Row],[G&S reporting level indicator]] -> 23567 | BS19: =T_DataComboFile[[#This Row],[2021/22 Baseline]]+T_DataComboFile[[#This Row],[2021/22 Reduction]]+T_DataComboFile[[#This Row],[2021/22 Increase]] -> 22082 | BT19: =T_DataComboFile[[#This Row],[2022/23 Baseline]]+T_DataComboFile[[#This Row],[2022/23 Reduction]]+T_DataComboFile[[#This Row],[2022/23 Increase]] -> 22572 | BU19: =T_DataComboFile[[#This Row],[2023/24 Baseline]]+T_DataComboFile[[#This Row],[2023/24 Reduction]]+T_DataComboFile[[#This Row],[2023/24 Increase]] -> 23567
A20: NAT|Non-transfer item | B20: 19|Social contributions | C20: 2021_22 | D20: ENE2020 | E20: 19 | F20: 1 | G20: 1 | H20: 7413 | I20: 34516 | J20: 19 | K20: 1 | L20: 1 | M20: 7413 | N20: 034516 | O20: 19|01|01 | P20: 1 | Q20: 1 | R20: 1 | S20: 2 | T20: 2 | U20: 01|01|01|02|02 | V20: National | W20: Social Development | X20: Administration | Y20: Ministry | Z20: Non-transfer item | AA20: Current | AB20: Current payments | AC20: Compensation of employees | AD20: Social contributions | AE20: Social contributions | AF20: Social development | AG20: Social protection | AH20: NAT | AI20: 1601 | AJ20: 1236 | AK20: 1733 | AL20: 2410 | AM20: 2410 | AN20: 2410 | AO20: 2410 | AP20: 2591 | AQ20: 2591 | AR20: 2444 | AS20: 2545 | AT20: 2602 | AU20: 2717 | AV20: 1 | AX20: =IF(T_DataComboFile[[#This Row],[G&S reporting level indicator]]=1,$AX$16,"Not applicable") -> Level 3 | AY20: =IF(AND($AX$16="Level 3",T_DataComboFile[[#This Row],[Econ3]] = "Goods and services"),IF(T_DataComboFile[[#This Row],[Econ4]] = T_DataComboFile[[#This Row],[Econ3]],1,0),IF(AND($AX$16="Level 4",T_DataComboFile[[#This Row],[Econ4]] = "Goods and services"),0,1)) -> 1 | AZ20: =T_DataComboFile[[#This Row],[2016/17_Source]]*T_DataComboFile[[#This Row],[G&S reporting level indicator]] -> 1601 | BA20: =T_DataComboFile[[#This Row],[2017/18_Source]]*T_DataComboFile[[#This Row],[G&S reporting level indicator]] -> 1236 | BB20: =T_DataComboFile[[#This Row],[2018/19_Source]]*T_DataComboFile[[#This Row],[G&S reporting level indicator]] -> 1733 | BC20: =T_DataComboFile[[#This Row],[2019/20 Main appropriation_Source]]*T_DataComboFile[[#This Row],[G&S reporting level indicator]] -> 2410 | BD20: =T_DataComboFile[[#This Row],[2019/20 Adjusted appropriation_Source]]*T_DataComboFile[[#This Row],[G&S reporting level indicator]] -> 2410 | BE20: =T_DataComboFile[[#This Row],[2019/20 Revised estimate_Source]]*T_DataComboFile[[#This Row],[G&S reporting level indicator]] -> 2410 | BF20: =T_DataComboFile[[#This Row],[2019/20 Preliminary outcome_Source]]*T_DataComboFile[[#This Row],[G&S reporting level indicator]] -> 2410 | BG20: =T_DataComboFile[[#This Row],[2020/21 Original_Source]]*T_DataComboFile[[#This Row],[G&S reporting level indicator]] -> 2591 | BH20: =T_DataComboFile[[#This Row],[2020/21 SAB_Source]]*T_DataComboFile[[#This Row],[G&S reporting level indicator]] -> 2591 | BI20: =T_DataComboFile[[#This Row],[2020/21 Baseline_Source]]*T_DataComboFile[[#This Row],[G&S reporting level indicator]] -> 2444 | BJ20: =T_DataComboFile[[#This Row],[2021/22 Baseline_Source]]*T_DataComboFile[[#This Row],[G&S reporting level indicator]] -> 2545 | BK20: =T_DataComboFile[[#This Row],[2022/23 Baseline_Source]]*T_DataComboFile[[#This Row],[G&S reporting level indicator]] -> 2602 | BL20: =T_DataComboFile[[#This Row],[2023/24 Baseline_Source]]*T_DataComboFile[[#This Row],[G&S reporting level indicator]] -> 2717 | BS20: =T_DataComboFile[[#This Row],[2021/22 Baseline]]+T_DataComboFile[[#This Row],[2021/22 Reduction]]+T_DataComboFile[[#This Row],[2021/22 Increase]] -> 2545 | BT20: =T_DataComboFile[[#This Row],[2022/23 Baseline]]+T_DataComboFile[[#This Row],[2022/23 Reduction]]+T_DataComboFile[[#This Row],[2022/23 Increase]] -> 2602 | BU20: =T_DataComboFile[[#This Row],[2023/24 Baseline]]+T_DataComboFile[[#This Row],[2023/24 Reduction]]+T_DataComboFile[[#This Row],[2023/24 Increase]] -> 2717
C21: 2021_22 | D21: ENE2020 | E21: 19 | F21: 1 | G21: 1 | I21: 34517 | J21: 19 | K21: 1 | L21: 1 | N21: 034517 | O21: 19|01|01 | P21: 1 | Q21: 1 | R21: 2 | S21: 2 | T21: 2 | U21: 01|01|02|02|02 | V21: National | W21: Social Development | X21: Administration | Y21: Ministry | Z21: Non-transfer item | AA21: Current | AB21: Current payments | AC21: Goods and services | AD21: Goods and services | AE21: Goods and services | AF21: Social development | AG21: Social protection | AH21: NAT | AI21: 31057 | AJ21: 27452 | AK21: 22104 | AL21: 16849 | AM21: 16849 | AN21: 16849 | AO21: 16849 | AP21: 17774 | AQ21: 14774 | AR21: 17774 | AS21: 19763 | AT21: 20500 | AU21: 21405 | AV21: 1 | AX21: =IF(T_DataComboFile[[#This Row],[G&S reporting level indicator]]=1,$AX$16,"Not applicable") -> Level 3 | AY21: =IF(AND($AX$16="Level 3",T_DataComboFile[[#This Row],[Econ3]] = "Goods and services"),IF(T_DataComboFile[[#This Row],[Econ4]] = T_DataComboFile[[#This Row],[Econ3]],1,0),IF(AND($AX$16="Level 4",T_DataComboFile[[#This Row],[Econ4]] = "Goods and services"),0,1)) -> 1 | AZ21: =T_DataComboFile[[#This Row],[2016/17_Source]]*T_DataComboFile[[#This Row],[G&S reporting level indicator]] -> 31057 | BA21: =T_DataComboFile[[#This Row],[2017/18_Source]]*T_DataComboFile[[#This Row],[G&S reporting level indicator]] -> 27452 | BB21: =T_DataComboFile[[#This Row],[2018/19_Source]]*T_DataComboFile[[#This Row],[G&S reporting level indicator]] -> 22104 | BC21: =T_DataComboFile[[#This Row],[2019/20 Main appropriation_Source]]*T_DataComboFile[[#This Row],[G&S reporting level indicator]] -> 16849 | BD21: =T_DataComboFile[[#This Row],[2019/20 Adjusted appropriation_Source]]*T_DataComboFile[[#This Row],[G&S reporting level indicator]] -> 16849 | BE21: =T_DataComboFile[[#This Row],[2019/20 Revised estimate_Source]]*T_DataComboFile[[#This Row],[G&S reporting level indicator]] -> 16849 | BF21: =T_DataComboFile[[#This Row],[2019/20 Preliminary outcome_Source]]*T_DataComboFile[[#This Row],[G&S reporting level indicator]] -> 16849 | BG21: =T_DataComboFile[[#This Row],[2020/21 Original_Source]]*T_DataComboFile[[#This Row],[G&S reporting level indicator]] -> 17774 | BH21: =T_DataComboFile[[#This Row],[2020/21 SAB_Source]]*T_DataComboFile[[#This Row],[G&S reporting level indicator]] -> 14774 | BI21: =T_DataComboFile[[#This Row],[2020/21 Baseline_Source]]*T_DataComboFile[[#This Row],[G&S reporting level indicator]] -> 17774 | BJ21: =T_DataComboFile[[#This Row],[2021/22 Baseline_Source]]*T_DataComboFile[[#This Row],[G&S reporting level indicator]] -> 19763 | BK21: =T_DataComboFile[[#This Row],[2022/23 Baseline_Source]]*T_DataComboFile[[#This Row],[G&S reporting level indicator]] -> 20500 | BL21: =T_DataComboFile[[#This Row],[2023/24 Baseline_Source]]*T_DataComboFile[[#This Row],[G&S reporting level indicator]] -> 21405 | BS21: =T_DataComboFile[[#This Row],[2021/22 Baseline]]+T_DataComboFile[[#This Row],[2021/22 Reduction]]+T_DataComboFile[[#This Row],[2021/22 Increase]] -> 19763 | BT21: =T_DataComboFile[[#This Row],[2022/23 Baseline]]+T_DataComboFile[[#This Row],[2022/23 Reduction]]+T_DataComboFile[[#This Row],[2022/23 Increase]] -> 20500 | BU21: =T_DataComboFile[[#This Row],[2023/24 Baseline]]+T_DataComboFile[[#This Row],[2023/24 Reduction]]+T_DataComboFile[[#This Row],[2023/24 Increase]] -> 21405
A22: NAT|Non-transfer item | B22: 19|Administrative fees | C22: 2021_22 | D22: ENE2020 | E22: 19 | F22: 1 | G22: 1 | H22: 7414 | I22: 34518 | J22: 19 | K22: 1 | L22: 1 | M22: 7414 | N22: 034518 | O22: 19|01|01 | P22: 1 | Q22: 1 | R22: 2 | S22: 3 | T22: 3 | U22: 01|01|02|03|03 | V22: National | W22: Social Development | X22: Administration | Y22: Ministry | Z22: Non-transfer item | AA22: Current | AB22: Current payments | AC22: Goods and services | AD22: Administrative fees | AE22: Administrative fees | AF22: Social development | AG22: Social protection | AH22: NAT | AI22: 412 | AJ22: 810 | AK22: 574 | AL22: 663 | AM22: 663 | AN22: 663 | AO22: 663 | AP22: 699 | AQ22: 699 | AR22: 699 | AS22: 737 | AT22: 765 | AU22: 799 | AV22: 1 | AX22: =IF(T_DataComboFile[[#This Row],[G&S reporting level indicator]]=1,$AX$16,"Not applicable") -> Not applicable | AY22: =IF(AND($AX$16="Level 3",T_DataComboFile[[#This Row],[Econ3]] = "Goods and services"),IF(T_DataComboFile[[#This Row],[Econ4]] = T_DataComboFile[[#This Row],[Econ3]],1,0),IF(AND($AX$16="Level 4",T_DataComboFile[[#This Row],[Econ4]] = "Goods and services"),0,1)) -> 0 | AZ22: =T_DataComboFile[[#This Row],[2016/17_Source]]*T_DataComboFile[[#This Row],[G&S reporting level indicator]] -> 0 | BA22: =T_DataComboFile[[#This Row],[2017/18_Source]]*T_DataComboFile[[#This Row],[G&S reporting level indicator]] -> 0 | BB22: =T_DataComboFile[[#This Row],[2018/19_Source]]*T_DataComboFile[[#This Row],[G&S reporting level indicator]] -> 0 | BC22: =T_DataComboFile[[#This Row],[2019/20 Main appropriation_Source]]*T_DataComboFile[[#This Row],[G&S reporting level indicator]] -> 0 | BD22: =T_DataComboFile[[#This Row],[2019/20 Adjusted appropriation_Source]]*T_DataComboFile[[#This Row],[G&S reporting level indicator]] -> 0 | BE22: =T_DataComboFile[[#This Row],[2019/20 Revised estimate_Source]]*T_DataComboFile[[#This Row],[G&S reporting level indicator]] -> 0 | BF22: =T_DataComboFile[[#This Row],[2019/20 Preliminary outcome_Source]]*T_DataComboFile[[#This Row],[G&S reporting level indicator]] -> 0 | BG22: =T_DataComboFile[[#This Row],[2020/21 Original_Source]]*T_DataComboFile[[#This Row],[G&S reporting level indicator]] -> 0 | BH22: =T_DataComboFile[[#This Row],[2020/21 SAB_Source]]*T_DataComboFile[[#This Row],[G&S reporting level indicator]] -> 0 | BI22: =T_DataComboFile[[#This Row],[2020/21 Baseline_Source]]*T_DataComboFile[[#This Row],[G&S reporting level indicator]] -> 0 | BJ22: =T_DataComboFile[[#This Row],[2021/22 Baseline_Source]]*T_DataComboFile[[#This Row],[G&S reporting level indicator]] -> 0 | BK22: =T_DataComboFile[[#This Row],[2022/23 Baseline_Source]]*T_DataComboFile[[#This Row],[G&S reporting level indicator]] -> 0 | BL22: =T_DataComboFile[[#This Row],[2023/24 Baseline_Source]]*T_DataComboFile[[#This Row],[G&S reporting level indicator]] -> 0 | BS22: =T_DataComboFile[[#This Row],[2021/22 Baseline]]+T_DataComboFile[[#This Row],[2021/22 Reduction]]+T_DataComboFile[[#This Row],[2021/22 Increase]] -> 0 | BT22: =T_DataComboFile[[#This Row],[2022/23 Baseline]]+T_DataComboFile[[#This Row],[2022/23 Reduction]]+T_DataComboFile[[#This Row],[2022/23 Increase]] -> 0 | BU22: =T_DataComboFile[[#This Row],[2023/24 Baseline]]+T_DataComboFile[[#This Row],[2023/24 Reduction]]+T_DataComboFile[[#This Row],[2023/24 Increase]] -> 0
A23: NAT|Non-transfer item | B23: 19|Advertising | C23: 2021_22 | D23: ENE2020 | E23: 19 | F23: 1 | G23: 1 | H23: 7415 | I23: 34519 | J23: 19 | K23: 1 | L23: 1 | M23: 7415 | N23: 034519 | O23: 19|01|01 | P23: 1 | Q23: 1 | R23: 2 | S23: 4 | T23: 4 | U23: 01|01|02|04|04 | V23: National | W23: Social Development | X23: Administration | Y23: Ministry | Z23: Non-transfer item | AA23: Current | AB23: Current payments | AC23: Goods and services | AD23: Advertising | AE23: Advertising | AF23: Social development | AG23: Social protection | AH23: NAT | AI23: 0 | AJ23: 0 | AK23: 346 | AL23: 89 | AM23: 89 | AN23: 89 | AO23: 89 | AP23: 94 | AQ23: 94 | AR23: 94 | AS23: 99 | AT23: 103 | AU23: 108 | AV23: 1 | AX23: =IF(T_DataComboFile[[#This Row],[G&S reporting level indicator]]=1,$AX$16,"Not applicable") -> Not applicable | AY23: =IF(AND($AX$16="Level 3",T_DataComboFile[[#This Row],[Econ3]] = "Goods and services"),IF(T_DataComboFile[[#This Row],[Econ4]] = T_DataComboFile[[#This Row],[Econ3]],1,0),IF(AND($AX$16="Level 4",T_DataComboFile[[#This Row],[Econ4]] = "Goods and services"),0,1)) -> 0 | AZ23: =T_DataComboFile[[#This Row],[2016/17_Source]]*T_DataComboFile[[#This Row],[G&S reporting level indicator]] -> 0 | BA23: =T_DataComboFile[[#This Row],[2017/18_Source]]*T_DataComboFile[[#This Row],[G&S reporting level indicator]] -> 0 | BB23: =T_DataComboFile[[#This Row],[2018/19_Source]]*T_DataComboFile[[#This Row],[G&S reporting level indicator]] -> 0 | BC23: =T_DataComboFile[[#This Row],[2019/20 Main appropriation_Source]]*T_DataComboFile[[#This Row],[G&S reporting level indicator]] -> 0 | BD23: =T_DataComboFile[[#This Row],[2019/20 Adjusted appropriation_Source]]*T_DataComboFile[[#This Row],[G&S reporting level indicator]] -> 0 | BE23: =T_DataComboFile[[#This Row],[2019/20 Revised estimate_Source]]*T_DataComboFile[[#This Row],[G&S reporting level indicator]] -> 0 | BF23: =T_DataComboFile[[#This Row],[2019/20 Preliminary outcome_Source]]*T_DataComboFile[[#This Row],[G&S reporting level indicator]] -> 0 | BG23: =T_DataComboFile[[#This Row],[2020/21 Original_Source]]*T_DataComboFile[[#This Row],[G&S reporting level indicator]] -> 0 | BH23: =T_DataComboFile[[#This Row],[2020/21 SAB_Source]]*T_DataComboFile[[#This Row],[G&S reporting level indicator]] -> 0 | BI23: =T_DataComboFile[[#This Row],[2020/21 Baseline_Source]]*T_DataComboFile[[#This Row],[G&S reporting level indicator]] -> 0 | BJ23: =T_DataComboFile[[#This Row],[2021/22 Baseline_Source]]*T_DataComboFile[[#This Row],[G&S reporting level indicator]] -> 0 | BK23: =T_DataComboFile[[#This Row],[2022/23 Baseline_Source]]*T_DataComboFile[[#This Row],[G&S reporting level indicator]] -> 0 | BL23: =T_DataComboFile[[#This Row],[2023/24 Baseline_Source]]*T_DataComboFile[[#This Row],[G&S reporting level indicator]] -> 0 | BS23: =T_DataComboFile[[#This Row],[2021/22 Baseline]]+T_DataComboFile[[#This Row],[2021/22 Reduction]]+T_DataComboFile[[#This Row],[2021/22 Increase]] -> 0 | BT23: =T_DataComboFile[[#This Row],[2022/23 Baseline]]+T_DataComboFile[[#This Row],[2022/23 Reduction]]+T_DataComboFile[[#This Row],[2022/23 Increase]] -> 0 | BU23: =T_DataComboFile[[#This Row],[2023/24 Baseline]]+T_DataComboFile[[#This Row],[2023/24 Reduction]]+T_DataComboFile[[#This Row],[2023/24 Increase]] -> 0
A24: NAT|Non-transfer item | B24: 19|Minor assets | C24: 2021_22 | D24: ENE2020 | E24: 19 | F24: 1 | G24: 1 | H24: 7416 | I24: 34520 | J24: 19 | K24: 1 | L24: 1 | M24: 7416 | N24: 034520 | O24: 19|01|01 | P24: 1 | Q24: 1 | R24: 2 | S24: 5 | T24: 5 | U24: 01|01|02|05|05 | V24: National | W24: Social Development | X24: Administration | Y24: Ministry | Z24: Non-transfer item | AA24: Current | AB24: Current payments | AC24: Goods and services | AD24: Minor assets | AE24: Minor assets | AF24: Social development | AG24: Social protection | AH24: NAT | AI24: 0 | AJ24: 0 | AK24: 22 | AL24: 26 | AM24: 26 | AN24: 26 | AO24: 26 | AP24: 27 | AQ24: 27 | AR24: 27 | AS24: 28 | AT24: 29 | AU24: 30 | AV24: 1 | AX24: =IF(T_DataComboFile[[#This Row],[G&S reporting level indicator]]=1,$AX$16,"Not applicable") -> Not applicable | AY24: =IF(AND($AX$16="Level 3",T_DataComboFile[[#This Row],[Econ3]] = "Goods and services"),IF(T_DataComboFile[[#This Row],[Econ4]] = T_DataComboFile[[#This Row],[Econ3]],1,0),IF(AND($AX$16="Level 4",T_DataComboFile[[#This Row],[Econ4]] = "Goods and services"),0,1)) -> 0 | AZ24: =T_DataComboFile[[#This Row],[2016/17_Source]]*T_DataComboFile[[#This Row],[G&S reporting level indicator]] -> 0 | BA24: =T_DataComboFile[[#This Row],[2017/18_Source]]*T_DataComboFile[[#This Row],[G&S reporting level indicator]] -> 0 | BB24: =T_DataComboFile[[#This Row],[2018/19_Source]]*T_DataComboFile[[#This Row],[G&S reporting level indicator]] -> 0 | BC24: =T_DataComboFile[[#This Row],[2019/20 Main appropriation_Source]]*T_DataComboFile[[#This Row],[G&S reporting level indicator]] -> 0 | BD24: =T_DataComboFile[[#This Row],[2019/20 Adjusted appropriation_Source]]*T_DataComboFile[[#This Row],[G&S reporting level indicator]] -> 0 | BE24: =T_DataComboFile[[#This Row],[2019/20 Revised estimate_Source]]*T_DataComboFile[[#This Row],[G&S reporting level indicator]] -> 0 | BF24: =T_DataComboFile[[#This Row],[2019/20 Preliminary outcome_Source]]*T_DataComboFile[[#This Row],[G&S reporting level indicator]] -> 0 | BG24: =T_DataComboFile[[#This Row],[2020/21 Original_Source]]*T_DataComboFile[[#This Row],[G&S reporting level indicator]] -> 0 | BH24: =T_DataComboFile[[#This Row],[2020/21 SAB_Source]]*T_DataComboFile[[#This Row],[G&S reporting level indicator]] -> 0 | BI24: =T_DataComboFile[[#This Row],[2020/21 Baseline_Source]]*T_DataComboFile[[#This Row],[G&S reporting level indicator]] -> 0 | BJ24: =T_DataComboFile[[#This Row],[2021/22 Baseline_Source]]*T_DataComboFile[[#This Row],[G&S reporting level indicator]] -> 0 | BK24: =T_DataComboFile[[#This Row],[2022/23 Baseline_Source]]*T_DataComboFile[[#This Row],[G&S reporting level indicator]] -> 0 | BL24: =T_DataComboFile[[#This Row],[2023/24 Baseline_Source]]*T_DataComboFile[[#This Row],[G&S reporting level indicator]] -> 0 | BS24: =T_DataComboFile[[#This Row],[2021/22 Baseline]]+T_DataComboFile[[#This Row],[2021/22 Reduction]]+T_DataComboFile[[#This Row],[2021/22 Increase]] -> 0 | BT24: =T_DataComboFile[[#This Row],[2022/23 Baseline]]+T_DataComboFile[[#This Row],[2022/23 Reduction]]+T_DataComboFile[[#This Row],[2022/23 Increase]] -> 0 | BU24: =T_DataComboFile[[#This Row],[2023/24 Baseline]]+T_DataComboFile[[#This Row],[2023/24 Reduction]]+T_DataComboFile[[#This Row],[2023/24 Increase]] -> 0
C25: 2021_22 | D25: ENE2020 | E25: 19 | F25: 1 | G25: 1 | I25: 34521 | J25: 19 | K25: 1 | L25: 1 | N25: 034521 | O25: 19|01|01 | P25: 1 | Q25: 1 | R25: 2 | S25: 6 | T25: 6 | U25: 01|01|02|06|06 | V25: National | W25: Social Development | X25: Administration | Y25: Ministry | AA25: Current | AB25: Current payments | AC25: Goods and services | AD25: Audit costs: External | AE25: Audit costs: External | AI25: 0 | AJ25: 0 | AK25: 0 | AL25: 0 | AM25: 0 | AN25: 0 | AO25: 0 | AP25: 0 | AQ25: 0 | AR25: 0 | AS25: 0 | AT25: 0 | AU25: 0 | AV25: 0 | AX25: =IF(T_DataComboFile[[#This Row],[G&S reporting level indicator]]=1,$AX$16,"Not applicable") -> Not applicable | AY25: =IF(AND($AX$16="Level 3",T_DataComboFile[[#This Row],[Econ3]] = "Goods and services"),IF(T_DataComboFile[[#This Row],[Econ4]] = T_DataComboFile[[#This Row],[Econ3]],1,0),IF(AND($AX$16="Level 4",T_DataComboFile[[#This Row],[Econ4]] = "Goods and services"),0,1)) -> 0 | AZ25: =T_DataComboFile[[#This Row],[2016/17_Source]]*T_DataComboFile[[#This Row],[G&S reporting level indicator]] -> 0 | BA25: =T_DataComboFile[[#This Row],[2017/18_Source]]*T_DataComboFile[[#This Row],[G&S reporting level indicator]] -> 0 | BB25: =T_DataComboFile[[#This Row],[2018/19_Source]]*T_DataComboFile[[#This Row],[G&S reporting level indicator]] -> 0 | BC25: =T_DataComboFile[[#This Row],[2019/20 Main appropriation_Source]]*T_DataComboFile[[#This Row],[G&S reporting level indicator]] -> 0 | BD25: =T_DataComboFile[[#This Row],[2019/20 Adjusted appropriation_Source]]*T_DataComboFile[[#This Row],[G&S reporting level indicator]] -> 0 | BE25: =T_DataComboFile[[#This Row],[2019/20 Revised estimate_Source]]*T_DataComboFile[[#This Row],[G&S reporting level indicator]] -> 0 | BF25: =T_DataComboFile[[#This Row],[2019/20 Preliminary outcome_Source]]*T_DataComboFile[[#This Row],[G&S reporting level indicator]] -> 0 | BG25: =T_DataComboFile[[#This Row],[2020/21 Original_Source]]*T_DataComboFile[[#This Row],[G&S reporting level indicator]] -> 0 | BH25: =T_DataComboFile[[#This Row],[2020/21 SAB_Source]]*T_DataComboFile[[#This Row],[G&S reporting level indicator]] -> 0 | BI25: =T_DataComboFile[[#This Row],[2020/21 Baseline_Source]]*T_DataComboFile[[#This Row],[G&S reporting level indicator]] -> 0 | BJ25: =T_DataComboFile[[#This Row],[2021/22 Baseline_Source]]*T_DataComboFile[[#This Row],[G&S reporting level indicator]] -> 0 | BK25: =T_DataComboFile[[#This Row],[2022/23 Baseline_Source]]*T_DataComboFile[[#This Row],[G&S reporting level indicator]] -> 0 | BL25: =T_DataComboFile[[#This Row],[2023/24 Baseline_Source]]*T_DataComboFile[[#This Row],[G&S reporting level indicator]] -> 0 | BS25: =T_DataComboFile[[#This Row],[2021/22 Baseline]]+T_DataComboFile[[#This Row],[2021/22 Reduction]]+T_DataComboFile[[#This Row],[2021/22 Increase]] -> 0 | BT25: =T_DataComboFile[[#This Row],[2022/23 Baseline]]+T_DataComboFile[[#This Row],[2022/23 Reduction]]+T_DataComboFile[[#This Row],[2022/23 Increase]] -> 0 | BU25: =T_DataComboFile[[#This Row],[2023/24 Baseline]]+T_DataComboFile[[#This Row],[2023/24 Reduction]]+T_DataComboFile[[#This Row],[2023/24 Increase]] -> 0
C26: 2021_22 | D26: ENE2020 | E26: 19 | F26: 1 | G26: 1 | I26: 34522 | J26: 19 | K26: 1 | L26: 1 | N26: 034522 | O26: 19|01|01 | P26: 1 | Q26: 1 | R26: 2 | S26: 7 | T26: 7 | U26: 01|01|02|07|07 | V26: National | W26: Social Development | X26: Administration | Y26: Ministry | AA26: Current | AB26: Current payments | AC26: Goods and services | AD26: Bursaries: Employees | AE26: Bursaries: Employees | AI26: 0 | AJ26: 0 | AK26: 0 | AL26: 0 | AM26: 0 | AN26: 0 | AO26: 0 | AP26: 0 | AQ26: 0 | AR26: 0 | AS26: 0 | AT26: 0 | AU26: 0 | AV26: 0 | AX26: =IF(T_DataComboFile[[#This Row],[G&S reporting level indicator]]=1,$AX$16,"Not applicable") -> Not applicable | AY26: =IF(AND($AX$16="Level 3",T_DataComboFile[[#This Row],[Econ3]] = "Goods and services"),IF(T_DataComboFile[[#This Row],[Econ4]] = T_DataComboFile[[#This Row],[Econ3]],1,0),IF(AND($AX$16="Level 4",T_DataComboFile[[#This Row],[Econ4]] = "Goods and services"),0,1)) -> 0 | AZ26: =T_DataComboFile[[#This Row],[2016/17_Source]]*T_DataComboFile[[#This Row],[G&S reporting level indicator]] -> 0 | BA26: =T_DataComboFile[[#This Row],[2017/18_Source]]*T_DataComboFile[[#This Row],[G&S reporting level indicator]] -> 0 | BB26: =T_DataComboFile[[#This Row],[2018/19_Source]]*T_DataComboFile[[#This Row],[G&S reporting level indicator]] -> 0 | BC26: =T_DataComboFile[[#This Row],[2019/20 Main appropriation_Source]]*T_DataComboFile[[#This Row],[G&S reporting level indicator]] -> 0 | BD26: =T_DataComboFile[[#This Row],[2019/20 Adjusted appropriation_Source]]*T_DataComboFile[[#This Row],[G&S reporting level indicator]] -> 0 | BE26: =T_DataComboFile[[#This Row],[2019/20 Revised estimate_Source]]*T_DataComboFile[[#This Row],[G&S reporting level indicator]] -> 0 | BF26: =T_DataComboFile[[#This Row],[2019/20 Preliminary outcome_Source]]*T_DataComboFile[[#This Row],[G&S reporting level indicator]] -> 0 | BG26: =T_DataComboFile[[#This Row],[2020/21 Original_Source]]*T_DataComboFile[[#This Row],[G&S reporting level indicator]] -> 0 | BH26: =T_DataComboFile[[#This Row],[2020/21 SAB_Source]]*T_DataComboFile[[#This Row],[G&S reporting level indicator]] -> 0 | BI26: =T_DataComboFile[[#This Row],[2020/21 Baseline_Source]]*T_DataComboFile[[#This Row],[G&S reporting level indicator]] -> 0 | BJ26: =T_DataComboFile[[#This Row],[2021/22 Baseline_Source]]*T_DataComboFile[[#This Row],[G&S reporting level indicator]] -> 0 | BK26: =T_DataComboFile[[#This Row],[2022/23 Baseline_Source]]*T_DataComboFile[[#This Row],[G&S reporting level indicator]] -> 0 | BL26: =T_DataComboFile[[#This Row],[2023/24 Baseline_Source]]*T_DataComboFile[[#This Row],[G&S reporting level indicator]] -> 0 | BS26: =T_DataComboFile[[#This Row],[2021/22 Baseline]]+T_DataComboFile[[#This Row],[2021/22 Reduction]]+T_DataComboFile[[#This Row],[2021/22 Increase]] -> 0 | BT26: =T_DataComboFile[[#This Row],[2022/23 Baseline]]+T_DataComboFile[[#This Row],[2022/23 Reduction]]+T_DataComboFile[[#This Row],[2022/23 Increase]] -> 0 | BU26: =T_DataComboFile[[#This Row],[2023/24 Baseline]]+T_DataComboFile[[#This Row],[2023/24 Reduction]]+T_DataComboFile[[#This Row],[2023/24 Increase]] -> 0
A27: NAT|Non-transfer item | B27: 19|Catering: Departmental activities | C27: 2021_22 | D27: ENE2020 | E27: 19 | F27: 1 | G27: 1 | H27: 7417 | I27: 34523 | J27: 19 | K27: 1 | L27: 1 | M27: 7417 | N27: 034523 | O27: 19|01|01 | P27: 1 | Q27: 1 | R27: 2 | S27: 8 | T27: 8 | U27: 01|01|02|08|08 | V27: National | W27: Social Development | X27: Administration | Y27: Ministry | Z27: Non-transfer item | AA27: Current | AB27: Current payments | AC27: Goods and services | AD27: Catering: Departmental activities | AE27: Catering: Departmental activities | AF27: Social development | AG27: Social protection | AH27: NAT | AI27: 127 | AJ27: 253 | AK27: 169 | AL27: 721 | AM27: 721 | AN27: 721 | AO27: 721 | AP27: 761 | AQ27: 761 | AR27: 761 | AS27: 803 | AT27: 833 | AU27: 870 | AV27: 1 | AX27: =IF(T_DataComboFile[[#This Row],[G&S reporting level indicator]]=1,$AX$16,"Not applicable") -> Not applicable | AY27: =IF(AND($AX$16="Level 3",T_DataComboFile[[#This Row],[Econ3]] = "Goods and services"),IF(T_DataComboFile[[#This Row],[Econ4]] = T_DataComboFile[[#This Row],[Econ3]],1,0),IF(AND($AX$16="Level 4",T_DataComboFile[[#This Row],[Econ4]] = "Goods and services"),0,1)) -> 0 | AZ27: =T_DataComboFile[[#This Row],[2016/17_Source]]*T_DataComboFile[[#This Row],[G&S reporting level indicator]] -> 0 | BA27: =T_DataComboFile[[#This Row],[2017/18_Source]]*T_DataComboFile[[#This Row],[G&S reporting level indicator]] -> 0 | BB27: =T_DataComboFile[[#This Row],[2018/19_Source]]*T_DataComboFile[[#This Row],[G&S reporting level indicator]] -> 0 | BC27: =T_DataComboFile[[#This Row],[2019/20 Main appropriation_Source]]*T_DataComboFile[[#This Row],[G&S reporting level indicator]] -> 0 | BD27: =T_DataComboFile[[#This Row],[2019/20 Adjusted appropriation_Source]]*T_DataComboFile[[#This Row],[G&S reporting level indicator]] -> 0 | BE27: =T_DataComboFile[[#This Row],[2019/20 Revised estimate_Source]]*T_DataComboFile[[#This Row],[G&S reporting level indicator]] -> 0 | BF27: =T_DataComboFile[[#This Row],[2019/20 Preliminary outcome_Source]]*T_DataComboFile[[#This Row],[G&S reporting level indicator]] -> 0 | BG27: =T_DataComboFile[[#This Row],[2020/21 Original_Source]]*T_DataComboFile[[#This Row],[G&S reporting level indicator]] -> 0 | BH27: =T_DataComboFile[[#This Row],[2020/21 SAB_Source]]*T_DataComboFile[[#This Row],[G&S reporting level indicator]] -> 0 | BI27: =T_DataComboFile[[#This Row],[2020/21 Baseline_Source]]*T_DataComboFile[[#This Row],[G&S reporting level indicator]] -> 0 | BJ27: =T_DataComboFile[[#This Row],[2021/22 Baseline_Source]]*T_DataComboFile[[#This Row],[G&S reporting level indicator]] -> 0 | BK27: =T_DataComboFile[[#This Row],[2022/23 Baseline_Source]]*T_DataComboFile[[#This Row],[G&S reporting level indicator]] -> 0 | BL27: =T_DataComboFile[[#This Row],[2023/24 Baseline_Source]]*T_DataComboFile[[#This Row],[G&S reporting level indicator]] -> 0 | BS27: =T_DataComboFile[[#This Row],[2021/22 Baseline]]+T_DataComboFile[[#This Row],[2021/22 Reduction]]+T_DataComboFile[[#This Row],[2021/22 Increase]] -> 0 | BT27: =T_DataComboFile[[#This Row],[2022/23 Baseline]]+T_DataComboFile[[#This Row],[2022/23 Reduction]]+T_DataComboFile[[#This Row],[2022/23 Increase]] -> 0 | BU27: =T_DataComboFile[[#This Row],[2023/24 Baseline]]+T_DataComboFile[[#This Row],[2023/24 Reduction]]+T_DataComboFile[[#This Row],[2023/24 Increase]] -> 0
A28: NAT|Non-transfer item | B28: 19|Communication (G&S) | C28: 2021_22 | D28: ENE2020 | E28: 19 | F28: 1 | G28: 1 | H28: 7418 | I28: 34524 | J28: 19 | K28: 1 | L28: 1 | M28: 7418 | N28: 034524 | O28: 19|01|01 | P28: 1 | Q28: 1 | R28: 2 | S28: 9 | T28: 9 | U28: 01|01|02|09|09 | V28: National | W28: Social Development | X28: Administration | Y28: Ministry | Z28: Non-transfer item | AA28: Current | AB28: Current payments | AC28: Goods and services | AD28: Communication (G&S) | AE28: Communication (G&S) | AF28: Social development | AG28: Social protection | AH28: NAT | AI28: 2933 | AJ28: 2307 | AK28: 581 | AL28: 1808 | AM28: 1808 | AN28: 1808 | AO28: 1808 | AP28: 1907 | AQ28: 1907 | AR28: 1907 | AS28: 2024 | AT28: 2099 | AU28: 2192 | AV28: 1 | AX28: =IF(T_DataComboFile[[#This Row],[G&S reporting level indicator]]=1,$AX$16,"Not applicable") -> Not applicable | AY28: =IF(AND($AX$16="Level 3",T_DataComboFile[[#This Row],[Econ3]] = "Goods and services"),IF(T_DataComboFile[[#This Row],[Econ4]] = T_DataComboFile[[#This Row],[Econ3]],1,0),IF(AND($AX$16="Level 4",T_DataComboFile[[#This Row],[Econ4]] = "Goods and services"),0,1)) -> 0 | AZ28: =T_DataComboFile[[#This Row],[2016/17_Source]]*T_DataComboFile[[#This Row],[G&S reporting level indicator]] -> 0 | BA28: =T_DataComboFile[[#This Row],[2017/18_Source]]*T_DataComboFile[[#This Row],[G&S reporting level indicator]] -> 0 | BB28: =T_DataComboFile[[#This Row],[2018/19_Source]]*T_DataComboFile[[#This Row],[G&S reporting level indicator]] -> 0 | BC28: =T_DataComboFile[[#This Row],[2019/20 Main appropriation_Source]]*T_DataComboFile[[#This Row],[G&S reporting level indicator]] -> 0 | BD28: =T_DataComboFile[[#This Row],[2019/20 Adjusted appropriation_Source]]*T_DataComboFile[[#This Row],[G&S reporting level indicator]] -> 0 | BE28: =T_DataComboFile[[#This Row],[2019/20 Revised estimate_Source]]*T_DataComboFile[[#This Row],[G&S reporting level indicator]] -> 0 | BF28: =T_DataComboFile[[#This Row],[2019/20 Preliminary outcome_Source]]*T_DataComboFile[[#This Row],[G&S reporting level indicator]] -> 0 | BG28: =T_DataComboFile[[#This Row],[2020/21 Original_Source]]*T_DataComboFile[[#This Row],[G&S reporting level indicator]] -> 0 | BH28: =T_DataComboFile[[#This Row],[2020/21 SAB_Source]]*T_DataComboFile[[#This Row],[G&S reporting level indicator]] -> 0 | BI28: =T_DataComboFile[[#This Row],[2020/21 Baseline_Source]]*T_DataComboFile[[#This Row],[G&S reporting level indicator]] -> 0 | BJ28: =T_DataComboFile[[#This Row],[2021/22 Baseline_Source]]*T_DataComboFile[[#This Row],[G&S reporting level indicator]] -> 0 | BK28: =T_DataComboFile[[#This Row],[2022/23 Baseline_Source]]*T_DataComboFile[[#This Row],[G&S reporting level indicator]] -> 0 | BL28: =T_DataComboFile[[#This Row],[2023/24 Baseline_Source]]*T_DataComboFile[[#This Row],[G&S reporting level indicator]] -> 0 | BS28: =T_DataComboFile[[#This Row],[2021/22 Baseline]]+T_DataComboFile[[#This Row],[2021/22 Reduction]]+T_DataComboFile[[#This Row],[2021/22 Increase]] -> 0 | BT28: =T_DataComboFile[[#This Row],[2022/23 Baseline]]+T_DataComboFile[[#This Row],[2022/23 Reduction]]+T_DataComboFile[[#This Row],[2022/23 Increase]] -> 0 | BU28: =T_DataComboFile[[#This Row],[2023/24 Baseline]]+T_DataComboFile[[#This Row],[2023/24 Reduction]]+T_DataComboFile[[#This Row],[2023/24 Increase]] -> 0
C29: 2021_22 | D29: ENE2020 | E29: 19 | F29: 1 | G29: 1 | I29: 34525 | J29: 19 | K29: 1 | L29: 1 | N29: 034525 | O29: 19|01|01 | P29: 1 | Q29: 1 | R29: 2 | S29: 10 | T29: 10 | U29: 01|01|02|10|10 | V29: National | W29: Social Development | X29: Administration | Y29: Ministry | AA29: Current | AB29: Current payments | AC29: Goods and services | AD29: Computer services | AE29: Computer services | AI29: 0 | AJ29: 0 | AK29: 0 | AL29: 0 | AM29: 0 | AN29: 0 | AO29: 0 | AP29: 0 | AQ29: 0 | AR29: 0 | AS29: 0 | AT29: 0 | AU29: 0 | AV29: 0 | AX29: =IF(T_DataComboFile[[#This Row],[G&S reporting level indicator]]=1,$AX$16,"Not applicable") -> Not applicable | AY29: =IF(AND($AX$16="Level 3",T_DataComboFile[[#This Row],[Econ3]] = "Goods and services"),IF(T_DataComboFile[[#This Row],[Econ4]] = T_DataComboFile[[#This Row],[Econ3]],1,0),IF(AND($AX$16="Level 4",T_DataComboFile[[#This Row],[Econ4]] = "Goods and services"),0,1)) -> 0 | AZ29: =T_DataComboFile[[#This Row],[2016/17_Source]]*T_DataComboFile[[#This Row],[G&S reporting level indicator]] -> 0 | BA29: =T_DataComboFile[[#This Row],[2017/18_Source]]*T_DataComboFile[[#This Row],[G&S reporting level indicator]] -> 0 | BB29: =T_DataComboFile[[#This Row],[2018/19_Source]]*T_DataComboFile[[#This Row],[G&S reporting level indicator]] -> 0 | BC29: =T_DataComboFile[[#This Row],[2019/20 Main appropriation_Source]]*T_DataComboFile[[#This Row],[G&S reporting level indicator]] -> 0 | BD29: =T_DataComboFile[[#This Row],[2019/20 Adjusted appropriation_Source]]*T_DataComboFile[[#This Row],[G&S reporting level indicator]] -> 0 | BE29: =T_DataComboFile[[#This Row],[2019/20 Revised estimate_Source]]*T_DataComboFile[[#This Row],[G&S reporting level indicator]] -> 0 | BF29: =T_DataComboFile[[#This Row],[2019/20 Preliminary outcome_Source]]*T_DataComboFile[[#This Row],[G&S reporting level indicator]] -> 0 | BG29: =T_DataComboFile[[#This Row],[2020/21 Original_Source]]*T_DataComboFile[[#This Row],[G&S reporting level indicator]] -> 0 | BH29: =T_DataComboFile[[#This Row],[2020/21 SAB_Source]]*T_DataComboFile[[#This Row],[G&S reporting level indicator]] -> 0 | BI29: =T_DataComboFile[[#This Row],[2020/21 Baseline_Source]]*T_DataComboFile[[#This Row],[G&S reporting level indicator]] -> 0 | BJ29: =T_DataComboFile[[#This Row],[2021/22 Baseline_Source]]*T_DataComboFile[[#This Row],[G&S reporting level indicator]] -> 0 | BK29: =T_DataComboFile[[#This Row],[2022/23 Baseline_Source]]*T_DataComboFile[[#This Row],[G&S reporting level indicator]] -> 0 | BL29: =T_DataComboFile[[#This Row],[2023/24 Baseline_Source]]*T_DataComboFile[[#This Row],[G&S reporting level indicator]] -> 0 | BS29: =T_DataComboFile[[#This Row],[2021/22 Baseline]]+T_DataComboFile[[#This Row],[2021/22 Reduction]]+T_DataComboFile[[#This Row],[2021/22 Increase]] -> 0 | BT29: =T_DataComboFile[[#This Row],[2022/23 Baseline]]+T_DataComboFile[[#This Row],[2022/23 Reduction]]+T_DataComboFile[[#This Row],[2022/23 Increase]] -> 0 | BU29: =T_DataComboFile[[#This Row],[2023/24 Baseline]]+T_DataComboFile[[#This Row],[2023/24 Reduction]]+T_DataComboFile[[#This Row],[2023/24 Increase]] -> 0
A30: NAT|Non-transfer item | B30: 19|Consultants: Business and advisory services | C30: 2021_22 | D30: ENE2020 | E30: 19 | F30: 1 | G30: 1 | H30: 7419 | I30: 34526 | J30: 19 | K30: 1 | L30: 1 | M30: 7419 | N30: 034526 | O30: 19|01|01 | P30: 1 | Q30: 1 | R30: 2 | S30: 11 | T30: 11 | U30: 01|01|02|11|11 | V30: National | W30: Social Development | X30: Administration | Y30: Ministry | Z30: Non-transfer item | AA30: Current | AB30: Current payments | AC30: Goods and services | AD30: Consultants: Business and advisory services | AE30: Consultants: Business and advisory services | AF30: Social development | AG30: Social protection | AH30: NAT | AI30: 68 | AJ30: 29 | AK30: 0 | AL30: 1111 | AM30: 1111 | AN30: 1111 | AO30: 1111 | AP30: 1172 | AQ30: 1172 | AR30: 1172 | AS30: 1236 | AT30: 1282 | AU30: 1339 | AV30: 1 | AX30: =IF(T_DataComboFile[[#This Row],[G&S reporting level indicator]]=1,$AX$16,"Not applicable") -> Not applicable | AY30: =IF(AND($AX$16="Level 3",T_DataComboFile[[#This Row],[Econ3]] = "Goods and services"),IF(T_DataComboFile[[#This Row],[Econ4]] = T_DataComboFile[[#This Row],[Econ3]],1,0),IF(AND($AX$16="Level 4",T_DataComboFile[[#This Row],[Econ4]] = "Goods and services"),0,1)) -> 0 | AZ30: =T_DataComboFile[[#This Row],[2016/17_Source]]*T_DataComboFile[[#This Row],[G&S reporting level indicator]] -> 0 | BA30: =T_DataComboFile[[#This Row],[2017/18_Source]]*T_DataComboFile[[#This Row],[G&S reporting level indicator]] -> 0 | BB30: =T_DataComboFile[[#This Row],[2018/19_Source]]*T_DataComboFile[[#This Row],[G&S reporting level indicator]] -> 0 | BC30: =T_DataComboFile[[#This Row],[2019/20 Main appropriation_Source]]*T_DataComboFile[[#This Row],[G&S reporting level indicator]] -> 0 | BD30: =T_DataComboFile[[#This Row],[2019/20 Adjusted appropriation_Source]]*T_DataComboFile[[#This Row],[G&S reporting level indicator]] -> 0 | BE30: =T_DataComboFile[[#This Row],[2019/20 Revised estimate_Source]]*T_DataComboFile[[#This Row],[G&S reporting level indicator]] -> 0 | BF30: =T_DataComboFile[[#This Row],[2019/20 Preliminary outcome_Source]]*T_DataComboFile[[#This Row],[G&S reporting level indicator]] -> 0 | BG30: =T_DataComboFile[[#This Row],[2020/21 Original_Source]]*T_DataComboFile[[#This Row],[G&S reporting level indicator]] -> 0 | BH30: =T_DataComboFile[[#This Row],[2020/21 SAB_Source]]*T_DataComboFile[[#This Row],[G&S reporting level indicator]] -> 0 | BI30: =T_DataComboFile[[#This Row],[2020/21 Baseline_Source]]*T_DataComboFile[[#This Row],[G&S reporting level indicator]] -> 0 | BJ30: =T_DataComboFile[[#This Row],[2021/22 Baseline_Source]]*T_DataComboFile[[#This Row],[G&S reporting level indicator]] -> 0 | BK30: =T_DataComboFile[[#This Row],[2022/23 Baseline_Source]]*T_DataComboFile[[#This Row],[G&S reporting level indicator]] -> 0 | BL30: =T_DataComboFile[[#This Row],[2023/24 Baseline_Source]]*T_DataComboFile[[#This Row],[G&S reporting level indicator]] -> 0 | BS30: =T_DataComboFile[[#This Row],[2021/22 Baseline]]+T_DataComboFile[[#This Row],[2021/22 Reduction]]+T_DataComboFile[[#This Row],[2021/22 Increase]] -> 0 | BT30: =T_DataComboFile[[#This Row],[2022/23 Baseline]]+T_DataComboFile[[#This Row],[2022/23 Reduction]]+T_DataComboFile[[#This Row],[2022/23 Increase]] -> 0 | BU30: =T_DataComboFile[[#This Row],[2023/24 Baseline]]+T_DataComboFile[[#This Row],[2023/24 Reduction]]+T_DataComboFile[[#This Row],[2023/24 Increase]] -> 0
C31: 2021_22 | D31: ENE2020 | E31: 19 | F31: 1 | G31: 1 | I31: 34527 | J31: 19 | K31: 1 | L31: 1 | N31: 034527 | O31: 19|01|01 | P31: 1 | Q31: 1 | R31: 2 | S31: 12 | T31: 12 | U31: 01|01|02|12|12 | V31: National | W31: Social Development | X31: Administration | Y31: Ministry | AA31: Current | AB31: Current payments | AC31: Goods and services | AD31: Infrastructure and planning services | AE31: Infrastructure and planning services | AI31: 0 | AJ31: 0 | AK31: 0 | AL31: 0 | AM31: 0 | AN31: 0 | AO31: 0 | AP31: 0 | AQ31: 0 | AR31: 0 | AS31: 0 | AT31: 0 | AU31: 0 | AV31: 0 | AX31: =IF(T_DataComboFile[[#This Row],[G&S reporting level indicator]]=1,$AX$16,"Not applicable") -> Not applicable | AY31: =IF(AND($AX$16="Level 3",T_DataComboFile[[#This Row],[Econ3]] = "Goods and services"),IF(T_DataComboFile[[#This Row],[Econ4]] = T_DataComboFile[[#This Row],[Econ3]],1,0),IF(AND($AX$16="Level 4",T_DataComboFile[[#This Row],[Econ4]] = "Goods and services"),0,1)) -> 0 | AZ31: =T_DataComboFile[[#This Row],[2016/17_Source]]*T_DataComboFile[[#This Row],[G&S reporting level indicator]] -> 0 | BA31: =T_DataComboFile[[#This Row],[2017/18_Source]]*T_DataComboFile[[#This Row],[G&S reporting level indicator]] -> 0 | BB31: =T_DataComboFile[[#This Row],[2018/19_Source]]*T_DataComboFile[[#This Row],[G&S reporting level indicator]] -> 0 | BC31: =T_DataComboFile[[#This Row],[2019/20 Main appropriation_Source]]*T_DataComboFile[[#This Row],[G&S reporting level indicator]] -> 0 | BD31: =T_DataComboFile[[#This Row],[2019/20 Adjusted appropriation_Source]]*T_DataComboFile[[#This Row],[G&S reporting level indicator]] -> 0 | BE31: =T_DataComboFile[[#This Row],[2019/20 Revised estimate_Source]]*T_DataComboFile[[#This Row],[G&S reporting level indicator]] -> 0 | BF31: =T_DataComboFile[[#This Row],[2019/20 Preliminary outcome_Source]]*T_DataComboFile[[#This Row],[G&S reporting level indicator]] -> 0 | BG31: =T_DataComboFile[[#This Row],[2020/21 Original_Source]]*T_DataComboFile[[#This Row],[G&S reporting level indicator]] -> 0 | BH31: =T_DataComboFile[[#This Row],[2020/21 SAB_Source]]*T_DataComboFile[[#This Row],[G&S reporting level indicator]] -> 0 | BI31: =T_DataComboFile[[#This Row],[2020/21 Baseline_Source]]*T_DataComboFile[[#This Row],[G&S reporting level indicator]] -> 0 | BJ31: =T_DataComboFile[[#This Row],[2021/22 Baseline_Source]]*T_DataComboFile[[#This Row],[G&S reporting level indicator]] -> 0 | BK31: =T_DataComboFile[[#This Row],[2022/23 Baseline_Source]]*T_DataComboFile[[#This Row],[G&S reporting level indicator]] -> 0 | BL31: =T_DataComboFile[[#This Row],[2023/24 Baseline_Source]]*T_DataComboFile[[#This Row],[G&S reporting level indicator]] -> 0 | BS31: =T_DataComboFile[[#This Row],[2021/22 Baseline]]+T_DataComboFile[[#This Row],[2021/22 Reduction]]+T_DataComboFile[[#This Row],[2021/22 Increase]] -> 0 | BT31: =T_DataComboFile[[#This Row],[2022/23 Baseline]]+T_DataComboFile[[#This Row],[2022/23 Reduction]]+T_DataComboFile[[#This Row],[2022/23 Increase]] -> 0 | BU31: =T_DataComboFile[[#This Row],[2023/24 Baseline]]+T_DataComboFile[[#This Row],[2023/24 Reduction]]+T_DataComboFile[[#This Row],[2023/24 Increase]] -> 0
C32: 2021_22 | D32: ENE2020 | E32: 19 | F32: 1 | G32: 1 | I32: 34528 | J32: 19 | K32: 1 | L32: 1 | N32: 034528 | O32: 19|01|01 | P32: 1 | Q32: 1 | R32: 2 | S32: 13 | T32: 13 | U32: 01|01|02|13|13 | V32: National | W32: Social Development | X32: Administration | Y32: Ministry | AA32: Current | AB32: Current payments | AC32: Goods and services | AD32: Laboratory services | AE32: Laboratory services | AI32: 0 | AJ32: 0 | AK32: 0 | AL32: 0 | AM32: 0 | AN32: 0 | AO32: 0 | AP32: 0 | AQ32: 0 | AR32: 0 | AS32: 0 | AT32: 0 | AU32: 0 | AV32: 0 | AX32: =IF(T_DataComboFile[[#This Row],[G&S reporting level indicator]]=1,$AX$16,"Not applicable") -> Not applicable | AY32: =IF(AND($AX$16="Level 3",T_DataComboFile[[#This Row],[Econ3]] = "Goods and services"),IF(T_DataComboFile[[#This Row],[Econ4]] = T_DataComboFile[[#This Row],[Econ3]],1,0),IF(AND($AX$16="Level 4",T_DataComboFile[[#This Row],[Econ4]] = "Goods and services"),0,1)) -> 0 | AZ32: =T_DataComboFile[[#This Row],[2016/17_Source]]*T_DataComboFile[[#This Row],[G&S reporting level indicator]] -> 0 | BA32: =T_DataComboFile[[#This Row],[2017/18_Source]]*T_DataComboFile[[#This Row],[G&S reporting level indicator]] -> 0 | BB32: =T_DataComboFile[[#This Row],[2018/19_Source]]*T_DataComboFile[[#This Row],[G&S reporting level indicator]] -> 0 | BC32: =T_DataComboFile[[#This Row],[2019/20 Main appropriation_Source]]*T_DataComboFile[[#This Row],[G&S reporting level indicator]] -> 0 | BD32: =T_DataComboFile[[#This Row],[2019/20 Adjusted appropriation_Source]]*T_DataComboFile[[#This Row],[G&S reporting level indicator]] -> 0 | BE32: =T_DataComboFile[[#This Row],[2019/20 Revised estimate_Source]]*T_DataComboFile[[#This Row],[G&S reporting level indicator]] -> 0 | BF32: =T_DataComboFile[[#This Row],[2019/20 Preliminary outcome_Source]]*T_DataComboFile[[#This Row],[G&S reporting level indicator]] -> 0 | BG32: =T_DataComboFile[[#This Row],[2020/21 Original_Source]]*T_DataComboFile[[#This Row],[G&S reporting level indicator]] -> 0 | BH32: =T_DataComboFile[[#This Row],[2020/21 SAB_Source]]*T_DataComboFile[[#This Row],[G&S reporting level indicator]] -> 0 | BI32: =T_DataComboFile[[#This Row],[2020/21 Baseline_Source]]*T_DataComboFile[[#This Row],[G&S reporting level indicator]] -> 0 | BJ32: =T_DataComboFile[[#This Row],[2021/22 Baseline_Source]]*T_DataComboFile[[#This Row],[G&S reporting level indicator]] -> 0 | BK32: =T_DataComboFile[[#This Row],[2022/23 Baseline_Source]]*T_DataComboFile[[#This Row],[G&S reporting level indicator]] -> 0 | BL32: =T_DataComboFile[[#This Row],[2023/24 Baseline_Source]]*T_DataComboFile[[#This Row],[G&S reporting level indicator]] -> 0 | BS32: =T_DataComboFile[[#This Row],[2021/22 Baseline]]+T_DataComboFile[[#This Row],[2021/22 Reduction]]+T_DataComboFile[[#This Row],[2021/22 Increase]] -> 0 | BT32: =T_DataComboFile[[#This Row],[2022/23 Baseline]]+T_DataComboFile[[#This Row],[2022/23 Reduction]]+T_DataComboFile[[#This Row],[2022/23 Increase]] -> 0 | BU32: =T_DataComboFile[[#This Row],[2023/24 Baseline]]+T_DataComboFile[[#This Row],[2023/24 Reduction]]+T_DataComboFile[[#This Row],[2023/24 Increase]] -> 0
A33: NAT|Non-transfer item | B33: 19|Legal services (G&S) | C33: 2021_22 | D33: ENE2020 | E33: 19 | F33: 1 | G33: 1 | H33: 7420 | I33: 34529 | J33: 19 | K33: 1 | L33: 1 | M33: 7420 | N33: 034529 | O33: 19|01|01 | P33: 1 | Q33: 1 | R33: 2 | S33: 14 | T33: 14 | U33: 01|01|02|14|14 | V33: National | W33: Social Development | X33: Administration | Y33: Ministry | Z33: Non-transfer item | AA33: Current | AB33: Current payments | AC33: Goods and services | AD33: Legal services (G&S) | AE33: Legal services (G&S) | AF33: Social development | AG33: Social protection | AH33: NAT | AI33: 0 | AJ33: 1191 | AK33: 0 | AL33: 0 | AM33: 0 | AN33: 0 | AO33: 0 | AP33: 0 | AQ33: 0 | AR33: 0 | AS33: 0 | AT33: 0 | AU33: 0 | AV33: 1 | AX33: =IF(T_DataComboFile[[#This Row],[G&S reporting level indicator]]=1,$AX$16,"Not applicable") -> Not applicable | AY33: =IF(AND($AX$16="Level 3",T_DataComboFile[[#This Row],[Econ3]] = "Goods and services"),IF(T_DataComboFile[[#This Row],[Econ4]] = T_DataComboFile[[#This Row],[Econ3]],1,0),IF(AND($AX$16="Level 4",T_DataComboFile[[#This Row],[Econ4]] = "Goods and services"),0,1)) -> 0 | AZ33: =T_DataComboFile[[#This Row],[2016/17_Source]]*T_DataComboFile[[#This Row],[G&S reporting level indicator]] -> 0 | BA33: =T_DataComboFile[[#This Row],[2017/18_Source]]*T_DataComboFile[[#This Row],[G&S reporting level indicator]] -> 0 | BB33: =T_DataComboFile[[#This Row],[2018/19_Source]]*T_DataComboFile[[#This Row],[G&S reporting level indicator]] -> 0 | BC33: =T_DataComboFile[[#This Row],[2019/20 Main appropriation_Source]]*T_DataComboFile[[#This Row],[G&S reporting level indicator]] -> 0 | BD33: =T_DataComboFile[[#This Row],[2019/20 Adjusted appropriation_Source]]*T_DataComboFile[[#This Row],[G&S reporting level indicator]] -> 0 | BE33: =T_DataComboFile[[#This Row],[2019/20 Revised estimate_Source]]*T_DataComboFile[[#This Row],[G&S reporting level indicator]] -> 0 | BF33: =T_DataComboFile[[#This Row],[2019/20 Preliminary outcome_Source]]*T_DataComboFile[[#This Row],[G&S reporting level indicator]] -> 0 | BG33: =T_DataComboFile[[#This Row],[2020/21 Original_Source]]*T_DataComboFile[[#This Row],[G&S reporting level indicator]] -> 0 | BH33: =T_DataComboFile[[#This Row],[2020/21 SAB_Source]]*T_DataComboFile[[#This Row],[G&S reporting level indicator]] -> 0 | BI33: =T_DataComboFile[[#This Row],[2020/21 Baseline_Source]]*T_DataComboFile[[#This Row],[G&S reporting level indicator]] -> 0 | BJ33: =T_DataComboFile[[#This Row],[2021/22 Baseline_Source]]*T_DataComboFile[[#This Row],[G&S reporting level indicator]] -> 0 | BK33: =T_DataComboFile[[#This Row],[2022/23 Baseline_Source]]*T_DataComboFile[[#This Row],[G&S reporting level indicator]] -> 0 | BL33: =T_DataComboFile[[#This Row],[2023/24 Baseline_Source]]*T_DataComboFile[[#This Row],[G&S reporting level indicator]] -> 0 | BS33: =T_DataComboFile[[#This Row],[2021/22 Baseline]]+T_DataComboFile[[#This Row],[2021/22 Reduction]]+T_DataComboFile[[#This Row],[2021/22 Increase]] -> 0 | BT33: =T_DataComboFile[[#This Row],[2022/23 Baseline]]+T_DataComboFile[[#This Row],[2022/23 Reduction]]+T_DataComboFile[[#This Row],[2022/23 Increase]] -> 0 | BU33: =T_DataComboFile[[#This Row],[2023/24 Baseline]]+T_DataComboFile[[#This Row],[2023/24 Reduction]]+T_DataComboFile[[#This Row],[2023/24 Increase]] -> 0
C34: 2021_22 | D34: ENE2020 | E34: 19 | F34: 1 | G34: 1 | I34: 34530 | J34: 19 | K34: 1 | L34: 1 | N34: 034530 | O34: 19|01|01 | P34: 1 | Q34: 1 | R34: 2 | S34: 15 | T34: 15 | U34: 01|01|02|15|15 | V34: National | W34: Social Development | X34: Administration | Y34: Ministry | AA34: Current | AB34: Current payments | AC34: Goods and services | AD34: Science and technological services | AE34: Science and technological services | AI34: 0 | AJ34: 0 | AK34: 0 | AL34: 0 | AM34: 0 | AN34: 0 | AO34: 0 | AP34: 0 | AQ34: 0 | AR34: 0 | AS34: 0 | AT34: 0 | AU34: 0 | AV34: 0 | AX34: =IF(T_DataComboFile[[#This Row],[G&S reporting level indicator]]=1,$AX$16,"Not applicable") -> Not applicable | AY34: =IF(AND($AX$16="Level 3",T_DataComboFile[[#This Row],[Econ3]] = "Goods and services"),IF(T_DataComboFile[[#This Row],[Econ4]] = T_DataComboFile[[#This Row],[Econ3]],1,0),IF(AND($AX$16="Level 4",T_DataComboFile[[#This Row],[Econ4]] = "Goods and services"),0,1)) -> 0 | AZ34: =T_DataComboFile[[#This Row],[2016/17_Source]]*T_DataComboFile[[#This Row],[G&S reporting level indicator]] -> 0 | BA34: =T_DataComboFile[[#This Row],[2017/18_Source]]*T_DataComboFile[[#This Row],[G&S reporting level indicator]] -> 0 | BB34: =T_DataComboFile[[#This Row],[2018/19_Source]]*T_DataComboFile[[#This Row],[G&S reporting level indicator]] -> 0 | BC34: =T_DataComboFile[[#This Row],[2019/20 Main appropriation_Source]]*T_DataComboFile[[#This Row],[G&S reporting level indicator]] -> 0 | BD34: =T_DataComboFile[[#This Row],[2019/20 Adjusted appropriation_Source]]*T_DataComboFile[[#This Row],[G&S reporting level indicator]] -> 0 | BE34: =T_DataComboFile[[#This Row],[2019/20 Revised estimate_Source]]*T_DataComboFile[[#This Row],[G&S reporting level indicator]] -> 0 | BF34: =T_DataComboFile[[#This Row],[2019/20 Preliminary outcome_Source]]*T_DataComboFile[[#This Row],[G&S reporting level indicator]] -> 0 | BG34: =T_DataComboFile[[#This Row],[2020/21 Original_Source]]*T_DataComboFile[[#This Row],[G&S reporting level indicator]] -> 0 | BH34: =T_DataComboFile[[#This Row],[2020/21 SAB_Source]]*T_DataComboFile[[#This Row],[G&S reporting level indicator]] -> 0 | BI34: =T_DataComboFile[[#This Row],[2020/21 Baseline_Source]]*T_DataComboFile[[#This Row],[G&S reporting level indicator]] -> 0 | BJ34: =T_DataComboFile[[#This Row],[2021/22 Baseline_Source]]*T_DataComboFile[[#This Row],[G&S reporting level indicator]] -> 0 | BK34: =T_DataComboFile[[#This Row],[2022/23 Baseline_Source]]*T_DataComboFile[[#This Row],[G&S reporting level indicator]] -> 0 | BL34: =T_DataComboFile[[#This Row],[2023/24 Baseline_Source]]*T_DataComboFile[[#This Row],[G&S reporting level indicator]] -> 0 | BS34: =T_DataComboFile[[#This Row],[2021/22 Baseline]]+T_DataComboFile[[#This Row],[2021/22 Reduction]]+T_DataComboFile[[#This Row],[2021/22 Increase]] -> 0 | BT34: =T_DataComboFile[[#This Row],[2022/23 Baseline]]+T_DataComboFile[[#This Row],[2022/23 Reduction]]+T_DataComboFile[[#This Row],[2022/23 Increase]] -> 0 | BU34: =T_DataComboFile[[#This Row],[2023/24 Baseline]]+T_DataComboFile[[#This Row],[2023/24 Reduction]]+T_DataComboFile[[#This Row],[2023/24 Increase]] -> 0
A35: NAT|Non-transfer item | B35: 19|Contractors | C35: 2021_22 | D35: ENE2020 | E35: 19 | F35: 1 | G35: 1 | H35: 7421 | I35: 34531 | J35: 19 | K35: 1 | L35: 1 | M35: 7421 | N35: 034531 | O35: 19|01|01 | P35: 1 | Q35: 1 | R35: 2 | S35: 16 | T35: 16 | U35: 01|01|02|16|16 | V35: National | W35: Social Development | X35: Administration | Y35: Ministry | Z35: Non-transfer item | AA35: Current | AB35: Current payments | AC35: Goods and services | AD35: Contractors | AE35: Contractors | AF35: Social development | AG35: Social protection | AH35: NAT | AI35: 32 | AJ35: 0 | AK35: 0 | AL35: 193 | AM35: 193 | AN35: 193 | AO35: 193 | AP35: 204 | AQ35: 204 | AR35: 204 | AS35: 215 | AT35: 223 | AU35: 233 | AV35: 1 | AX35: =IF(T_DataComboFile[[#This Row],[G&S reporting level indicator]]=1,$AX$16,"Not applicable") -> Not applicable | AY35: =IF(AND($AX$16="Level 3",T_DataComboFile[[#This Row],[Econ3]] = "Goods and services"),IF(T_DataComboFile[[#This Row],[Econ4]] = T_DataComboFile[[#This Row],[Econ3]],1,0),IF(AND($AX$16="Level 4",T_DataComboFile[[#This Row],[Econ4]] = "Goods and services"),0,1)) -> 0 | AZ35: =T_DataComboFile[[#This Row],[2016/17_Source]]*T_DataComboFile[[#This Row],[G&S reporting level indicator]] -> 0 | BA35: =T_DataComboFile[[#This Row],[2017/18_Source]]*T_DataComboFile[[#This Row],[G&S reporting level indicator]] -> 0 | BB35: =T_DataComboFile[[#This Row],[2018/19_Source]]*T_DataComboFile[[#This Row],[G&S reporting level indicator]] -> 0 | BC35: =T_DataComboFile[[#This Row],[2019/20 Main appropriation_Source]]*T_DataComboFile[[#This Row],[G&S reporting level indicator]] -> 0 | BD35: =T_DataComboFile[[#This Row],[2019/20 Adjusted appropriation_Source]]*T_DataComboFile[[#This Row],[G&S reporting level indicator]] -> 0 | BE35: =T_DataComboFile[[#This Row],[2019/20 Revised estimate_Source]]*T_DataComboFile[[#This Row],[G&S reporting level indicator]] -> 0 | BF35: =T_DataComboFile[[#This Row],[2019/20 Preliminary outcome_Source]]*T_DataComboFile[[#This Row],[G&S reporting level indicator]] -> 0 | BG35: =T_DataComboFile[[#This Row],[2020/21 Original_Source]]*T_DataComboFile[[#This Row],[G&S reporting level indicator]] -> 0 | BH35: =T_DataComboFile[[#This Row],[2020/21 SAB_Source]]*T_DataComboFile[[#This Row],[G&S reporting level indicator]] -> 0 | BI35: =T_DataComboFile[[#This Row],[2020/21 Baseline_Source]]*T_DataComboFile[[#This Row],[G&S reporting level indicator]] -> 0 | BJ35: =T_DataComboFile[[#This Row],[2021/22 Baseline_Source]]*T_DataComboFile[[#This Row],[G&S reporting level indicator]] -> 0 | BK35: =T_DataComboFile[[#This Row],[2022/23 Baseline_Source]]*T_DataComboFile[[#This Row],[G&S reporting level indicator]] -> 0 | BL35: =T_DataComboFile[[#This Row],[2023/24 Baseline_Source]]*T_DataComboFile[[#This Row],[G&S reporting level indicator]] -> 0 | BS35: =T_DataComboFile[[#This Row],[2021/22 Baseline]]+T_DataComboFile[[#This Row],[2021/22 Reduction]]+T_DataComboFile[[#This Row],[2021/22 Increase]] -> 0 | BT35: =T_DataComboFile[[#This Row],[2022/23 Baseline]]+T_DataComboFile[[#This Row],[2022/23 Reduction]]+T_DataComboFile[[#This Row],[2022/23 Increase]] -> 0 | BU35: =T_DataComboFile[[#This Row],[2023/24 Baseline]]+T_DataComboFile[[#This Row],[2023/24 Reduction]]+T_DataComboFile[[#This Row],[2023/24 Increase]] -> 0
A36: NAT|Non-transfer item | B36: 19|Agency and support/outsourced services | C36: 2021_22 | D36: ENE2020 | E36: 19 | F36: 1 | G36: 1 | H36: 7422 | I36: 34532 | J36: 19 | K36: 1 | L36: 1 | M36: 7422 | N36: 034532 | O36: 19|01|01 | P36: 1 | Q36: 1 | R36: 2 | S36: 17 | T36: 17 | U36: 01|01|02|17|17 | V36: National | W36: Social Development | X36: Administration | Y36: Ministry | Z36: Non-transfer item | AA36: Current | AB36: Current payments | AC36: Goods and services | AD36: Agency and support/outsourced services | AE36: Agency and support/outsourced services | AF36: Social development | AG36: Social protection | AH36: NAT | AI36: 0 | AJ36: 0 | AK36: 1 | AL36: 0 | AM36: 0 | AN36: 0 | AO36: 0 | AP36: 0 | AQ36: 0 | AR36: 0 | AS36: 0 | AT36: 0 | AU36: 0 | AV36: 1 | AX36: =IF(T_DataComboFile[[#This Row],[G&S reporting level indicator]]=1,$AX$16,"Not applicable") -> Not applicable | AY36: =IF(AND($AX$16="Level 3",T_DataComboFile[[#This Row],[Econ3]] = "Goods and services"),IF(T_DataComboFile[[#This Row],[Econ4]] = T_DataComboFile[[#This Row],[Econ3]],1,0),IF(AND($AX$16="Level 4",T_DataComboFile[[#This Row],[Econ4]] = "Goods and services"),0,1)) -> 0 | AZ36: =T_DataComboFile[[#This Row],[2016/17_Source]]*T_DataComboFile[[#This Row],[G&S reporting level indicator]] -> 0 | BA36: =T_DataComboFile[[#This Row],[2017/18_Source]]*T_DataComboFile[[#This Row],[G&S reporting level indicator]] -> 0 | BB36: =T_DataComboFile[[#This Row],[2018/19_Source]]*T_DataComboFile[[#This Row],[G&S reporting level indicator]] -> 0 | BC36: =T_DataComboFile[[#This Row],[2019/20 Main appropriation_Source]]*T_DataComboFile[[#This Row],[G&S reporting level indicator]] -> 0 | BD36: =T_DataComboFile[[#This Row],[2019/20 Adjusted appropriation_Source]]*T_DataComboFile[[#This Row],[G&S reporting level indicator]] -> 0 | BE36: =T_DataComboFile[[#This Row],[2019/20 Revised estimate_Source]]*T_DataComboFile[[#This Row],[G&S reporting level indicator]] -> 0 | BF36: =T_DataComboFile[[#This Row],[2019/20 Preliminary outcome_Source]]*T_DataComboFile[[#This Row],[G&S reporting level indicator]] -> 0 | BG36: =T_DataComboFile[[#This Row],[2020/21 Original_Source]]*T_DataComboFile[[#This Row],[G&S reporting level indicator]] -> 0 | BH36: =T_DataComboFile[[#This Row],[2020/21 SAB_Source]]*T_DataComboFile[[#This Row],[G&S reporting level indicator]] -> 0 | BI36: =T_DataComboFile[[#This Row],[2020/21 Baseline_Source]]*T_DataComboFile[[#This Row],[G&S reporting level indicator]] -> 0 | BJ36: =T_DataComboFile[[#This Row],[2021/22 Baseline_Source]]*T_DataComboFile[[#This Row],[G&S reporting level indicator]] -> 0 | BK36: =T_DataComboFile[[#This Row],[2022/23 Baseline_Source]]*T_DataComboFile[[#This Row],[G&S reporting level indicator]] -> 0 | BL36: =T_DataComboFile[[#This Row],[2023/24 Baseline_Source]]*T_DataComboFile[[#This Row],[G&S reporting level indicator]] -> 0 | BS36: =T_DataComboFile[[#This Row],[2021/22 Baseline]]+T_DataComboFile[[#This Row],[2021/22 Reduction]]+T_DataComboFile[[#This Row],[2021/22 Increase]] -> 0 | BT36: =T_DataComboFile[[#This Row],[2022/23 Baseline]]+T_DataComboFile[[#This Row],[2022/23 Reduction]]+T_DataComboFile[[#This Row],[2022/23 Increase]] -> 0 | BU36: =T_DataComboFile[[#This Row],[2023/24 Baseline]]+T_DataComboFile[[#This Row],[2023/24 Reduction]]+T_DataComboFile[[#This Row],[2023/24 Increase]] -> 0
A37: NAT|Non-transfer item | B37: 19|Entertainment | C37: 2021_22 | D37: ENE2020 | E37: 19 | F37: 1 | G37: 1 | H37: 7423 | I37: 34533 | J37: 19 | K37: 1 | L37: 1 | M37: 7423 | N37: 034533 | O37: 19|01|01 | P37: 1 | Q37: 1 | R37: 2 | S37: 18 | T37: 18 | U37: 01|01|02|18|18 | V37: National | W37: Social Development | X37: Administration | Y37: Ministry | Z37: Non-transfer item | AA37: Current | AB37: Current payments | AC37: Goods and services | AD37: Entertainment | AE37: Entertainment | AF37: Social development | AG37: Social protection | AH37: NAT | AI37: 45 | AJ37: 28 | AK37: 60 | AL37: 97 | AM37: 97 | AN37: 97 | AO37: 97 | AP37: 102 | AQ37: 102 | AR37: 102 | AS37: 108 | AT37: 112 | AU37: 117 | AV37: 1 | AX37: =IF(T_DataComboFile[[#This Row],[G&S reporting level indicator]]=1,$AX$16,"Not applicable") -> Not applicable | AY37: =IF(AND($AX$16="Level 3",T_DataComboFile[[#This Row],[Econ3]] = "Goods and services"),IF(T_DataComboFile[[#This Row],[Econ4]] = T_DataComboFile[[#This Row],[Econ3]],1,0),IF(AND($AX$16="Level 4",T_DataComboFile[[#This Row],[Econ4]] = "Goods and services"),0,1)) -> 0 | AZ37: =T_DataComboFile[[#This Row],[2016/17_Source]]*T_DataComboFile[[#This Row],[G&S reporting level indicator]] -> 0 | BA37: =T_DataComboFile[[#This Row],[2017/18_Source]]*T_DataComboFile[[#This Row],[G&S reporting level indicator]] -> 0 | BB37: =T_DataComboFile[[#This Row],[2018/19_Source]]*T_DataComboFile[[#This Row],[G&S reporting level indicator]] -> 0 | BC37: =T_DataComboFile[[#This Row],[2019/20 Main appropriation_Source]]*T_DataComboFile[[#This Row],[G&S reporting level indicator]] -> 0 | BD37: =T_DataComboFile[[#This Row],[2019/20 Adjusted appropriation_Source]]*T_DataComboFile[[#This Row],[G&S reporting level indicator]] -> 0 | BE37: =T_DataComboFile[[#This Row],[2019/20 Revised estimate_Source]]*T_DataComboFile[[#This Row],[G&S reporting level indicator]] -> 0 | BF37: =T_DataComboFile[[#This Row],[2019/20 Preliminary outcome_Source]]*T_DataComboFile[[#This Row],[G&S reporting level indicator]] -> 0 | BG37: =T_DataComboFile[[#This Row],[2020/21 Original_Source]]*T_DataComboFile[[#This Row],[G&S reporting level indicator]] -> 0 | BH37: =T_DataComboFile[[#This Row],[2020/21 SAB_Source]]*T_DataComboFile[[#This Row],[G&S reporting level indicator]] -> 0 | BI37: =T_DataComboFile[[#This Row],[2020/21 Baseline_Source]]*T_DataComboFile[[#This Row],[G&S reporting level indicator]] -> 0 | BJ37: =T_DataComboFile[[#This Row],[2021/22 Baseline_Source]]*T_DataComboFile[[#This Row],[G&S reporting level indicator]] -> 0 | BK37: =T_DataComboFile[[#This Row],[2022/23 Baseline_Source]]*T_DataComboFile[[#This Row],[G&S reporting level indicator]] -> 0 | BL37: =T_DataComboFile[[#This Row],[2023/24 Baseline_Source]]*T_DataComboFile[[#This Row],[G&S reporting level indicator]] -> 0 | BS37: =T_DataComboFile[[#This Row],[2021/22 Baseline]]+T_DataComboFile[[#This Row],[2021/22 Reduction]]+T_DataComboFile[[#This Row],[2021/22 Increase]] -> 0 | BT37: =T_DataComboFile[[#This Row],[2022/23 Baseline]]+T_DataComboFile[[#This Row],[2022/23 Reduction]]+T_DataComboFile[[#This Row],[2022/23 Increase]] -> 0 | BU37: =T_DataComboFile[[#This Row],[2023/24 Baseline]]+T_DataComboFile[[#This Row],[2023/24 Reduction]]+T_DataComboFile[[#This Row],[2023/24 Increase]] -> 0
A38: NAT|Non-transfer item | B38: 19|Fleet services (including government motor transport) | C38: 2021_22 | D38: ENE2020 | E38: 19 | F38: 1 | G38: 1 | H38: 7424 | I38: 34534 | J38: 19 | K38: 1 | L38: 1 | M38: 7424 | N38: 034534 | O38: 19|01|01 | P38: 1 | Q38: 1 | R38: 2 | S38: 19 | T38: 19 | U38: 01|01|02|19|19 | V38: National | W38: Social Development | X38: Administration | Y38: Ministry | Z38: Non-transfer item | AA38: Current | AB38: Current payments | AC38: Goods and services | AD38: Fleet services (including government motor transport) | AE38: Fleet services (including government motor transport) | AF38: Social development | AG38: Social protection | AH38: NAT | AI38: 4843 | AJ38: 2544 | AK38: 1723 | AL38: 875 | AM38: 875 | AN38: 875 | AO38: 875 | AP38: 923 | AQ38: 923 | AR38: 923 | AS38: 1474 | AT38: 1529 | AU38: 1596 | AV38: 1 | AX38: =IF(T_DataComboFile[[#This Row],[G&S reporting level indicator]]=1,$AX$16,"Not applicable") -> Not applicable | AY38: =IF(AND($AX$16="Level 3",T_DataComboFile[[#This Row],[Econ3]] = "Goods and services"),IF(T_DataComboFile[[#This Row],[Econ4]] = T_DataComboFile[[#This Row],[Econ3]],1,0),IF(AND($AX$16="Level 4",T_DataComboFile[[#This Row],[Econ4]] = "Goods and services"),0,1)) -> 0 | AZ38: =T_DataComboFile[[#This Row],[2016/17_Source]]*T_DataComboFile[[#This Row],[G&S reporting level indicator]] -> 0 | BA38: =T_DataComboFile[[#This Row],[2017/18_Source]]*T_DataComboFile[[#This Row],[G&S reporting level indicator]] -> 0 | BB38: =T_DataComboFile[[#This Row],[2018/19_Source]]*T_DataComboFile[[#This Row],[G&S reporting level indicator]] -> 0 | BC38: =T_DataComboFile[[#This Row],[2019/20 Main appropriation_Source]]*T_DataComboFile[[#This Row],[G&S reporting level indicator]] -> 0 | BD38: =T_DataComboFile[[#This Row],[2019/20 Adjusted appropriation_Source]]*T_DataComboFile[[#This Row],[G&S reporting level indicator]] -> 0 | BE38: =T_DataComboFile[[#This Row],[2019/20 Revised estimate_Source]]*T_DataComboFile[[#This Row],[G&S reporting level indicator]] -> 0 | BF38: =T_DataComboFile[[#This Row],[2019/20 Preliminary outcome_Source]]*T_DataComboFile[[#This Row],[G&S reporting level indicator]] -> 0 | BG38: =T_DataComboFile[[#This Row],[2020/21 Original_Source]]*T_DataComboFile[[#This Row],[G&S reporting level indicator]] -> 0 | BH38: =T_DataComboFile[[#This Row],[2020/21 SAB_Source]]*T_DataComboFile[[#This Row],[G&S reporting level indicator]] -> 0 | BI38: =T_DataComboFile[[#This Row],[2020/21 Baseline_Source]]*T_DataComboFile[[#This Row],[G&S reporting level indicator]] -> 0 | BJ38: =T_DataComboFile[[#This Row],[2021/22 Baseline_Source]]*T_DataComboFile[[#This Row],[G&S reporting level indicator]] -> 0 | BK38: =T_DataComboFile[[#This Row],[2022/23 Baseline_Source]]*T_DataComboFile[[#This Row],[G&S reporting level indicator]] -> 0 | BL38: =T_DataComboFile[[#This Row],[2023/24 Baseline_Source]]*T_DataComboFile[[#This Row],[G&S reporting level indicator]] -> 0 | BS38: =T_DataComboFile[[#This Row],[2021/22 Baseline]]+T_DataComboFile[[#This Row],[2021/22 Reduction]]+T_DataComboFile[[#This Row],[2021/22 Increase]] -> 0 | BT38: =T_DataComboFile[[#This Row],[2022/23 Baseline]]+T_DataComboFile[[#This Row],[2022/23 Reduction]]+T_DataComboFile[[#This Row],[2022/23 Increase]] -> 0 | BU38: =T_DataComboFile[[#This Row],[2023/24 Baseline]]+T_DataComboFile[[#This Row],[2023/24 Reduction]]+T_DataComboFile[[#This Row],[2023/24 Increase]] -> 0
C39: 2021_22 | D39: ENE2020 | E39: 19 | F39: 1 | G39: 1 | I39: 34535 | J39: 19 | K39: 1 | L39: 1 | N39: 034535 | O39: 19|01|01 | P39: 1 | Q39: 1 | R39: 2 | S39: 20 | T39: 20 | U39: 01|01|02|20|20 | V39: National | W39: Social Development | X39: Administration | Y39: Ministry | AA39: Current | AB39: Current payments | AC39: Goods and services | AD39: Housing | AE39: Housing | AI39: 0 | AJ39: 0 | AK39: 0 | AL39: 0 | AM39: 0 | AN39: 0 | AO39: 0 | AP39: 0 | AQ39: 0 | AR39: 0 | AS39: 0 | AT39: 0 | AU39: 0 | AV39: 0 | AX39: =IF(T_DataComboFile[[#This Row],[G&S reporting level indicator]]=1,$AX$16,"Not applicable") -> Not applicable | AY39: =IF(AND($AX$16="Level 3",T_DataComboFile[[#This Row],[Econ3]] = "Goods and services"),IF(T_DataComboFile[[#This Row],[Econ4]] = T_DataComboFile[[#This Row],[Econ3]],1,0),IF(AND($AX$16="Level 4",T_DataComboFile[[#This Row],[Econ4]] = "Goods and services"),0,1)) -> 0 | AZ39: =T_DataComboFile[[#This Row],[2016/17_Source]]*T_DataComboFile[[#This Row],[G&S reporting level indicator]] -> 0 | BA39: =T_DataComboFile[[#This Row],[2017/18_Source]]*T_DataComboFile[[#This Row],[G&S reporting level indicator]] -> 0 | BB39: =T_DataComboFile[[#This Row],[2018/19_Source]]*T_DataComboFile[[#This Row],[G&S reporting level indicator]] -> 0 | BC39: =T_DataComboFile[[#This Row],[2019/20 Main appropriation_Source]]*T_DataComboFile[[#This Row],[G&S reporting level indicator]] -> 0 | BD39: =T_DataComboFile[[#This Row],[2019/20 Adjusted appropriation_Source]]*T_DataComboFile[[#This Row],[G&S reporting level indicator]] -> 0 | BE39: =T_DataComboFile[[#This Row],[2019/20 Revised estimate_Source]]*T_DataComboFile[[#This Row],[G&S reporting level indicator]] -> 0 | BF39: =T_DataComboFile[[#This Row],[2019/20 Preliminary outcome_Source]]*T_DataComboFile[[#This Row],[G&S reporting level indicator]] -> 0 | BG39: =T_DataComboFile[[#This Row],[2020/21 Original_Source]]*T_DataComboFile[[#This Row],[G&S reporting level indicator]] -> 0 | BH39: =T_DataComboFile[[#This Row],[2020/21 SAB_Source]]*T_DataComboFile[[#This Row],[G&S reporting level indicator]] -> 0 | BI39: =T_DataComboFile[[#This Row],[2020/21 Baseline_Source]]*T_DataComboFile[[#This Row],[G&S reporting level indicator]] -> 0 | BJ39: =T_DataComboFile[[#This Row],[2021/22 Baseline_Source]]*T_DataComboFile[[#This Row],[G&S reporting level indicator]] -> 0 | BK39: =T_DataComboFile[[#This Row],[2022/23 Baseline_Source]]*T_DataComboFile[[#This Row],[G&S reporting level indicator]] -> 0 | BL39: =T_DataComboFile[[#This Row],[2023/24 Baseline_Source]]*T_DataComboFile[[#This Row],[G&S reporting level indicator]] -> 0 | BS39: =T_DataComboFile[[#This Row],[2021/22 Baseline]]+T_DataComboFile[[#This Row],[2021/22 Reduction]]+T_DataComboFile[[#This Row],[2021/22 Increase]] -> 0 | BT39: =T_DataComboFile[[#This Row],[2022/23 Baseline]]+T_DataComboFile[[#This Row],[2022/23 Reduction]]+T_DataComboFile[[#This Row],[2022/23 Increase]] -> 0 | BU39: =T_DataComboFile[[#This Row],[2023/24 Baseline]]+T_DataComboFile[[#This Row],[2023/24 Reduction]]+T_DataComboFile[[#This Row],[2023/24 Increase]] -> 0
C40: 2021_22 | D40: ENE2020 | E40: 19 | F40: 1 | G40: 1 | I40: 34536 | J40: 19 | K40: 1 | L40: 1 | N40: 034536 | O40: 19|01|01 | P40: 1 | Q40: 1 | R40: 2 | S40: 21 | T40: 21 | U40: 01|01|02|21|21 | V40: National | W40: Social Development | X40: Administration | Y40: Ministry | AA40: Current | AB40: Current payments | AC40: Goods and services | AD40: Inventory: Clothing material and accessories | AE40: Inventory: Clothing material and accessories | AI40: 0 | AJ40: 0 | AK40: 0 | AL40: 0 | AM40: 0 | AN40: 0 | AO40: 0 | AP40: 0 | AQ40: 0 | AR40: 0 | AS40: 0 | AT40: 0 | AU40: 0 | AV40: 0 | AX40: =IF(T_DataComboFile[[#This Row],[G&S reporting level indicator]]=1,$AX$16,"Not applicable") -> Not applicable | AY40: =IF(AND($AX$16="Level 3",T_DataComboFile[[#This Row],[Econ3]] = "Goods and services"),IF(T_DataComboFile[[#This Row],[Econ4]] = T_DataComboFile[[#This Row],[Econ3]],1,0),IF(AND($AX$16="Level 4",T_DataComboFile[[#This Row],[Econ4]] = "Goods and services"),0,1)) -> 0 | AZ40: =T_DataComboFile[[#This Row],[2016/17_Source]]*T_DataComboFile[[#This Row],[G&S reporting level indicator]] -> 0 | BA40: =T_DataComboFile[[#This Row],[2017/18_Source]]*T_DataComboFile[[#This Row],[G&S reporting level indicator]] -> 0 | BB40: =T_DataComboFile[[#This Row],[2018/19_Source]]*T_DataComboFile[[#This Row],[G&S reporting level indicator]] -> 0 | BC40: =T_DataComboFile[[#This Row],[2019/20 Main appropriation_Source]]*T_DataComboFile[[#This Row],[G&S reporting level indicator]] -> 0 | BD40: =T_DataComboFile[[#This Row],[2019/20 Adjusted appropriation_Source]]*T_DataComboFile[[#This Row],[G&S reporting level indicator]] -> 0 | BE40: =T_DataComboFile[[#This Row],[2019/20 Revised estimate_Source]]*T_DataComboFile[[#This Row],[G&S reporting level indicator]] -> 0 | BF40: =T_DataComboFile[[#This Row],[2019/20 Preliminary outcome_Source]]*T_DataComboFile[[#This Row],[G&S reporting level indicator]] -> 0 | BG40: =T_DataComboFile[[#This Row],[2020/21 Original_Source]]*T_DataComboFile[[#This Row],[G&S reporting level indicator]] -> 0 | BH40: =T_DataComboFile[[#This Row],[2020/21 SAB_Source]]*T_DataComboFile[[#This Row],[G&S reporting level indicator]] -> 0 | BI40: =T_DataComboFile[[#This Row],[2020/21 Baseline_Source]]*T_DataComboFile[[#This Row],[G&S reporting level indicator]] -> 0 | BJ40: =T_DataComboFile[[#This Row],[2021/22 Baseline_Source]]*T_DataComboFile[[#This Row],[G&S reporting level indicator]] -> 0 | BK40: =T_DataComboFile[[#This Row],[2022/23 Baseline_Source]]*T_DataComboFile[[#This Row],[G&S reporting level indicator]] -> 0 | BL40: =T_DataComboFile[[#This Row],[2023/24 Baseline_Source]]*T_DataComboFile[[#This Row],[G&S reporting level indicator]] -> 0 | BS40: =T_DataComboFile[[#This Row],[2021/22 Baseline]]+T_DataComboFile[[#This Row],[2021/22 Reduction]]+T_DataComboFile[[#This Row],[2021/22 Increase]] -> 0 | BT40: =T_DataComboFile[[#This Row],[2022/23 Baseline]]+T_DataComboFile[[#This Row],[2022/23 Reduction]]+T_DataComboFile[[#This Row],[2022/23 Increase]] -> 0 | BU40: =T_DataComboFile[[#This Row],[2023/24 Baseline]]+T_DataComboFile[[#This Row],[2023/24 Reduction]]+T_DataComboFile[[#This Row],[2023/24 Increase]] -> 0
C41: 2021_22 | D41: ENE2020 | E41: 19 | F41: 1 | G41: 1 | I41: 34537 | J41: 19 | K41: 1 | L41: 1 | N41: 034537 | O41: 19|01|01 | P41: 1 | Q41: 1 | R41: 2 | S41: 22 | T41: 22 | U41: 01|01|02|22|22 | V41: National | W41: Social Development | X41: Administration | Y41: Ministry | AA41: Current | AB41: Current payments | AC41: Goods and services | AD41: Inventory: Farming supplies | AE41: Inventory: Farming supplies | AI41: 0 | AJ41: 0 | AK41: 0 | AL41: 0 | AM41: 0 | AN41: 0 | AO41: 0 | AP41: 0 | AQ41: 0 | AR41: 0 | AS41: 0 | AT41: 0 | AU41: 0 | AV41: 0 | AX41: =IF(T_DataComboFile[[#This Row],[G&S reporting level indicator]]=1,$AX$16,"Not applicable") -> Not applicable | AY41: =IF(AND($AX$16="Level 3",T_DataComboFile[[#This Row],[Econ3]] = "Goods and services"),IF(T_DataComboFile[[#This Row],[Econ4]] = T_DataComboFile[[#This Row],[Econ3]],1,0),IF(AND($AX$16="Level 4",T_DataComboFile[[#This Row],[Econ4]] = "Goods and services"),0,1)) -> 0 | AZ41: =T_DataComboFile[[#This Row],[2016/17_Source]]*T_DataComboFile[[#This Row],[G&S reporting level indicator]] -> 0 | BA41: =T_DataComboFile[[#This Row],[2017/18_Source]]*T_DataComboFile[[#This Row],[G&S reporting level indicator]] -> 0 | BB41: =T_DataComboFile[[#This Row],[2018/19_Source]]*T_DataComboFile[[#This Row],[G&S reporting level indicator]] -> 0 | BC41: =T_DataComboFile[[#This Row],[2019/20 Main appropriation_Source]]*T_DataComboFile[[#This Row],[G&S reporting level indicator]] -> 0 | BD41: =T_DataComboFile[[#This Row],[2019/20 Adjusted appropriation_Source]]*T_DataComboFile[[#This Row],[G&S reporting level indicator]] -> 0 | BE41: =T_DataComboFile[[#This Row],[2019/20 Revised estimate_Source]]*T_DataComboFile[[#This Row],[G&S reporting level indicator]] -> 0 | BF41: =T_DataComboFile[[#This Row],[2019/20 Preliminary outcome_Source]]*T_DataComboFile[[#This Row],[G&S reporting level indicator]] -> 0 | BG41: =T_DataComboFile[[#This Row],[2020/21 Original_Source]]*T_DataComboFile[[#This Row],[G&S reporting level indicator]] -> 0 | BH41: =T_DataComboFile[[#This Row],[2020/21 SAB_Source]]*T_DataComboFile[[#This Row],[G&S reporting level indicator]] -> 0 | BI41: =T_DataComboFile[[#This Row],[2020/21 Baseline_Source]]*T_DataComboFile[[#This Row],[G&S reporting level indicator]] -> 0 | BJ41: =T_DataComboFile[[#This Row],[2021/22 Baseline_Source]]*T_DataComboFile[[#This Row],[G&S reporting level indicator]] -> 0 | BK41: =T_DataComboFile[[#This Row],[2022/23 Baseline_Source]]*T_DataComboFile[[#This Row],[G&S reporting level indicator]] -> 0 | BL41: =T_DataComboFile[[#This Row],[2023/24 Baseline_Source]]*T_DataComboFile[[#This Row],[G&S reporting level indicator]] -> 0 | BS41: =T_DataComboFile[[#This Row],[2021/22 Baseline]]+T_DataComboFile[[#This Row],[2021/22 Reduction]]+T_DataComboFile[[#This Row],[2021/22 Increase]] -> 0 | BT41: =T_DataComboFile[[#This Row],[2022/23 Baseline]]+T_DataComboFile[[#This Row],[2022/23 Reduction]]+T_DataComboFile[[#This Row],[2022/23 Increase]] -> 0 | BU41: =T_DataComboFile[[#This Row],[2023/24 Baseline]]+T_DataComboFile[[#This Row],[2023/24 Reduction]]+T_DataComboFile[[#This Row],[2023/24 Increase]] -> 0
C42: 2021_22 | D42: ENE2020 | E42: 19 | F42: 1 | G42: 1 | I42: 34538 | J42: 19 | K42: 1 | L42: 1 | N42: 034538 | O42: 19|01|01 | P42: 1 | Q42: 1 | R42: 2 | S42: 23 | T42: 23 | U42: 01|01|02|23|23 | V42: National | W42: Social Development | X42: Administration | Y42: Ministry | AA42: Current | AB42: Current payments | AC42: Goods and services | AD42: Inventory: Food and food supplies | AE42: Inventory: Food and food supplies | AI42: 0 | AJ42: 0 | AK42: 0 | AL42: 0 | AM42: 0 | AN42: 0 | AO42: 0 | AP42: 0 | AQ42: 0 | AR42: 0 | AS42: 0 | AT42: 0 | AU42: 0 | AV42: 0 | AX42: =IF(T_DataComboFile[[#This Row],[G&S reporting level indicator]]=1,$AX$16,"Not applicable") -> Not applicable | AY42: =IF(AND($AX$16="Level 3",T_DataComboFile[[#This Row],[Econ3]] = "Goods and services"),IF(T_DataComboFile[[#This Row],[Econ4]] = T_DataComboFile[[#This Row],[Econ3]],1,0),IF(AND($AX$16="Level 4",T_DataComboFile[[#This Row],[Econ4]] = "Goods and services"),0,1)) -> 0 | AZ42: =T_DataComboFile[[#This Row],[2016/17_Source]]*T_DataComboFile[[#This Row],[G&S reporting level indicator]] -> 0 | BA42: =T_DataComboFile[[#This Row],[2017/18_Source]]*T_DataComboFile[[#This Row],[G&S reporting level indicator]] -> 0 | BB42: =T_DataComboFile[[#This Row],[2018/19_Source]]*T_DataComboFile[[#This Row],[G&S reporting level indicator]] -> 0 | BC42: =T_DataComboFile[[#This Row],[2019/20 Main appropriation_Source]]*T_DataComboFile[[#This Row],[G&S reporting level indicator]] -> 0 | BD42: =T_DataComboFile[[#This Row],[2019/20 Adjusted appropriation_Source]]*T_DataComboFile[[#This Row],[G&S reporting level indicator]] -> 0 | BE42: =T_DataComboFile[[#This Row],[2019/20 Revised estimate_Source]]*T_DataComboFile[[#This Row],[G&S reporting level indicator]] -> 0 | BF42: =T_DataComboFile[[#This Row],[2019/20 Preliminary outcome_Source]]*T_DataComboFile[[#This Row],[G&S reporting level indicator]] -> 0 | BG42: =T_DataComboFile[[#This Row],[2020/21 Original_Source]]*T_DataComboFile[[#This Row],[G&S reporting level indicator]] -> 0 | BH42: =T_DataComboFile[[#This Row],[2020/21 SAB_Source]]*T_DataComboFile[[#This Row],[G&S reporting level indicator]] -> 0 | BI42: =T_DataComboFile[[#This Row],[2020/21 Baseline_Source]]*T_DataComboFile[[#This Row],[G&S reporting level indicator]] -> 0 | BJ42: =T_DataComboFile[[#This Row],[2021/22 Baseline_Source]]*T_DataComboFile[[#This Row],[G&S reporting level indicator]] -> 0 | BK42: =T_DataComboFile[[#This Row],[2022/23 Baseline_Source]]*T_DataComboFile[[#This Row],[G&S reporting level indicator]] -> 0 | BL42: =T_DataComboFile[[#This Row],[2023/24 Baseline_Source]]*T_DataComboFile[[#This Row],[G&S reporting level indicator]] -> 0 | BS42: =T_DataComboFile[[#This Row],[2021/22 Baseline]]+T_DataComboFile[[#This Row],[2021/22 Reduction]]+T_DataComboFile[[#This Row],[2021/22 Increase]] -> 0 | BT42: =T_DataComboFile[[#This Row],[2022/23 Baseline]]+T_DataComboFile[[#This Row],[2022/23 Reduction]]+T_DataComboFile[[#This Row],[2022/23 Increase]] -> 0 | BU42: =T_DataComboFile[[#This Row],[2023/24 Baseline]]+T_DataComboFile[[#This Row],[2023/24 Reduction]]+T_DataComboFile[[#This Row],[2023/24 Increase]] -> 0
A43: NAT|Non-transfer item | B43: 19|Inventory: Fuel, oil and gas | C43: 2021_22 | D43: ENE2020 | E43: 19 | F43: 1 | G43: 1 | H43: 7425 | I43: 34539 | J43: 19 | K43: 1 | L43: 1 | M43: 7425 | N43: 034539 | O43: 19|01|01 | P43: 1 | Q43: 1 | R43: 2 | S43: 24 | T43: 24 | U43: 01|01|02|24|24 | V43: National | W43: Social Development | X43: Administration | Y43: Ministry | Z43: Non-transfer item | AA43: Current | AB43: Current payments | AC43: Goods and services | AD43: Inventory: Fuel, oil and gas | AE43: Inventory: Fuel, oil and gas | AF43: Social development | AG43: Social protection | AH43: NAT | AI43: 0 | AJ43: 0 | AK43: 0 | AL43: 528 | AM43: 528 | AN43: 528 | AO43: 528 | AP43: 557 | AQ43: 557 | AR43: 557 | AS43: 1088 | AT43: 1129 | AU43: 1179 | AV43: 1 | AX43: =IF(T_DataComboFile[[#This Row],[G&S reporting level indicator]]=1,$AX$16,"Not applicable") -> Not applicable | AY43: =IF(AND($AX$16="Level 3",T_DataComboFile[[#This Row],[Econ3]] = "Goods and services"),IF(T_DataComboFile[[#This Row],[Econ4]] = T_DataComboFile[[#This Row],[Econ3]],1,0),IF(AND($AX$16="Level 4",T_DataComboFile[[#This Row],[Econ4]] = "Goods and services"),0,1)) -> 0 | AZ43: =T_DataComboFile[[#This Row],[2016/17_Source]]*T_DataComboFile[[#This Row],[G&S reporting level indicator]] -> 0 | BA43: =T_DataComboFile[[#This Row],[2017/18_Source]]*T_DataComboFile[[#This Row],[G&S reporting level indicator]] -> 0 | BB43: =T_DataComboFile[[#This Row],[2018/19_Source]]*T_DataComboFile[[#This Row],[G&S reporting level indicator]] -> 0 | BC43: =T_DataComboFile[[#This Row],[2019/20 Main appropriation_Source]]*T_DataComboFile[[#This Row],[G&S reporting level indicator]] -> 0 | BD43: =T_DataComboFile[[#This Row],[2019/20 Adjusted appropriation_Source]]*T_DataComboFile[[#This Row],[G&S reporting level indicator]] -> 0 | BE43: =T_DataComboFile[[#This Row],[2019/20 Revised estimate_Source]]*T_DataComboFile[[#This Row],[G&S reporting level indicator]] -> 0 | BF43: =T_DataComboFile[[#This Row],[2019/20 Preliminary outcome_Source]]*T_DataComboFile[[#This Row],[G&S reporting level indicator]] -> 0 | BG43: =T_DataComboFile[[#This Row],[2020/21 Original_Source]]*T_DataComboFile[[#This Row],[G&S reporting level indicator]] -> 0 | BH43: =T_DataComboFile[[#This Row],[2020/21 SAB_Source]]*T_DataComboFile[[#This Row],[G&S reporting level indicator]] -> 0 | BI43: =T_DataComboFile[[#This Row],[2020/21 Baseline_Source]]*T_DataComboFile[[#This Row],[G&S reporting level indicator]] -> 0 | BJ43: =T_DataComboFile[[#This Row],[2021/22 Baseline_Source]]*T_DataComboFile[[#This Row],[G&S reporting level indicator]] -> 0 | BK43: =T_DataComboFile[[#This Row],[2022/23 Baseline_Source]]*T_DataComboFile[[#This Row],[G&S reporting level indicator]] -> 0 | BL43: =T_DataComboFile[[#This Row],[2023/24 Baseline_Source]]*T_DataComboFile[[#This Row],[G&S reporting level indicator]] -> 0 | BS43: =T_DataComboFile[[#This Row],[2021/22 Baseline]]+T_DataComboFile[[#This Row],[2021/22 Reduction]]+T_DataComboFile[[#This Row],[2021/22 Increase]] -> 0 | BT43: =T_DataComboFile[[#This Row],[2022/23 Baseline]]+T_DataComboFile[[#This Row],[2022/23 Reduction]]+T_DataComboFile[[#This Row],[2022/23 Increase]] -> 0 | BU43: =T_DataComboFile[[#This Row],[2023/24 Baseline]]+T_DataComboFile[[#This Row],[2023/24 Reduction]]+T_DataComboFile[[#This Row],[2023/24 Increase]] -> 0
C44: 2021_22 | D44: ENE2020 | E44: 19 | F44: 1 | G44: 1 | I44: 34540 | J44: 19 | K44: 1 | L44: 1 | N44: 034540 | O44: 19|01|01 | P44: 1 | Q44: 1 | R44: 2 | S44: 25 | T44: 25 | U44: 01|01|02|25|25 | V44: National | W44: Social Development | X44: Administration | Y44: Ministry | AA44: Current | AB44: Current payments | AC44: Goods and services | AD44: Inventory: Learner and teacher support material | AE44: Inventory: Learner and teacher support material | AI44: 0 | AJ44: 0 | AK44: 0 | AL44: 0 | AM44: 0 | AN44: 0 | AO44: 0 | AP44: 0 | AQ44: 0 | AR44: 0 | AS44: 0 | AT44: 0 | AU44: 0 | AV44: 0 | AX44: =IF(T_DataComboFile[[#This Row],[G&S reporting level indicator]]=1,$AX$16,"Not applicable") -> Not applicable | AY44: =IF(AND($AX$16="Level 3",T_DataComboFile[[#This Row],[Econ3]] = "Goods and services"),IF(T_DataComboFile[[#This Row],[Econ4]] = T_DataComboFile[[#This Row],[Econ3]],1,0),IF(AND($AX$16="Level 4",T_DataComboFile[[#This Row],[Econ4]] = "Goods and services"),0,1)) -> 0 | AZ44: =T_DataComboFile[[#This Row],[2016/17_Source]]*T_DataComboFile[[#This Row],[G&S reporting level indicator]] -> 0 | BA44: =T_DataComboFile[[#This Row],[2017/18_Source]]*T_DataComboFile[[#This Row],[G&S reporting level indicator]] -> 0 | BB44: =T_DataComboFile[[#This Row],[2018/19_Source]]*T_DataComboFile[[#This Row],[G&S reporting level indicator]] -> 0 | BC44: =T_DataComboFile[[#This Row],[2019/20 Main appropriation_Source]]*T_DataComboFile[[#This Row],[G&S reporting level indicator]] -> 0 | BD44: =T_DataComboFile[[#This Row],[2019/20 Adjusted appropriation_Source]]*T_DataComboFile[[#This Row],[G&S reporting level indicator]] -> 0 | BE44: =T_DataComboFile[[#This Row],[2019/20 Revised estimate_Source]]*T_DataComboFile[[#This Row],[G&S reporting level indicator]] -> 0 | BF44: =T_DataComboFile[[#This Row],[2019/20 Preliminary outcome_Source]]*T_DataComboFile[[#This Row],[G&S reporting level indicator]] -> 0 | BG44: =T_DataComboFile[[#This Row],[2020/21 Original_Source]]*T_DataComboFile[[#This Row],[G&S reporting level indicator]] -> 0 | BH44: =T_DataComboFile[[#This Row],[2020/21 SAB_Source]]*T_DataComboFile[[#This Row],[G&S reporting level indicator]] -> 0 | BI44: =T_DataComboFile[[#This Row],[2020/21 Baseline_Source]]*T_DataComboFile[[#This Row],[G&S reporting level indicator]] -> 0 | BJ44: =T_DataComboFile[[#This Row],[2021/22 Baseline_Source]]*T_DataComboFile[[#This Row],[G&S reporting level indicator]] -> 0 | BK44: =T_DataComboFile[[#This Row],[2022/23 Baseline_Source]]*T_DataComboFile[[#This Row],[G&S reporting level indicator]] -> 0 | BL44: =T_DataComboFile[[#This Row],[2023/24 Baseline_Source]]*T_DataComboFile[[#This Row],[G&S reporting level indicator]] -> 0 | BS44: =T_DataComboFile[[#This Row],[2021/22 Baseline]]+T_DataComboFile[[#This Row],[2021/22 Reduction]]+T_DataComboFile[[#This Row],[2021/22 Increase]] -> 0 | BT44: =T_DataComboFile[[#This Row],[2022/23 Baseline]]+T_DataComboFile[[#This Row],[2022/23 Reduction]]+T_DataComboFile[[#This Row],[2022/23 Increase]] -> 0 | BU44: =T_DataComboFile[[#This Row],[2023/24 Baseline]]+T_DataComboFile[[#This Row],[2023/24 Reduction]]+T_DataComboFile[[#This Row],[2023/24 Increase]] -> 0
C45: 2021_22 | D45: ENE2020 | E45: 19 | F45: 1 | G45: 1 | I45: 34541 | J45: 19 | K45: 1 | L45: 1 | N45: 034541 | O45: 19|01|01 | P45: 1 | Q45: 1 | R45: 2 | S45: 26 | T45: 26 | U45: 01|01|02|26|26 | V45: National | W45: Social Development | X45: Administration | Y45: Ministry | AA45: Current | AB45: Current payments | AC45: Goods and services | AD45: Inventory: Materials and supplies | AE45: Inventory: Materials and supplies | AI45: 0 | AJ45: 0 | AK45: 0 | AL45: 0 | AM45: 0 | AN45: 0 | AO45: 0 | AP45: 0 | AQ45: 0 | AR45: 0 | AS45: 0 | AT45: 0 | AU45: 0 | AV45: 0 | AX45: =IF(T_DataComboFile[[#This Row],[G&S reporting level indicator]]=1,$AX$16,"Not applicable") -> Not applicable | AY45: =IF(AND($AX$16="Level 3",T_DataComboFile[[#This Row],[Econ3]] = "Goods and services"),IF(T_DataComboFile[[#This Row],[Econ4]] = T_DataComboFile[[#This Row],[Econ3]],1,0),IF(AND($AX$16="Level 4",T_DataComboFile[[#This Row],[Econ4]] = "Goods and services"),0,1)) -> 0 | AZ45: =T_DataComboFile[[#This Row],[2016/17_Source]]*T_DataComboFile[[#This Row],[G&S reporting level indicator]] -> 0 | BA45: =T_DataComboFile[[#This Row],[2017/18_Source]]*T_DataComboFile[[#This Row],[G&S reporting level indicator]] -> 0 | BB45: =T_DataComboFile[[#This Row],[2018/19_Source]]*T_DataComboFile[[#This Row],[G&S reporting level indicator]] -> 0 | BC45: =T_DataComboFile[[#This Row],[2019/20 Main appropriation_Source]]*T_DataComboFile[[#This Row],[G&S reporting level indicator]] -> 0 | BD45: =T_DataComboFile[[#This Row],[2019/20 Adjusted appropriation_Source]]*T_DataComboFile[[#This Row],[G&S reporting level indicator]] -> 0 | BE45: =T_DataComboFile[[#This Row],[2019/20 Revised estimate_Source]]*T_DataComboFile[[#This Row],[G&S reporting level indicator]] -> 0 | BF45: =T_DataComboFile[[#This Row],[2019/20 Preliminary outcome_Source]]*T_DataComboFile[[#This Row],[G&S reporting level indicator]] -> 0 | BG45: =T_DataComboFile[[#This Row],[2020/21 Original_Source]]*T_DataComboFile[[#This Row],[G&S reporting level indicator]] -> 0 | BH45: =T_DataComboFile[[#This Row],[2020/21 SAB_Source]]*T_DataComboFile[[#This Row],[G&S reporting level indicator]] -> 0 | BI45: =T_DataComboFile[[#This Row],[2020/21 Baseline_Source]]*T_DataComboFile[[#This Row],[G&S reporting level indicator]] -> 0 | BJ45: =T_DataComboFile[[#This Row],[2021/22 Baseline_Source]]*T_DataComboFile[[#This Row],[G&S reporting level indicator]] -> 0 | BK45: =T_DataComboFile[[#This Row],[2022/23 Baseline_Source]]*T_DataComboFile[[#This Row],[G&S reporting level indicator]] -> 0 | BL45: =T_DataComboFile[[#This Row],[2023/24 Baseline_Source]]*T_DataComboFile[[#This Row],[G&S reporting level indicator]] -> 0 | BS45: =T_DataComboFile[[#This Row],[2021/22 Baseline]]+T_DataComboFile[[#This Row],[2021/22 Reduction]]+T_DataComboFile[[#This Row],[2021/22 Increase]] -> 0 | BT45: =T_DataComboFile[[#This Row],[2022/23 Baseline]]+T_DataComboFile[[#This Row],[2022/23 Reduction]]+T_DataComboFile[[#This Row],[2022/23 Increase]] -> 0 | BU45: =T_DataComboFile[[#This Row],[2023/24 Baseline]]+T_DataComboFile[[#This Row],[2023/24 Reduction]]+T_DataComboFile[[#This Row],[2023/24 Increase]] -> 0
C46: 2021_22 | D46: ENE2020 | E46: 19 | F46: 1 | G46: 1 | I46: 34542 | J46: 19 | K46: 1 | L46: 1 | N46: 034542 | O46: 19|01|01 | P46: 1 | Q46: 1 | R46: 2 | S46: 27 | T46: 27 | U46: 01|01|02|27|27 | V46: National | W46: Social Development | X46: Administration | Y46: Ministry | AA46: Current | AB46: Current payments | AC46: Goods and services | AD46: Inventory: Medical supplies | AE46: Inventory: Medical supplies | AI46: 0 | AJ46: 0 | AK46: 0 | AL46: 0 | AM46: 0 | AN46: 0 | AO46: 0 | AP46: 0 | AQ46: 0 | AR46: 0 | AS46: 0 | AT46: 0 | AU46: 0 | AV46: 0 | AX46: =IF(T_DataComboFile[[#This Row],[G&S reporting level indicator]]=1,$AX$16,"Not applicable") -> Not applicable | AY46: =IF(AND($AX$16="Level 3",T_DataComboFile[[#This Row],[Econ3]] = "Goods and services"),IF(T_DataComboFile[[#This Row],[Econ4]] = T_DataComboFile[[#This Row],[Econ3]],1,0),IF(AND($AX$16="Level 4",T_DataComboFile[[#This Row],[Econ4]] = "Goods and services"),0,1)) -> 0 | AZ46: =T_DataComboFile[[#This Row],[2016/17_Source]]*T_DataComboFile[[#This Row],[G&S reporting level indicator]] -> 0 | BA46: =T_DataComboFile[[#This Row],[2017/18_Source]]*T_DataComboFile[[#This Row],[G&S reporting level indicator]] -> 0 | BB46: =T_DataComboFile[[#This Row],[2018/19_Source]]*T_DataComboFile[[#This Row],[G&S reporting level indicator]] -> 0 | BC46: =T_DataComboFile[[#This Row],[2019/20 Main appropriation_Source]]*T_DataComboFile[[#This Row],[G&S reporting level indicator]] -> 0 | BD46: =T_DataComboFile[[#This Row],[2019/20 Adjusted appropriation_Source]]*T_DataComboFile[[#This Row],[G&S reporting level indicator]] -> 0 | BE46: =T_DataComboFile[[#This Row],[2019/20 Revised estimate_Source]]*T_DataComboFile[[#This Row],[G&S reporting level indicator]] -> 0 | BF46: =T_DataComboFile[[#This Row],[2019/20 Preliminary outcome_Source]]*T_DataComboFile[[#This Row],[G&S reporting level indicator]] -> 0 | BG46: =T_DataComboFile[[#This Row],[2020/21 Original_Source]]*T_DataComboFile[[#This Row],[G&S reporting level indicator]] -> 0 | BH46: =T_DataComboFile[[#This Row],[2020/21 SAB_Source]]*T_DataComboFile[[#This Row],[G&S reporting level indicator]] -> 0 | BI46: =T_DataComboFile[[#This Row],[2020/21 Baseline_Source]]*T_DataComboFile[[#This Row],[G&S reporting level indicator]] -> 0 | BJ46: =T_DataComboFile[[#This Row],[2021/22 Baseline_Source]]*T_DataComboFile[[#This Row],[G&S reporting level indicator]] -> 0 | BK46: =T_DataComboFile[[#This Row],[2022/23 Baseline_Source]]*T_DataComboFile[[#This Row],[G&S reporting level indicator]] -> 0 | BL46: =T_DataComboFile[[#This Row],[2023/24 Baseline_Source]]*T_DataComboFile[[#This Row],[G&S reporting level indicator]] -> 0 | BS46: =T_DataComboFile[[#This Row],[2021/22 Baseline]]+T_DataComboFile[[#This Row],[2021/22 Reduction]]+T_DataComboFile[[#This Row],[2021/22 Increase]] -> 0 | BT46: =T_DataComboFile[[#This Row],[2022/23 Baseline]]+T_DataComboFile[[#This Row],[2022/23 Reduction]]+T_DataComboFile[[#This Row],[2022/23 Increase]] -> 0 | BU46: =T_DataComboFile[[#This Row],[2023/24 Baseline]]+T_DataComboFile[[#This Row],[2023/24 Reduction]]+T_DataComboFile[[#This Row],[2023/24 Increase]] -> 0
C47: 2021_22 | D47: ENE2020 | E47: 19 | F47: 1 | G47: 1 | I47: 34543 | J47: 19 | K47: 1 | L47: 1 | N47: 034543 | O47: 19|01|01 | P47: 1 | Q47: 1 | R47: 2 | S47: 28 | T47: 28 | U47: 01|01|02|28|28 | V47: National | W47: Social Development | X47: Administration | Y47: Ministry | AA47: Current | AB47: Current payments | AC47: Goods and services | AD47: Inventory: Medicine | AE47: Inventory: Medicine | AI47: 0 | AJ47: 0 | AK47: 0 | AL47: 0 | AM47: 0 | AN47: 0 | AO47: 0 | AP47: 0 | AQ47: 0 | AR47: 0 | AS47: 0 | AT47: 0 | AU47: 0 | AV47: 0 | AX47: =IF(T_DataComboFile[[#This Row],[G&S reporting level indicator]]=1,$AX$16,"Not applicable") -> Not applicable | AY47: =IF(AND($AX$16="Level 3",T_DataComboFile[[#This Row],[Econ3]] = "Goods and services"),IF(T_DataComboFile[[#This Row],[Econ4]] = T_DataComboFile[[#This Row],[Econ3]],1,0),IF(AND($AX$16="Level 4",T_DataComboFile[[#This Row],[Econ4]] = "Goods and services"),0,1)) -> 0 | AZ47: =T_DataComboFile[[#This Row],[2016/17_Source]]*T_DataComboFile[[#This Row],[G&S reporting level indicator]] -> 0 | BA47: =T_DataComboFile[[#This Row],[2017/18_Source]]*T_DataComboFile[[#This Row],[G&S reporting level indicator]] -> 0 | BB47: =T_DataComboFile[[#This Row],[2018/19_Source]]*T_DataComboFile[[#This Row],[G&S reporting level indicator]] -> 0 | BC47: =T_DataComboFile[[#This Row],[2019/20 Main appropriation_Source]]*T_DataComboFile[[#This Row],[G&S reporting level indicator]] -> 0 | BD47: =T_DataComboFile[[#This Row],[2019/20 Adjusted appropriation_Source]]*T_DataComboFile[[#This Row],[G&S reporting level indicator]] -> 0 | BE47: =T_DataComboFile[[#This Row],[2019/20 Revised estimate_Source]]*T_DataComboFile[[#This Row],[G&S reporting level indicator]] -> 0 | BF47: =T_DataComboFile[[#This Row],[2019/20 Preliminary outcome_Source]]*T_DataComboFile[[#This Row],[G&S reporting level indicator]] -> 0 | BG47: =T_DataComboFile[[#This Row],[2020/21 Original_Source]]*T_DataComboFile[[#This Row],[G&S reporting level indicator]] -> 0 | BH47: =T_DataComboFile[[#This Row],[2020/21 SAB_Source]]*T_DataComboFile[[#This Row],[G&S reporting level indicator]] -> 0 | BI47: =T_DataComboFile[[#This Row],[2020/21 Baseline_Source]]*T_DataComboFile[[#This Row],[G&S reporting level indicator]] -> 0 | BJ47: =T_DataComboFile[[#This Row],[2021/22 Baseline_Source]]*T_DataComboFile[[#This Row],[G&S reporting level indicator]] -> 0 | BK47: =T_DataComboFile[[#This Row],[2022/23 Baseline_Source]]*T_DataComboFile[[#This Row],[G&S reporting level indicator]] -> 0 | BL47: =T_DataComboFile[[#This Row],[2023/24 Baseline_Source]]*T_DataComboFile[[#This Row],[G&S reporting level indicator]] -> 0 | BS47: =T_DataComboFile[[#This Row],[2021/22 Baseline]]+T_DataComboFile[[#This Row],[2021/22 Reduction]]+T_DataComboFile[[#This Row],[2021/22 Increase]] -> 0 | BT47: =T_DataComboFile[[#This Row],[2022/23 Baseline]]+T_DataComboFile[[#This Row],[2022/23 Reduction]]+T_DataComboFile[[#This Row],[2022/23 Increase]] -> 0 | BU47: =T_DataComboFile[[#This Row],[2023/24 Baseline]]+T_DataComboFile[[#This Row],[2023/24 Reduction]]+T_DataComboFile[[#This Row],[2023/24 Increase]] -> 0
C48: 2021_22 | D48: ENE2020 | E48: 19 | F48: 1 | G48: 1 | I48: 34544 | J48: 19 | K48: 1 | L48: 1 | N48: 034544 | O48: 19|01|01 | P48: 1 | Q48: 1 | R48: 2 | S48: 29 | T48: 29 | U48: 01|01|02|29|29 | V48: National | W48: Social Development | X48: Administration | Y48: Ministry | AA48: Current | AB48: Current payments | AC48: Goods and services | AD48: Medsas inventory interface | AE48: Medsas inventory interface | AI48: 0 | AJ48: 0 | AK48: 0 | AL48: 0 | AM48: 0 | AN48: 0 | AO48: 0 | AP48: 0 | AQ48: 0 | AR48: 0 | AS48: 0 | AT48: 0 | AU48: 0 | AV48: 0 | AX48: =IF(T_DataComboFile[[#This Row],[G&S reporting level indicator]]=1,$AX$16,"Not applicable") -> Not applicable | AY48: =IF(AND($AX$16="Level 3",T_DataComboFile[[#This Row],[Econ3]] = "Goods and services"),IF(T_DataComboFile[[#This Row],[Econ4]] = T_DataComboFile[[#This Row],[Econ3]],1,0),IF(AND($AX$16="Level 4",T_DataComboFile[[#This Row],[Econ4]] = "Goods and services"),0,1)) -> 0 | AZ48: =T_DataComboFile[[#This Row],[2016/17_Source]]*T_DataComboFile[[#This Row],[G&S reporting level indicator]] -> 0 | BA48: =T_DataComboFile[[#This Row],[2017/18_Source]]*T_DataComboFile[[#This Row],[G&S reporting level indicator]] -> 0 | BB48: =T_DataComboFile[[#This Row],[2018/19_Source]]*T_DataComboFile[[#This Row],[G&S reporting level indicator]] -> 0 | BC48: =T_DataComboFile[[#This Row],[2019/20 Main appropriation_Source]]*T_DataComboFile[[#This Row],[G&S reporting level indicator]] -> 0 | BD48: =T_DataComboFile[[#This Row],[2019/20 Adjusted appropriation_Source]]*T_DataComboFile[[#This Row],[G&S reporting level indicator]] -> 0 | BE48: =T_DataComboFile[[#This Row],[2019/20 Revised estimate_Source]]*T_DataComboFile[[#This Row],[G&S reporting level indicator]] -> 0 | BF48: =T_DataComboFile[[#This Row],[2019/20 Preliminary outcome_Source]]*T_DataComboFile[[#This Row],[G&S reporting level indicator]] -> 0 | BG48: =T_DataComboFile[[#This Row],[2020/21 Original_Source]]*T_DataComboFile[[#This Row],[G&S reporting level indicator]] -> 0 | BH48: =T_DataComboFile[[#This Row],[2020/21 SAB_Source]]*T_DataComboFile[[#This Row],[G&S reporting level indicator]] -> 0 | BI48: =T_DataComboFile[[#This Row],[2020/21 Baseline_Source]]*T_DataComboFile[[#This Row],[G&S reporting level indicator]] -> 0 | BJ48: =T_DataComboFile[[#This Row],[2021/22 Baseline_Source]]*T_DataComboFile[[#This Row],[G&S reporting level indicator]] -> 0 | BK48: =T_DataComboFile[[#This Row],[2022/23 Baseline_Source]]*T_DataComboFile[[#This Row],[G&S reporting level indicator]] -> 0 | BL48: =T_DataComboFile[[#This Row],[2023/24 Baseline_Source]]*T_DataComboFile[[#This Row],[G&S reporting level indicator]] -> 0 | BS48: =T_DataComboFile[[#This Row],[2021/22 Baseline]]+T_DataComboFile[[#This Row],[2021/22 Reduction]]+T_DataComboFile[[#This Row],[2021/22 Increase]] -> 0 | BT48: =T_DataComboFile[[#This Row],[2022/23 Baseline]]+T_DataComboFile[[#This Row],[2022/23 Reduction]]+T_DataComboFile[[#This Row],[2022/23 Increase]] -> 0 | BU48: =T_DataComboFile[[#This Row],[2023/24 Baseline]]+T_DataComboFile[[#This Row],[2023/24 Reduction]]+T_DataComboFile[[#This Row],[2023/24 Increase]] -> 0
A49: NAT|Non-transfer item | B49: 19|Inventory: Other supplies | C49: 2021_22 | D49: ENE2020 | E49: 19 | F49: 1 | G49: 1 | H49: 7426 | I49: 34545 | J49: 19 | K49: 1 | L49: 1 | M49: 7426 | N49: 034545 | O49: 19|01|01 | P49: 1 | Q49: 1 | R49: 2 | S49: 30 | T49: 30 | U49: 01|01|02|30|30 | V49: National | W49: Social Development | X49: Administration | Y49: Ministry | Z49: Non-transfer item | AA49: Current | AB49: Current payments | AC49: Goods and services | AD49: Inventory: Other supplies | AE49: Inventory: Other supplies | AF49: Social development | AG49: Social protection | AH49: NAT | AI49: 0 | AJ49: 0 | AK49: 0 | AL49: 37 | AM49: 37 | AN49: 37 | AO49: 37 | AP49: 39 | AQ49: 39 | AR49: 39 | AS49: 41 | AT49: 43 | AU49: 45 | AV49: 1 | AX49: =IF(T_DataComboFile[[#This Row],[G&S reporting level indicator]]=1,$AX$16,"Not applicable") -> Not applicable | AY49: =IF(AND($AX$16="Level 3",T_DataComboFile[[#This Row],[Econ3]] = "Goods and services"),IF(T_DataComboFile[[#This Row],[Econ4]] = T_DataComboFile[[#This Row],[Econ3]],1,0),IF(AND($AX$16="Level 4",T_DataComboFile[[#This Row],[Econ4]] = "Goods and services"),0,1)) -> 0 | AZ49: =T_DataComboFile[[#This Row],[2016/17_Source]]*T_DataComboFile[[#This Row],[G&S reporting level indicator]] -> 0 | BA49: =T_DataComboFile[[#This Row],[2017/18_Source]]*T_DataComboFile[[#This Row],[G&S reporting level indicator]] -> 0 | BB49: =T_DataComboFile[[#This Row],[2018/19_Source]]*T_DataComboFile[[#This Row],[G&S reporting level indicator]] -> 0 | BC49: =T_DataComboFile[[#This Row],[2019/20 Main appropriation_Source]]*T_DataComboFile[[#This Row],[G&S reporting level indicator]] -> 0 | BD49: =T_DataComboFile[[#This Row],[2019/20 Adjusted appropriation_Source]]*T_DataComboFile[[#This Row],[G&S reporting level indicator]] -> 0 | BE49: =T_DataComboFile[[#This Row],[2019/20 Revised estimate_Source]]*T_DataComboFile[[#This Row],[G&S reporting level indicator]] -> 0 | BF49: =T_DataComboFile[[#This Row],[2019/20 Preliminary outcome_Source]]*T_DataComboFile[[#This Row],[G&S reporting level indicator]] -> 0 | BG49: =T_DataComboFile[[#This Row],[2020/21 Original_Source]]*T_DataComboFile[[#This Row],[G&S reporting level indicator]] -> 0 | BH49: =T_DataComboFile[[#This Row],[2020/21 SAB_Source]]*T_DataComboFile[[#This Row],[G&S reporting level indicator]] -> 0 | BI49: =T_DataComboFile[[#This Row],[2020/21 Baseline_Source]]*T_DataComboFile[[#This Row],[G&S reporting level indicator]] -> 0 | BJ49: =T_DataComboFile[[#This Row],[2021/22 Baseline_Source]]*T_DataComboFile[[#This Row],[G&S reporting level indicator]] -> 0 | BK49: =T_DataComboFile[[#This Row],[2022/23 Baseline_Source]]*T_DataComboFile[[#This Row],[G&S reporting level indicator]] -> 0 | BL49: =T_DataComboFile[[#This Row],[2023/24 Baseline_Source]]*T_DataComboFile[[#This Row],[G&S reporting level indicator]] -> 0 | BS49: =T_DataComboFile[[#This Row],[2021/22 Baseline]]+T_DataComboFile[[#This Row],[2021/22 Reduction]]+T_DataComboFile[[#This Row],[2021/22 Increase]] -> 0 | BT49: =T_DataComboFile[[#This Row],[2022/23 Baseline]]+T_DataComboFile[[#This Row],[2022/23 Reduction]]+T_DataComboFile[[#This Row],[2022/23 Increase]] -> 0 | BU49: =T_DataComboFile[[#This Row],[2023/24 Baseline]]+T_DataComboFile[[#This Row],[2023/24 Reduction]]+T_DataComboFile[[#This Row],[2023/24 Increase]] -> 0
A50: NAT|Non-transfer item | B50: 19|Consumable supplies | C50: 2021_22 | D50: ENE2020 | E50: 19 | F50: 1 | G50: 1 | H50: 7427 | I50: 34546 | J50: 19 | K50: 1 | L50: 1 | M50: 7427 | N50: 034546 | O50: 19|01|01 | P50: 1 | Q50: 1 | R50: 2 | S50: 31 | T50: 31 | U50: 01|01|02|31|31 | V50: National | W50: Social Development | X50: Administration | Y50: Ministry | Z50: Non-transfer item | AA50: Current | AB50: Current payments | AC50: Goods and services | AD50: Consumable supplies | AE50: Consumable supplies | AF50: Social development | AG50: Social protection | AH50: NAT | AI50: 0 | AJ50: 0 | AK50: 122 | AL50: 0 | AM50: 0 | AN50: 0 | AO50: 0 | AP50: 0 | AQ50: 0 | AR50: 0 | AS50: 0 | AT50: 0 | AU50: 0 | AV50: 1 | AX50: =IF(T_DataComboFile[[#This Row],[G&S reporting level indicator]]=1,$AX$16,"Not applicable") -> Not applicable | AY50: =IF(AND($AX$16="Level 3",T_DataComboFile[[#This Row],[Econ3]] = "Goods and services"),IF(T_DataComboFile[[#This Row],[Econ4]] = T_DataComboFile[[#This Row],[Econ3]],1,0),IF(AND($AX$16="Level 4",T_DataComboFile[[#This Row],[Econ4]] = "Goods and services"),0,1)) -> 0 | AZ50: =T_DataComboFile[[#This Row],[2016/17_Source]]*T_DataComboFile[[#This Row],[G&S reporting level indicator]] -> 0 | BA50: =T_DataComboFile[[#This Row],[2017/18_Source]]*T_DataComboFile[[#This Row],[G&S reporting level indicator]] -> 0 | BB50: =T_DataComboFile[[#This Row],[2018/19_Source]]*T_DataComboFile[[#This Row],[G&S reporting level indicator]] -> 0 | BC50: =T_DataComboFile[[#This Row],[2019/20 Main appropriation_Source]]*T_DataComboFile[[#This Row],[G&S reporting level indicator]] -> 0 | BD50: =T_DataComboFile[[#This Row],[2019/20 Adjusted appropriation_Source]]*T_DataComboFile[[#This Row],[G&S reporting level indicator]] -> 0 | BE50: =T_DataComboFile[[#This Row],[2019/20 Revised estimate_Source]]*T_DataComboFile[[#This Row],[G&S reporting level indicator]] -> 0 | BF50: =T_DataComboFile[[#This Row],[2019/20 Preliminary outcome_Source]]*T_DataComboFile[[#This Row],[G&S reporting level indicator]] -> 0 | BG50: =T_DataComboFile[[#This Row],[2020/21 Original_Source]]*T_DataComboFile[[#This Row],[G&S reporting level indicator]] -> 0 | BH50: =T_DataComboFile[[#This Row],[2020/21 SAB_Source]]*T_DataComboFile[[#This Row],[G&S reporting level indicator]] -> 0 | BI50: =T_DataComboFile[[#This Row],[2020/21 Baseline_Source]]*T_DataComboFile[[#This Row],[G&S reporting level indicator]] -> 0 | BJ50: =T_DataComboFile[[#This Row],[2021/22 Baseline_Source]]*T_DataComboFile[[#This Row],[G&S reporting level indicator]] -> 0 | BK50: =T_DataComboFile[[#This Row],[2022/23 Baseline_Source]]*T_DataComboFile[[#This Row],[G&S reporting level indicator]] -> 0 | BL50: =T_DataComboFile[[#This Row],[2023/24 Baseline_Source]]*T_DataComboFile[[#This Row],[G&S reporting level indicator]] -> 0 | BS50: =T_DataComboFile[[#This Row],[2021/22 Baseline]]+T_DataComboFile[[#This Row],[2021/22 Reduction]]+T_DataComboFile[[#This Row],[2021/22 Increase]] -> 0 | BT50: =T_DataComboFile[[#This Row],[2022/23 Baseline]]+T_DataComboFile[[#This Row],[2022/23 Reduction]]+T_DataComboFile[[#This Row],[2022/23 Increase]] -> 0 | BU50: =T_DataComboFile[[#This Row],[2023/24 Baseline]]+T_DataComboFile[[#This Row],[2023/24 Reduction]]+T_DataComboFile[[#This Row],[2023/24 Increase]] -> 0
A51: NAT|Non-transfer item | B51: 19|Consumables: Stationery, printing and office supplies | C51: 2021_22 | D51: ENE2020 | E51: 19 | F51: 1 | G51: 1 | H51: 7428 | I51: 34547 | J51: 19 | K51: 1 | L51: 1 | M51: 7428 | N51: 034547 | O51: 19|01|01 | P51: 1 | Q51: 1 | R51: 2 | S51: 32 | T51: 32 | U51: 01|01|02|32|32 | V51: National | W51: Social Development | X51: Administration | Y51: Ministry | Z51: Non-transfer item | AA51: Current | AB51: Current payments | AC51: Goods and services | AD51: Consumables: Stationery, printing and office supplies | AE51: Consumables: Stationery, printing and office supplies | AF51: Social development | AG51: Social protection | AH51: NAT | AI51: 213 | AJ51: 165 | AK51: 171 | AL51: 470 | AM51: 470 | AN51: 470 | AO51: 470 | AP51: 496 | AQ51: 496 | AR51: 496 | AS51: 523 | AT51: 542 | AU51: 566 | AV51: 1 | AX51: =IF(T_DataComboFile[[#This Row],[G&S reporting level indicator]]=1,$AX$16,"Not applicable") -> Not applicable | AY51: =IF(AND($AX$16="Level 3",T_DataComboFile[[#This Row],[Econ3]] = "Goods and services"),IF(T_DataComboFile[[#This Row],[Econ4]] = T_DataComboFile[[#This Row],[Econ3]],1,0),IF(AND($AX$16="Level 4",T_DataComboFile[[#This Row],[Econ4]] = "Goods and services"),0,1)) -> 0 | AZ51: =T_DataComboFile[[#This Row],[2016/17_Source]]*T_DataComboFile[[#This Row],[G&S reporting level indicator]] -> 0 | BA51: =T_DataComboFile[[#This Row],[2017/18_Source]]*T_DataComboFile[[#This Row],[G&S reporting level indicator]] -> 0 | BB51: =T_DataComboFile[[#This Row],[2018/19_Source]]*T_DataComboFile[[#This Row],[G&S reporting level indicator]] -> 0 | BC51: =T_DataComboFile[[#This Row],[2019/20 Main appropriation_Source]]*T_DataComboFile[[#This Row],[G&S reporting level indicator]] -> 0 | BD51: =T_DataComboFile[[#This Row],[2019/20 Adjusted appropriation_Source]]*T_DataComboFile[[#This Row],[G&S reporting level indicator]] -> 0 | BE51: =T_DataComboFile[[#This Row],[2019/20 Revised estimate_Source]]*T_DataComboFile[[#This Row],[G&S reporting level indicator]] -> 0 | BF51: =T_DataComboFile[[#This Row],[2019/20 Preliminary outcome_Source]]*T_DataComboFile[[#This Row],[G&S reporting level indicator]] -> 0 | BG51: =T_DataComboFile[[#This Row],[2020/21 Original_Source]]*T_DataComboFile[[#This Row],[G&S reporting level indicator]] -> 0 | BH51: =T_DataComboFile[[#This Row],[2020/21 SAB_Source]]*T_DataComboFile[[#This Row],[G&S reporting level indicator]] -> 0 | BI51: =T_DataComboFile[[#This Row],[2020/21 Baseline_Source]]*T_DataComboFile[[#This Row],[G&S reporting level indicator]] -> 0 | BJ51: =T_DataComboFile[[#This Row],[2021/22 Baseline_Source]]*T_DataComboFile[[#This Row],[G&S reporting level indicator]] -> 0 | BK51: =T_DataComboFile[[#This Row],[2022/23 Baseline_Source]]*T_DataComboFile[[#This Row],[G&S reporting level indicator]] -> 0 | BL51: =T_DataComboFile[[#This Row],[2023/24 Baseline_Source]]*T_DataComboFile[[#This Row],[G&S reporting level indicator]] -> 0 | BS51: =T_DataComboFile[[#This Row],[2021/22 Baseline]]+T_DataComboFile[[#This Row],[2021/22 Reduction]]+T_DataComboFile[[#This Row],[2021/22 Increase]] -> 0 | BT51: =T_DataComboFile[[#This Row],[2022/23 Baseline]]+T_DataComboFile[[#This Row],[2022/23 Reduction]]+T_DataComboFile[[#This Row],[2022/23 Increase]] -> 0 | BU51: =T_DataComboFile[[#This Row],[2023/24 Baseline]]+T_DataComboFile[[#This Row],[2023/24 Reduction]]+T_DataComboFile[[#This Row],[2023/24 Increase]] -> 0
A52: NAT|Non-transfer item | B52: 19|Operating leases | C52: 2021_22 | D52: ENE2020 | E52: 19 | F52: 1 | G52: 1 | H52: 7429 | I52: 34548 | J52: 19 | K52: 1 | L52: 1 | M52: 7429 | N52: 034548 | O52: 19|01|01 | P52: 1 | Q52: 1 | R52: 2 | S52: 33 | T52: 33 | U52: 01|01|02|33|33 | V52: National | W52: Social Development | X52: Administration | Y52: Ministry | Z52: Non-transfer item | AA52: Current | AB52: Current payments | AC52: Goods and services | AD52: Operating leases | AE52: Operating leases | AF52: Social development | AG52: Social protection | AH52: NAT | AI52: 81 | AJ52: 389 | AK52: 282 | AL52: 185 | AM52: 185 | AN52: 185 | AO52: 185 | AP52: 195 | AQ52: 195 | AR52: 195 | AS52: 206 | AT52: 214 | AU52: 223 | AV52: 1 | AX52: =IF(T_DataComboFile[[#This Row],[G&S reporting level indicator]]=1,$AX$16,"Not applicable") -> Not applicable | AY52: =IF(AND($AX$16="Level 3",T_DataComboFile[[#This Row],[Econ3]] = "Goods and services"),IF(T_DataComboFile[[#This Row],[Econ4]] = T_DataComboFile[[#This Row],[Econ3]],1,0),IF(AND($AX$16="Level 4",T_DataComboFile[[#This Row],[Econ4]] = "Goods and services"),0,1)) -> 0 | AZ52: =T_DataComboFile[[#This Row],[2016/17_Source]]*T_DataComboFile[[#This Row],[G&S reporting level indicator]] -> 0 | BA52: =T_DataComboFile[[#This Row],[2017/18_Source]]*T_DataComboFile[[#This Row],[G&S reporting level indicator]] -> 0 | BB52: =T_DataComboFile[[#This Row],[2018/19_Source]]*T_DataComboFile[[#This Row],[G&S reporting level indicator]] -> 0 | BC52: =T_DataComboFile[[#This Row],[2019/20 Main appropriation_Source]]*T_DataComboFile[[#This Row],[G&S reporting level indicator]] -> 0 | BD52: =T_DataComboFile[[#This Row],[2019/20 Adjusted appropriation_Source]]*T_DataComboFile[[#This Row],[G&S reporting level indicator]] -> 0 | BE52: =T_DataComboFile[[#This Row],[2019/20 Revised estimate_Source]]*T_DataComboFile[[#This Row],[G&S reporting level indicator]] -> 0 | BF52: =T_DataComboFile[[#This Row],[2019/20 Preliminary outcome_Source]]*T_DataComboFile[[#This Row],[G&S reporting level indicator]] -> 0 | BG52: =T_DataComboFile[[#This Row],[2020/21 Original_Source]]*T_DataComboFile[[#This Row],[G&S reporting level indicator]] -> 0 | BH52: =T_DataComboFile[[#This Row],[2020/21 SAB_Source]]*T_DataComboFile[[#This Row],[G&S reporting level indicator]] -> 0 | BI52: =T_DataComboFile[[#This Row],[2020/21 Baseline_Source]]*T_DataComboFile[[#This Row],[G&S reporting level indicator]] -> 0 | BJ52: =T_DataComboFile[[#This Row],[2021/22 Baseline_Source]]*T_DataComboFile[[#This Row],[G&S reporting level indicator]] -> 0 | BK52: =T_DataComboFile[[#This Row],[2022/23 Baseline_Source]]*T_DataComboFile[[#This Row],[G&S reporting level indicator]] -> 0 | BL52: =T_DataComboFile[[#This Row],[2023/24 Baseline_Source]]*T_DataComboFile[[#This Row],[G&S reporting level indicator]] -> 0 | BS52: =T_DataComboFile[[#This Row],[2021/22 Baseline]]+T_DataComboFile[[#This Row],[2021/22 Reduction]]+T_DataComboFile[[#This Row],[2021/22 Increase]] -> 0 | BT52: =T_DataComboFile[[#This Row],[2022/23 Baseline]]+T_DataComboFile[[#This Row],[2022/23 Reduction]]+T_DataComboFile[[#This Row],[2022/23 Increase]] -> 0 | BU52: =T_DataComboFile[[#This Row],[2023/24 Baseline]]+T_DataComboFile[[#This Row],[2023/24 Reduction]]+T_DataComboFile[[#This Row],[2023/24 Increase]] -> 0
A53: NAT|Non-transfer item | B53: 19|Rental and hiring | C53: 2021_22 | D53: ENE2020 | E53: 19 | F53: 1 | G53: 1 | H53: 7430 | I53: 34549 | J53: 19 | K53: 1 | L53: 1 | M53: 7430 | N53: 034549 | O53: 19|01|01 | P53: 1 | Q53: 1 | R53: 2 | S53: 34 | T53: 34 | U53: 01|01|02|34|34 | V53: National | W53: Social Development | X53: Administration | Y53: Ministry | Z53: Non-transfer item | AA53: Current | AB53: Current payments | AC53: Goods and services | AD53: Rental and hiring | AE53: Rental and hiring | AF53: Social development | AG53: Social protection | AH53: NAT | AI53: 5 | AJ53: 66 | AK53: 50 | AL53: 0 | AM53: 0 | AN53: 0 | AO53: 0 | AP53: 0 | AQ53: 0 | AR53: 0 | AS53: 0 | AT53: 0 | AU53: 0 | AV53: 1 | AX53: =IF(T_DataComboFile[[#This Row],[G&S reporting level indicator]]=1,$AX$16,"Not applicable") -> Not applicable | AY53: =IF(AND($AX$16="Level 3",T_DataComboFile[[#This Row],[Econ3]] = "Goods and services"),IF(T_DataComboFile[[#This Row],[Econ4]] = T_DataComboFile[[#This Row],[Econ3]],1,0),IF(AND($AX$16="Level 4",T_DataComboFile[[#This Row],[Econ4]] = "Goods and services"),0,1)) -> 0 | AZ53: =T_DataComboFile[[#This Row],[2016/17_Source]]*T_DataComboFile[[#This Row],[G&S reporting level indicator]] -> 0 | BA53: =T_DataComboFile[[#This Row],[2017/18_Source]]*T_DataComboFile[[#This Row],[G&S reporting level indicator]] -> 0 | BB53: =T_DataComboFile[[#This Row],[2018/19_Source]]*T_DataComboFile[[#This Row],[G&S reporting level indicator]] -> 0 | BC53: =T_DataComboFile[[#This Row],[2019/20 Main appropriation_Source]]*T_DataComboFile[[#This Row],[G&S reporting level indicator]] -> 0 | BD53: =T_DataComboFile[[#This Row],[2019/20 Adjusted appropriation_Source]]*T_DataComboFile[[#This Row],[G&S reporting level indicator]] -> 0 | BE53: =T_DataComboFile[[#This Row],[2019/20 Revised estimate_Source]]*T_DataComboFile[[#This Row],[G&S reporting level indicator]] -> 0 | BF53: =T_DataComboFile[[#This Row],[2019/20 Preliminary outcome_Source]]*T_DataComboFile[[#This Row],[G&S reporting level indicator]] -> 0 | BG53: =T_DataComboFile[[#This Row],[2020/21 Original_Source]]*T_DataComboFile[[#This Row],[G&S reporting level indicator]] -> 0 | BH53: =T_DataComboFile[[#This Row],[2020/21 SAB_Source]]*T_DataComboFile[[#This Row],[G&S reporting level indicator]] -> 0 | BI53: =T_DataComboFile[[#This Row],[2020/21 Baseline_Source]]*T_DataComboFile[[#This Row],[G&S reporting level indicator]] -> 0 | BJ53: =T_DataComboFile[[#This Row],[2021/22 Baseline_Source]]*T_DataComboFile[[#This Row],[G&S reporting level indicator]] -> 0 | BK53: =T_DataComboFile[[#This Row],[2022/23 Baseline_Source]]*T_DataComboFile[[#This Row],[G&S reporting level indicator]] -> 0 | BL53: =T_DataComboFile[[#This Row],[2023/24 Baseline_Source]]*T_DataComboFile[[#This Row],[G&S reporting level indicator]] -> 0 | BS53: =T_DataComboFile[[#This Row],[2021/22 Baseline]]+T_DataComboFile[[#This Row],[2021/22 Reduction]]+T_DataComboFile[[#This Row],[2021/22 Increase]] -> 0 | BT53: =T_DataComboFile[[#This Row],[2022/23 Baseline]]+T_DataComboFile[[#This Row],[2022/23 Reduction]]+T_DataComboFile[[#This Row],[2022/23 Increase]] -> 0 | BU53: =T_DataComboFile[[#This Row],[2023/24 Baseline]]+T_DataComboFile[[#This Row],[2023/24 Reduction]]+T_DataComboFile[[#This Row],[2023/24 Increase]] -> 0
A54: NAT|Non-transfer item | B54: 19|Property payments | C54: 2021_22 | D54: ENE2020 | E54: 19 | F54: 1 | G54: 1 | H54: 7431 | I54: 34550 | J54: 19 | K54: 1 | L54: 1 | M54: 7431 | N54: 034550 | O54: 19|01|01 | P54: 1 | Q54: 1 | R54: 2 | S54: 35 | T54: 35 | U54: 01|01|02|35|35 | V54: National | W54: Social Development | X54: Administration | Y54: Ministry | Z54: Non-transfer item | AA54: Current | AB54: Current payments | AC54: Goods and services | AD54: Property payments | AE54: Property payments | AF54: Social development | AG54: Social protection | AH54: NAT | AI54: 0 | AJ54: 2 | AK54: 38 | AL54: 0 | AM54: 0 | AN54: 0 | AO54: 0 | AP54: 0 | AQ54: 0 | AR54: 0 | AS54: 0 | AT54: 0 | AU54: 0 | AV54: 1 | AX54: =IF(T_DataComboFile[[#This Row],[G&S reporting level indicator]]=1,$AX$16,"Not applicable") -> Not applicable | AY54: =IF(AND($AX$16="Level 3",T_DataComboFile[[#This Row],[Econ3]] = "Goods and services"),IF(T_DataComboFile[[#This Row],[Econ4]] = T_DataComboFile[[#This Row],[Econ3]],1,0),IF(AND($AX$16="Level 4",T_DataComboFile[[#This Row],[Econ4]] = "Goods and services"),0,1)) -> 0 | AZ54: =T_DataComboFile[[#This Row],[2016/17_Source]]*T_DataComboFile[[#This Row],[G&S reporting level indicator]] -> 0 | BA54: =T_DataComboFile[[#This Row],[2017/18_Source]]*T_DataComboFile[[#This Row],[G&S reporting level indicator]] -> 0 | BB54: =T_DataComboFile[[#This Row],[2018/19_Source]]*T_DataComboFile[[#This Row],[G&S reporting level indicator]] -> 0 | BC54: =T_DataComboFile[[#This Row],[2019/20 Main appropriation_Source]]*T_DataComboFile[[#This Row],[G&S reporting level indicator]] -> 0 | BD54: =T_DataComboFile[[#This Row],[2019/20 Adjusted appropriation_Source]]*T_DataComboFile[[#This Row],[G&S reporting level indicator]] -> 0 | BE54: =T_DataComboFile[[#This Row],[2019/20 Revised estimate_Source]]*T_DataComboFile[[#This Row],[G&S reporting level indicator]] -> 0 | BF54: =T_DataComboFile[[#This Row],[2019/20 Preliminary outcome_Source]]*T_DataComboFile[[#This Row],[G&S reporting level indicator]] -> 0 | BG54: =T_DataComboFile[[#This Row],[2020/21 Original_Source]]*T_DataComboFile[[#This Row],[G&S reporting level indicator]] -> 0 | BH54: =T_DataComboFile[[#This Row],[2020/21 SAB_Source]]*T_DataComboFile[[#This Row],[G&S reporting level indicator]] -> 0 | BI54: =T_DataComboFile[[#This Row],[2020/21 Baseline_Source]]*T_DataComboFile[[#This Row],[G&S reporting level indicator]] -> 0 | BJ54: =T_DataComboFile[[#This Row],[2021/22 Baseline_Source]]*T_DataComboFile[[#This Row],[G&S reporting level indicator]] -> 0 | BK54: =T_DataComboFile[[#This Row],[2022/23 Baseline_Source]]*T_DataComboFile[[#This Row],[G&S reporting level indicator]] -> 0 | BL54: =T_DataComboFile[[#This Row],[2023/24 Baseline_Source]]*T_DataComboFile[[#This Row],[G&S reporting level indicator]] -> 0 | BS54: =T_DataComboFile[[#This Row],[2021/22 Baseline]]+T_DataComboFile[[#This Row],[2021/22 Reduction]]+T_DataComboFile[[#This Row],[2021/22 Increase]] -> 0 | BT54: =T_DataComboFile[[#This Row],[2022/23 Baseline]]+T_DataComboFile[[#This Row],[2022/23 Reduction]]+T_DataComboFile[[#This Row],[2022/23 Increase]] -> 0 | BU54: =T_DataComboFile[[#This Row],[2023/24 Baseline]]+T_DataComboFile[[#This Row],[2023/24 Reduction]]+T_DataComboFile[[#This Row],[2023/24 Increase]] -> 0
C55: 2021_22 | D55: ENE2020 | E55: 19 | F55: 1 | G55: 1 | I55: 34551 | J55: 19 | K55: 1 | L55: 1 | N55: 034551 | O55: 19|01|01 | P55: 1 | Q55: 1 | R55: 2 | S55: 36 | T55: 36 | U55: 01|01|02|36|36 | V55: National | W55: Social Development | X55: Administration | Y55: Ministry | AA55: Current | AB55: Current payments | AC55: Goods and services | AD55: Transport provided: Departmental activity | AE55: Transport provided: Departmental activity | AI55: 0 | AJ55: 0 | AK55: 0 | AL55: 0 | AM55: 0 | AN55: 0 | AO55: 0 | AP55: 0 | AQ55: 0 | AR55: 0 | AS55: 0 | AT55: 0 | AU55: 0 | AV55: 0 | AX55: =IF(T_DataComboFile[[#This Row],[G&S reporting level indicator]]=1,$AX$16,"Not applicable") -> Not applicable | AY55: =IF(AND($AX$16="Level 3",T_DataComboFile[[#This Row],[Econ3]] = "Goods and services"),IF(T_DataComboFile[[#This Row],[Econ4]] = T_DataComboFile[[#This Row],[Econ3]],1,0),IF(AND($AX$16="Level 4",T_DataComboFile[[#This Row],[Econ4]] = "Goods and services"),0,1)) -> 0 | AZ55: =T_DataComboFile[[#This Row],[2016/17_Source]]*T_DataComboFile[[#This Row],[G&S reporting level indicator]] -> 0 | BA55: =T_DataComboFile[[#This Row],[2017/18_Source]]*T_DataComboFile[[#This Row],[G&S reporting level indicator]] -> 0 | BB55: =T_DataComboFile[[#This Row],[2018/19_Source]]*T_DataComboFile[[#This Row],[G&S reporting level indicator]] -> 0 | BC55: =T_DataComboFile[[#This Row],[2019/20 Main appropriation_Source]]*T_DataComboFile[[#This Row],[G&S reporting level indicator]] -> 0 | BD55: =T_DataComboFile[[#This Row],[2019/20 Adjusted appropriation_Source]]*T_DataComboFile[[#This Row],[G&S reporting level indicator]] -> 0 | BE55: =T_DataComboFile[[#This Row],[2019/20 Revised estimate_Source]]*T_DataComboFile[[#This Row],[G&S reporting level indicator]] -> 0 | BF55: =T_DataComboFile[[#This Row],[2019/20 Preliminary outcome_Source]]*T_DataComboFile[[#This Row],[G&S reporting level indicator]] -> 0 | BG55: =T_DataComboFile[[#This Row],[2020/21 Original_Source]]*T_DataComboFile[[#This Row],[G&S reporting level indicator]] -> 0 | BH55: =T_DataComboFile[[#This Row],[2020/21 SAB_Source]]*T_DataComboFile[[#This Row],[G&S reporting level indicator]] -> 0 | BI55: =T_DataComboFile[[#This Row],[2020/21 Baseline_Source]]*T_DataComboFile[[#This Row],[G&S reporting level indicator]] -> 0 | BJ55: =T_DataComboFile[[#This Row],[2021/22 Baseline_Source]]*T_DataComboFile[[#This Row],[G&S reporting level indicator]] -> 0 | BK55: =T_DataComboFile[[#This Row],[2022/23 Baseline_Source]]*T_DataComboFile[[#This Row],[G&S reporting level indicator]] -> 0 | BL55: =T_DataComboFile[[#This Row],[2023/24 Baseline_Source]]*T_DataComboFile[[#This Row],[G&S reporting level indicator]] -> 0 | BS55: =T_DataComboFile[[#This Row],[2021/22 Baseline]]+T_DataComboFile[[#This Row],[2021/22 Reduction]]+T_DataComboFile[[#This Row],[2021/22 Increase]] -> 0 | BT55: =T_DataComboFile[[#This Row],[2022/23 Baseline]]+T_DataComboFile[[#This Row],[2022/23 Reduction]]+T_DataComboFile[[#This Row],[2022/23 Increase]] -> 0 | BU55: =T_DataComboFile[[#This Row],[2023/24 Baseline]]+T_DataComboFile[[#This Row],[2023/24 Reduction]]+T_DataComboFile[[#This Row],[2023/24 Increase]] -> 0
A56: NAT|Non-transfer item | B56: 19|Travel and subsistence | C56: 2021_22 | D56: ENE2020 | E56: 19 | F56: 1 | G56: 1 | H56: 7432 | I56: 34552 | J56: 19 | K56: 1 | L56: 1 | M56: 7432 | N56: 034552 | O56: 19|01|01 | P56: 1 | Q56: 1 | R56: 2 | S56: 37 | T56: 37 | U56: 01|01|02|37|37 | V56: National | W56: Social Development | X56: Administration | Y56: Ministry | Z56: Non-transfer item | AA56: Current | AB56: Current payments | AC56: Goods and services | AD56: Travel and subsistence | AE56: Travel and subsistence | AF56: Social development | AG56: Social protection | AH56: NAT | AI56: 21743 | AJ56: 19173 | AK56: 17556 | AL56: 9054 | AM56: 9054 | AN56: 9054 | AO56: 9054 | AP56: 9552 | AQ56: 6552 | AR56: 9552 | AS56: 10077 | AT56: 10452 | AU56: 10913 | AV56: 1 | AX56: =IF(T_DataComboFile[[#This Row],[G&S reporting level indicator]]=1,$AX$16,"Not applicable") -> Not applicable | AY56: =IF(AND($AX$16="Level 3",T_DataComboFile[[#This Row],[Econ3]] = "Goods and services"),IF(T_DataComboFile[[#This Row],[Econ4]] = T_DataComboFile[[#This Row],[Econ3]],1,0),IF(AND($AX$16="Level 4",T_DataComboFile[[#This Row],[Econ4]] = "Goods and services"),0,1)) -> 0 | AZ56: =T_DataComboFile[[#This Row],[2016/17_Source]]*T_DataComboFile[[#This Row],[G&S reporting level indicator]] -> 0 | BA56: =T_DataComboFile[[#This Row],[2017/18_Source]]*T_DataComboFile[[#This Row],[G&S reporting level indicator]] -> 0 | BB56: =T_DataComboFile[[#This Row],[2018/19_Source]]*T_DataComboFile[[#This Row],[G&S reporting level indicator]] -> 0 | BC56: =T_DataComboFile[[#This Row],[2019/20 Main appropriation_Source]]*T_DataComboFile[[#This Row],[G&S reporting level indicator]] -> 0 | BD56: =T_DataComboFile[[#This Row],[2019/20 Adjusted appropriation_Source]]*T_DataComboFile[[#This Row],[G&S reporting level indicator]] -> 0 | BE56: =T_DataComboFile[[#This Row],[2019/20 Revised estimate_Source]]*T_DataComboFile[[#This Row],[G&S reporting level indicator]] -> 0 | BF56: =T_DataComboFile[[#This Row],[2019/20 Preliminary outcome_Source]]*T_DataComboFile[[#This Row],[G&S reporting level indicator]] -> 0 | BG56: =T_DataComboFile[[#This Row],[2020/21 Original_Source]]*T_DataComboFile[[#This Row],[G&S reporting level indicator]] -> 0 | BH56: =T_DataComboFile[[#This Row],[2020/21 SAB_Source]]*T_DataComboFile[[#This Row],[G&S reporting level indicator]] -> 0 | BI56: =T_DataComboFile[[#This Row],[2020/21 Baseline_Source]]*T_DataComboFile[[#This Row],[G&S reporting level indicator]] -> 0 | BJ56: =T_DataComboFile[[#This Row],[2021/22 Baseline_Source]]*T_DataComboFile[[#This Row],[G&S reporting level indicator]] -> 0 | BK56: =T_DataComboFile[[#This Row],[2022/23 Baseline_Source]]*T_DataComboFile[[#This Row],[G&S reporting level indicator]] -> 0 | BL56: =T_DataComboFile[[#This Row],[2023/24 Baseline_Source]]*T_DataComboFile[[#This Row],[G&S reporting level indicator]] -> 0 | BS56: =T_DataComboFile[[#This Row],[2021/22 Baseline]]+T_DataComboFile[[#This Row],[2021/22 Reduction]]+T_DataComboFile[[#This Row],[2021/22 Increase]] -> 0 | BT56: =T_DataComboFile[[#This Row],[2022/23 Baseline]]+T_DataComboFile[[#This Row],[2022/23 Reduction]]+T_DataComboFile[[#This Row],[2022/23 Increase]] -> 0 | BU56: =T_DataComboFile[[#This Row],[2023/24 Baseline]]+T_DataComboFile[[#This Row],[2023/24 Reduction]]+T_DataComboFile[[#This Row],[2023/24 Increase]] -> 0
A57: NAT|Non-transfer item | B57: 19|Training and development | C57: 2021_22 | D57: ENE2020 | E57: 19 | F57: 1 | G57: 1 | H57: 7433 | I57: 34553 | J57: 19 | K57: 1 | L57: 1 | M57: 7433 | N57: 034553 | O57: 19|01|01 | P57: 1 | Q57: 1 | R57: 2 | S57: 38 | T57: 38 | U57: 01|01|02|38|38 | V57: National | W57: Social Development | X57: Administration | Y57: Ministry | Z57: Non-transfer item | AA57: Current | AB57: Current payments | AC57: Goods and services | AD57: Training and development | AE57: Training and development | AF57: Social development | AG57: Social protection | AH57: NAT | AI57: 0 | AJ57: 34 | AK57: 51 | AL57: 99 | AM57: 99 | AN57: 99 | AO57: 99 | AP57: 104 | AQ57: 104 | AR57: 104 | AS57: 110 | AT57: 114 | AU57: 119 | AV57: 1 | AX57: =IF(T_DataComboFile[[#This Row],[G&S reporting level indicator]]=1,$AX$16,"Not applicable") -> Not applicable | AY57: =IF(AND($AX$16="Level 3",T_DataComboFile[[#This Row],[Econ3]] = "Goods and services"),IF(T_DataComboFile[[#This Row],[Econ4]] = T_DataComboFile[[#This Row],[Econ3]],1,0),IF(AND($AX$16="Level 4",T_DataComboFile[[#This Row],[Econ4]] = "Goods and services"),0,1)) -> 0 | AZ57: =T_DataComboFile[[#This Row],[2016/17_Source]]*T_DataComboFile[[#This Row],[G&S reporting level indicator]] -> 0 | BA57: =T_DataComboFile[[#This Row],[2017/18_Source]]*T_DataComboFile[[#This Row],[G&S reporting level indicator]] -> 0 | BB57: =T_DataComboFile[[#This Row],[2018/19_Source]]*T_DataComboFile[[#This Row],[G&S reporting level indicator]] -> 0 | BC57: =T_DataComboFile[[#This Row],[2019/20 Main appropriation_Source]]*T_DataComboFile[[#This Row],[G&S reporting level indicator]] -> 0 | BD57: =T_DataComboFile[[#This Row],[2019/20 Adjusted appropriation_Source]]*T_DataComboFile[[#This Row],[G&S reporting level indicator]] -> 0 | BE57: =T_DataComboFile[[#This Row],[2019/20 Revised estimate_Source]]*T_DataComboFile[[#This Row],[G&S reporting level indicator]] -> 0 | BF57: =T_DataComboFile[[#This Row],[2019/20 Preliminary outcome_Source]]*T_DataComboFile[[#This Row],[G&S reporting level indicator]] -> 0 | BG57: =T_DataComboFile[[#This Row],[2020/21 Original_Source]]*T_DataComboFile[[#This Row],[G&S reporting level indicator]] -> 0 | BH57: =T_DataComboFile[[#This Row],[2020/21 SAB_Source]]*T_DataComboFile[[#This Row],[G&S reporting level indicator]] -> 0 | BI57: =T_DataComboFile[[#This Row],[2020/21 Baseline_Source]]*T_DataComboFile[[#This Row],[G&S reporting level indicator]] -> 0 | BJ57: =T_DataComboFile[[#This Row],[2021/22 Baseline_Source]]*T_DataComboFile[[#This Row],[G&S reporting level indicator]] -> 0 | BK57: =T_DataComboFile[[#This Row],[2022/23 Baseline_Source]]*T_DataComboFile[[#This Row],[G&S reporting level indicator]] -> 0 | BL57: =T_DataComboFile[[#This Row],[2023/24 Baseline_Source]]*T_DataComboFile[[#This Row],[G&S reporting level indicator]] -> 0 | BS57: =T_DataComboFile[[#This Row],[2021/22 Baseline]]+T_DataComboFile[[#This Row],[2021/22 Reduction]]+T_DataComboFile[[#This Row],[2021/22 Increase]] -> 0 | BT57: =T_DataComboFile[[#This Row],[2022/23 Baseline]]+T_DataComboFile[[#This Row],[2022/23 Reduction]]+T_DataComboFile[[#This Row],[2022/23 Increase]] -> 0 | BU57: =T_DataComboFile[[#This Row],[2023/24 Baseline]]+T_DataComboFile[[#This Row],[2023/24 Reduction]]+T_DataComboFile[[#This Row],[2023/24 Increase]] -> 0
A58: NAT|Non-transfer item | B58: 19|Operating payments | C58: 2021_22 | D58: ENE2020 | E58: 19 | F58: 1 | G58: 1 | H58: 7434 | I58: 34554 | J58: 19 | K58: 1 | L58: 1 | M58: 7434 | N58: 034554 | O58: 19|01|01 | P58: 1 | Q58: 1 | R58: 2 | S58: 39 | T58: 39 | U58: 01|01|02|39|39 | V58: National | W58: Social Development | X58: Administration | Y58: Ministry | Z58: Non-transfer item | AA58: Current | AB58: Current payments | AC58: Goods and services | AD58: Operating payments | AE58: Operating payments | AF58: Social development | AG58: Social protection | AH58: NAT | AI58: 179 | AJ58: 104 | AK58: 45 | AL58: 122 | AM58: 122 | AN58: 122 | AO58: 122 | AP58: 129 | AQ58: 129 | AR58: 129 | AS58: 136 | AT58: 141 | AU58: 147 | AV58: 1 | AX58: =IF(T_DataComboFile[[#This Row],[G&S reporting level indicator]]=1,$AX$16,"Not applicable") -> Not applicable | AY58: =IF(AND($AX$16="Level 3",T_DataComboFile[[#This Row],[Econ3]] = "Goods and services"),IF(T_DataComboFile[[#This Row],[Econ4]] = T_DataComboFile[[#This Row],[Econ3]],1,0),IF(AND($AX$16="Level 4",T_DataComboFile[[#This Row],[Econ4]] = "Goods and services"),0,1)) -> 0 | AZ58: =T_DataComboFile[[#This Row],[2016/17_Source]]*T_DataComboFile[[#This Row],[G&S reporting level indicator]] -> 0 | BA58: =T_DataComboFile[[#This Row],[2017/18_Source]]*T_DataComboFile[[#This Row],[G&S reporting level indicator]] -> 0 | BB58: =T_DataComboFile[[#This Row],[2018/19_Source]]*T_DataComboFile[[#This Row],[G&S reporting level indicator]] -> 0 | BC58: =T_DataComboFile[[#This Row],[2019/20 Main appropriation_Source]]*T_DataComboFile[[#This Row],[G&S reporting level indicator]] -> 0 | BD58: =T_DataComboFile[[#This Row],[2019/20 Adjusted appropriation_Source]]*T_DataComboFile[[#This Row],[G&S reporting level indicator]] -> 0 | BE58: =T_DataComboFile[[#This Row],[2019/20 Revised estimate_Source]]*T_DataComboFile[[#This Row],[G&S reporting level indicator]] -> 0 | BF58: =T_DataComboFile[[#This Row],[2019/20 Preliminary outcome_Source]]*T_DataComboFile[[#This Row],[G&S reporting level indicator]] -> 0 | BG58: =T_DataComboFile[[#This Row],[2020/21 Original_Source]]*T_DataComboFile[[#This Row],[G&S reporting level indicator]] -> 0 | BH58: =T_DataComboFile[[#This Row],[2020/21 SAB_Source]]*T_DataComboFile[[#This Row],[G&S reporting level indicator]] -> 0 | BI58: =T_DataComboFile[[#This Row],[2020/21 Baseline_Source]]*T_DataComboFile[[#This Row],[G&S reporting level indicator]] -> 0 | BJ58: =T_DataComboFile[[#This Row],[2021/22 Baseline_Source]]*T_DataComboFile[[#This Row],[G&S reporting level indicator]] -> 0 | BK58: =T_DataComboFile[[#This Row],[2022/23 Baseline_Source]]*T_DataComboFile[[#This Row],[G&S reporting level indicator]] -> 0 | BL58: =T_DataComboFile[[#This Row],[2023/24 Baseline_Source]]*T_DataComboFile[[#This Row],[G&S reporting level indicator]] -> 0 | BS58: =T_DataComboFile[[#This Row],[2021/22 Baseline]]+T_DataComboFile[[#This Row],[2021/22 Reduction]]+T_DataComboFile[[#This Row],[2021/22 Increase]] -> 0 | BT58: =T_DataComboFile[[#This Row],[2022/23 Baseline]]+T_DataComboFile[[#This Row],[2022/23 Reduction]]+T_DataComboFile[[#This Row],[2022/23 Increase]] -> 0 | BU58: =T_DataComboFile[[#This Row],[2023/24 Baseline]]+T_DataComboFile[[#This Row],[2023/24 Reduction]]+T_DataComboFile[[#This Row],[2023/24 Increase]] -> 0
A59: NAT|Non-transfer item | B59: 19|Venues and facilities | C59: 2021_22 | D59: ENE2020 | E59: 19 | F59: 1 | G59: 1 | H59: 7435 | I59: 34555 | J59: 19 | K59: 1 | L59: 1 | M59: 7435 | N59: 034555 | O59: 19|01|01 | P59: 1 | Q59: 1 | R59: 2 | S59: 40 | T59: 40 | U59: 01|01|02|40|40 | V59: National | W59: Social Development | X59: Administration | Y59: Ministry | Z59: Non-transfer item | AA59: Current | AB59: Current payments | AC59: Goods and services | AD59: Venues and facilities | AE59: Venues and facilities | AF59: Social development | AG59: Social protection | AH59: NAT | AI59: 376 | AJ59: 357 | AK59: 313 | AL59: 771 | AM59: 771 | AN59: 771 | AO59: 771 | AP59: 813 | AQ59: 813 | AR59: 813 | AS59: 858 | AT59: 890 | AU59: 929 | AV59: 1 | AX59: =IF(T_DataComboFile[[#This Row],[G&S reporting level indicator]]=1,$AX$16,"Not applicable") -> Not applicable | AY59: =IF(AND($AX$16="Level 3",T_DataComboFile[[#This Row],[Econ3]] = "Goods and services"),IF(T_DataComboFile[[#This Row],[Econ4]] = T_DataComboFile[[#This Row],[Econ3]],1,0),IF(AND($AX$16="Level 4",T_DataComboFile[[#This Row],[Econ4]] = "Goods and services"),0,1)) -> 0 | AZ59: =T_DataComboFile[[#This Row],[2016/17_Source]]*T_DataComboFile[[#This Row],[G&S reporting level indicator]] -> 0 | BA59: =T_DataComboFile[[#This Row],[2017/18_Source]]*T_DataComboFile[[#This Row],[G&S reporting level indicator]] -> 0 | BB59: =T_DataComboFile[[#This Row],[2018/19_Source]]*T_DataComboFile[[#This Row],[G&S reporting level indicator]] -> 0 | BC59: =T_DataComboFile[[#This Row],[2019/20 Main appropriation_Source]]*T_DataComboFile[[#This Row],[G&S reporting level indicator]] -> 0 | BD59: =T_DataComboFile[[#This Row],[2019/20 Adjusted appropriation_Source]]*T_DataComboFile[[#This Row],[G&S reporting level indicator]] -> 0 | BE59: =T_DataComboFile[[#This Row],[2019/20 Revised estimate_Source]]*T_DataComboFile[[#This Row],[G&S reporting level indicator]] -> 0 | BF59: =T_DataComboFile[[#This Row],[2019/20 Preliminary outcome_Source]]*T_DataComboFile[[#This Row],[G&S reporting level indicator]] -> 0 | BG59: =T_DataComboFile[[#This Row],[2020/21 Original_Source]]*T_DataComboFile[[#This Row],[G&S reporting level indicator]] -> 0 | BH59: =T_DataComboFile[[#This Row],[2020/21 SAB_Source]]*T_DataComboFile[[#This Row],[G&S reporting level indicator]] -> 0 | BI59: =T_DataComboFile[[#This Row],[2020/21 Baseline_Source]]*T_DataComboFile[[#This Row],[G&S reporting level indicator]] -> 0 | BJ59: =T_DataComboFile[[#This Row],[2021/22 Baseline_Source]]*T_DataComboFile[[#This Row],[G&S reporting level indicator]] -> 0 | BK59: =T_DataComboFile[[#This Row],[2022/23 Baseline_Source]]*T_DataComboFile[[#This Row],[G&S reporting level indicator]] -> 0 | BL59: =T_DataComboFile[[#This Row],[2023/24 Baseline_Source]]*T_DataComboFile[[#This Row],[G&S reporting level indicator]] -> 0 | BS59: =T_DataComboFile[[#This Row],[2021/22 Baseline]]+T_DataComboFile[[#This Row],[2021/22 Reduction]]+T_DataComboFile[[#This Row],[2021/22 Increase]] -> 0 | BT59: =T_DataComboFile[[#This Row],[2022/23 Baseline]]+T_DataComboFile[[#This Row],[2022/23 Reduction]]+T_DataComboFile[[#This Row],[2022/23 Increase]] -> 0 | BU59: =T_DataComboFile[[#This Row],[2023/24 Baseline]]+T_DataComboFile[[#This Row],[2023/24 Reduction]]+T_DataComboFile[[#This Row],[2023/24 Increase]] -> 0
C60: 2021_22 | D60: ENE2020 | E60: 19 | F60: 1 | G60: 1 | I60: 34556 | J60: 19 | K60: 1 | L60: 1 | N60: 034556 | O60: 19|01|01 | P60: 1 | Q60: 1 | R60: 3 | S60: 41 | T60: 41 | U60: 01|01|03|41|41 | V60: National | W60: Social Development | X60: Administration | Y60: Ministry | AA60: Current | AB60: Current payments | AC60: Interest and rent on land | AD60: Interest (Incl. interest on unitary payments (PPP)) | AE60: Interest (Incl. interest on unitary payments (PPP)) | AI60: 0 | AJ60: 0 | AK60: 0 | AL60: 0 | AM60: 0 | AN60: 0 | AO60: 0 | AP60: 0 | AQ60: 0 | AR60: 0 | AS60: 0 | AT60: 0 | AU60: 0 | AV60: 0 | AX60: =IF(T_DataComboFile[[#This Row],[G&S reporting level indicator]]=1,$AX$16,"Not applicable") -> Level 3 | AY60: =IF(AND($AX$16="Level 3",T_DataComboFile[[#This Row],[Econ3]] = "Goods and services"),IF(T_DataComboFile[[#This Row],[Econ4]] = T_DataComboFile[[#This Row],[Econ3]],1,0),IF(AND($AX$16="Level 4",T_DataComboFile[[#This Row],[Econ4]] = "Goods and services"),0,1)) -> 1 | AZ60: =T_DataComboFile[[#This Row],[2016/17_Source]]*T_DataComboFile[[#This Row],[G&S reporting level indicator]] -> 0 | BA60: =T_DataComboFile[[#This Row],[2017/18_Source]]*T_DataComboFile[[#This Row],[G&S reporting level indicator]] -> 0 | BB60: =T_DataComboFile[[#This Row],[2018/19_Source]]*T_DataComboFile[[#This Row],[G&S reporting level indicator]] -> 0 | BC60: =T_DataComboFile[[#This Row],[2019/20 Main appropriation_Source]]*T_DataComboFile[[#This Row],[G&S reporting level indicator]] -> 0 | BD60: =T_DataComboFile[[#This Row],[2019/20 Adjusted appropriation_Source]]*T_DataComboFile[[#This Row],[G&S reporting level indicator]] -> 0 | BE60: =T_DataComboFile[[#This Row],[2019/20 Revised estimate_Source]]*T_DataComboFile[[#This Row],[G&S reporting level indicator]] -> 0 | BF60: =T_DataComboFile[[#This Row],[2019/20 Preliminary outcome_Source]]*T_DataComboFile[[#This Row],[G&S reporting level indicator]] -> 0 | BG60: =T_DataComboFile[[#This Row],[2020/21 Original_Source]]*T_DataComboFile[[#This Row],[G&S reporting level indicator]] -> 0 | BH60: =T_DataComboFile[[#This Row],[2020/21 SAB_Source]]*T_DataComboFile[[#This Row],[G&S reporting level indicator]] -> 0 | BI60: =T_DataComboFile[[#This Row],[2020/21 Baseline_Source]]*T_DataComboFile[[#This Row],[G&S reporting level indicator]] -> 0 | BJ60: =T_DataComboFile[[#This Row],[2021/22 Baseline_Source]]*T_DataComboFile[[#This Row],[G&S reporting level indicator]] -> 0 | BK60: =T_DataComboFile[[#This Row],[2022/23 Baseline_Source]]*T_DataComboFile[[#This Row],[G&S reporting level indicator]] -> 0 | BL60: =T_DataComboFile[[#This Row],[2023/24 Baseline_Source]]*T_DataComboFile[[#This Row],[G&S reporting level indicator]] -> 0 | BS60: =T_DataComboFile[[#This Row],[2021/22 Baseline]]+T_DataComboFile[[#This Row],[2021/22 Reduction]]+T_DataComboFile[[#This Row],[2021/22 Increase]] -> 0 | BT60: =T_DataComboFile[[#This Row],[2022/23 Baseline]]+T_DataComboFile[[#This Row],[2022/23 Reduction]]+T_DataComboFile[[#This Row],[2022/23 Increase]] -> 0 | BU60: =T_DataComboFile[[#This Row],[2023/24 Baseline]]+T_DataComboFile[[#This Row],[2023/24 Reduction]]+T_DataComboFile[[#This Row],[2023/24 Increase]] -> 0
C61: 2021_22 | D61: ENE2020 | E61: 19 | F61: 1 | G61: 1 | I61: 34557 | J61: 19 | K61: 1 | L61: 1 | N61: 034557 | O61: 19|01|01 | P61: 1 | Q61: 1 | R61: 3 | S61: 42 | T61: 42 | U61: 01|01|03|42|42 | V61: National | W61: Social Development | X61: Administration | Y61: Ministry | AA61: Current | AB61: Current payments | AC61: Interest and rent on land | AD61: Rent on land | AE61: Rent on land | AI61: 0 | AJ61: 0 | AK61: 0 | AL61: 0 | AM61: 0 | AN61: 0 | AO61: 0 | AP61: 0 | AQ61: 0 | AR61: 0 | AS61: 0 | AT61: 0 | AU61: 0 | AV61: 0 | AX61: =IF(T_DataComboFile[[#This Row],[G&S reporting level indicator]]=1,$AX$16,"Not applicable") -> Level 3 | AY61: =IF(AND($AX$16="Level 3",T_DataComboFile[[#This Row],[Econ3]] = "Goods and services"),IF(T_DataComboFile[[#This Row],[Econ4]] = T_DataComboFile[[#This Row],[Econ3]],1,0),IF(AND($AX$16="Level 4",T_DataComboFile[[#This Row],[Econ4]] = "Goods and services"),0,1)) -> 1 | AZ61: =T_DataComboFile[[#This Row],[2016/17_Source]]*T_DataComboFile[[#This Row],[G&S reporting level indicator]] -> 0 | BA61: =T_DataComboFile[[#This Row],[2017/18_Source]]*T_DataComboFile[[#This Row],[G&S reporting level indicator]] -> 0 | BB61: =T_DataComboFile[[#This Row],[2018/19_Source]]*T_DataComboFile[[#This Row],[G&S reporting level indicator]] -> 0 | BC61: =T_DataComboFile[[#This Row],[2019/20 Main appropriation_Source]]*T_DataComboFile[[#This Row],[G&S reporting level indicator]] -> 0 | BD61: =T_DataComboFile[[#This Row],[2019/20 Adjusted appropriation_Source]]*T_DataComboFile[[#This Row],[G&S reporting level indicator]] -> 0 | BE61: =T_DataComboFile[[#This Row],[2019/20 Revised estimate_Source]]*T_DataComboFile[[#This Row],[G&S reporting level indicator]] -> 0 | BF61: =T_DataComboFile[[#This Row],[2019/20 Preliminary outcome_Source]]*T_DataComboFile[[#This Row],[G&S reporting level indicator]] -> 0 | BG61: =T_DataComboFile[[#This Row],[2020/21 Original_Source]]*T_DataComboFile[[#This Row],[G&S reporting level indicator]] -> 0 | BH61: =T_DataComboFile[[#This Row],[2020/21 SAB_Source]]*T_DataComboFile[[#This Row],[G&S reporting level indicator]] -> 0 | BI61: =T_DataComboFile[[#This Row],[2020/21 Baseline_Source]]*T_DataComboFile[[#This Row],[G&S reporting level indicator]] -> 0 | BJ61: =T_DataComboFile[[#This Row],[2021/22 Baseline_Source]]*T_DataComboFile[[#This Row],[G&S reporting level indicator]] -> 0 | BK61: =T_DataComboFile[[#This Row],[2022/23 Baseline_Source]]*T_DataComboFile[[#This Row],[G&S reporting level indicator]] -> 0 | BL61: =T_DataComboFile[[#This Row],[2023/24 Baseline_Source]]*T_DataComboFile[[#This Row],[G&S reporting level indicator]] -> 0 | BS61: =T_DataComboFile[[#This Row],[2021/22 Baseline]]+T_DataComboFile[[#This Row],[2021/22 Reduction]]+T_DataComboFile[[#This Row],[2021/22 Increase]] -> 0 | BT61: =T_DataComboFile[[#This Row],[2022/23 Baseline]]+T_DataComboFile[[#This Row],[2022/23 Reduction]]+T_DataComboFile[[#This Row],[2022/23 Increase]] -> 0 | BU61: =T_DataComboFile[[#This Row],[2023/24 Baseline]]+T_DataComboFile[[#This Row],[2023/24 Reduction]]+T_DataComboFile[[#This Row],[2023/24 Increase]] -> 0
C62: 2021_22 | D62: ENE2020 | E62: 19 | F62: 1 | G62: 1 | I62: 34558 | J62: 19 | K62: 1 | L62: 1 | N62: 034558 | O62: 19|01|01 | P62: 1 | Q62: 2 | R62: 4 | S62: 43 | T62: 43 | U62: 01|02|04|43|43 | V62: National | W62: Social Development | X62: Administration | Y62: Ministry | AA62: Current | AB62: Transfers and subsidies | AC62: Provinces and municipalities | AD62: Provinces | AE62: Provincial Revenue Funds | AI62: 0 | AJ62: 0 | AK62: 0 | AL62: 0 | AM62: 0 | AN62: 0 | AO62: 0 | AP62: 0 | AQ62: 0 | AR62: 0 | AS62: 0 | AT62: 0 | AU62: 0 | AV62: 0 | AX62: =IF(T_DataComboFile[[#This Row],[G&S reporting level indicator]]=1,$AX$16,"Not applicable") -> Level 3 | AY62: =IF(AND($AX$16="Level 3",T_DataComboFile[[#This Row],[Econ3]] = "Goods and services"),IF(T_DataComboFile[[#This Row],[Econ4]] = T_DataComboFile[[#This Row],[Econ3]],1,0),IF(AND($AX$16="Level 4",T_DataComboFile[[#This Row],[Econ4]] = "Goods and services"),0,1)) -> 1 | AZ62: =T_DataComboFile[[#This Row],[2016/17_Source]]*T_DataComboFile[[#This Row],[G&S reporting level indicator]] -> 0 | BA62: =T_DataComboFile[[#This Row],[2017/18_Source]]*T_DataComboFile[[#This Row],[G&S reporting level indicator]] -> 0 | BB62: =T_DataComboFile[[#This Row],[2018/19_Source]]*T_DataComboFile[[#This Row],[G&S reporting level indicator]] -> 0 | BC62: =T_DataComboFile[[#This Row],[2019/20 Main appropriation_Source]]*T_DataComboFile[[#This Row],[G&S reporting level indicator]] -> 0 | BD62: =T_DataComboFile[[#This Row],[2019/20 Adjusted appropriation_Source]]*T_DataComboFile[[#This Row],[G&S reporting level indicator]] -> 0 | BE62: =T_DataComboFile[[#This Row],[2019/20 Revised estimate_Source]]*T_DataComboFile[[#This Row],[G&S reporting level indicator]] -> 0 | BF62: =T_DataComboFile[[#This Row],[2019/20 Preliminary outcome_Source]]*T_DataComboFile[[#This Row],[G&S reporting level indicator]] -> 0 | BG62: =T_DataComboFile[[#This Row],[2020/21 Original_Source]]*T_DataComboFile[[#This Row],[G&S reporting level indicator]] -> 0 | BH62: =T_DataComboFile[[#This Row],[2020/21 SAB_Source]]*T_DataComboFile[[#This Row],[G&S reporting level indicator]] -> 0 | BI62: =T_DataComboFile[[#This Row],[2020/21 Baseline_Source]]*T_DataComboFile[[#This Row],[G&S reporting level indicator]] -> 0 | BJ62: =T_DataComboFile[[#This Row],[2021/22 Baseline_Source]]*T_DataComboFile[[#This Row],[G&S reporting level indicator]] -> 0 | BK62: =T_DataComboFile[[#This Row],[2022/23 Baseline_Source]]*T_DataComboFile[[#This Row],[G&S reporting level indicator]] -> 0 | BL62: =T_DataComboFile[[#This Row],[2023/24 Baseline_Source]]*T_DataComboFile[[#This Row],[G&S reporting level indicator]] -> 0 | BS62: =T_DataComboFile[[#This Row],[2021/22 Baseline]]+T_DataComboFile[[#This Row],[2021/22 Reduction]]+T_DataComboFile[[#This Row],[2021/22 Increase]] -> 0 | BT62: =T_DataComboFile[[#This Row],[2022/23 Baseline]]+T_DataComboFile[[#This Row],[2022/23 Reduction]]+T_DataComboFile[[#This Row],[2022/23 Increase]] -> 0 | BU62: =T_DataComboFile[[#This Row],[2023/24 Baseline]]+T_DataComboFile[[#This Row],[2023/24 Reduction]]+T_DataComboFile[[#This Row],[2023/24 Increase]] -> 0
C63: 2021_22 | D63: ENE2020 | E63: 19 | F63: 1 | G63: 1 | I63: 34559 | J63: 19 | K63: 1 | L63: 1 | N63: 034559 | O63: 19|01|01 | P63: 1 | Q63: 2 | R63: 4 | S63: 43 | T63: 44 | U63: 01|02|04|43|44 | V63: National | W63: Social Development | X63: Administration | Y63: Ministry | AA63: Current | AB63: Transfers and subsidies | AC63: Provinces and municipalities | AD63: Provinces | AE63: Provincial agencies and funds | AI63: 0 | AJ63: 0 | AK63: 0 | AL63: 0 | AM63: 0 | AN63: 0 | AO63: 0 | AP63: 0 | AQ63: 0 | AR63: 0 | AS63: 0 | AT63: 0 | AU63: 0 | AV63: 0 | AX63: =IF(T_DataComboFile[[#This Row],[G&S reporting level indicator]]=1,$AX$16,"Not applicable") -> Level 3 | AY63: =IF(AND($AX$16="Level 3",T_DataComboFile[[#This Row],[Econ3]] = "Goods and services"),IF(T_DataComboFile[[#This Row],[Econ4]] = T_DataComboFile[[#This Row],[Econ3]],1,0),IF(AND($AX$16="Level 4",T_DataComboFile[[#This Row],[Econ4]] = "Goods and services"),0,1)) -> 1 | AZ63: =T_DataComboFile[[#This Row],[2016/17_Source]]*T_DataComboFile[[#This Row],[G&S reporting level indicator]] -> 0 | BA63: =T_DataComboFile[[#This Row],[2017/18_Source]]*T_DataComboFile[[#This Row],[G&S reporting level indicator]] -> 0 | BB63: =T_DataComboFile[[#This Row],[2018/19_Source]]*T_DataComboFile[[#This Row],[G&S reporting level indicator]] -> 0 | BC63: =T_DataComboFile[[#This Row],[2019/20 Main appropriation_Source]]*T_DataComboFile[[#This Row],[G&S reporting level indicator]] -> 0 | BD63: =T_DataComboFile[[#This Row],[2019/20 Adjusted appropriation_Source]]*T_DataComboFile[[#This Row],[G&S reporting level indicator]] -> 0 | BE63: =T_DataComboFile[[#This Row],[2019/20 Revised estimate_Source]]*T_DataComboFile[[#This Row],[G&S reporting level indicator]] -> 0 | BF63: =T_DataComboFile[[#This Row],[2019/20 Preliminary outcome_Source]]*T_DataComboFile[[#This Row],[G&S reporting level indicator]] -> 0 | BG63: =T_DataComboFile[[#This Row],[2020/21 Original_Source]]*T_DataComboFile[[#This Row],[G&S reporting level indicator]] -> 0 | BH63: =T_DataComboFile[[#This Row],[2020/21 SAB_Source]]*T_DataComboFile[[#This Row],[G&S reporting level indicator]] -> 0 | BI63: =T_DataComboFile[[#This Row],[2020/21 Baseline_Source]]*T_DataComboFile[[#This Row],[G&S reporting level indicator]] -> 0 | BJ63: =T_DataComboFile[[#This Row],[2021/22 Baseline_Source]]*T_DataComboFile[[#This Row],[G&S reporting level indicator]] -> 0 | BK63: =T_DataComboFile[[#This Row],[2022/23 Baseline_Source]]*T_DataComboFile[[#This Row],[G&S reporting level indicator]] -> 0 | BL63: =T_DataComboFile[[#This Row],[2023/24 Baseline_Source]]*T_DataComboFile[[#This Row],[G&S reporting level indicator]] -> 0 | BS63: =T_DataComboFile[[#This Row],[2021/22 Baseline]]+T_DataComboFile[[#This Row],[2021/22 Reduction]]+T_DataComboFile[[#This Row],[2021/22 Increase]] -> 0 | BT63: =T_DataComboFile[[#This Row],[2022/23 Baseline]]+T_DataComboFile[[#This Row],[2022/23 Reduction]]+T_DataComboFile[[#This Row],[2022/23 Increase]] -> 0 | BU63: =T_DataComboFile[[#This Row],[2023/24 Baseline]]+T_DataComboFile[[#This Row],[2023/24 Reduction]]+T_DataComboFile[[#This Row],[2023/24 Increase]] -> 0
C64: 2021_22 | D64: ENE2020 | E64: 19 | F64: 1 | G64: 1 | I64: 34560 | J64: 19 | K64: 1 | L64: 1 | N64: 034560 | O64: 19|01|01 | P64: 1 | Q64: 2 | R64: 4 | S64: 44 | T64: 45 | U64: 01|02|04|44|45 | V64: National | W64: Social Development | X64: Administration | Y64: Ministry | AA64: Current | AB64: Transfers and subsidies | AC64: Provinces and municipalities | AD64: Municipalities | AE64: Municipal bank accounts | AI64: 0 | AJ64: 0 | AK64: 0 | AL64: 0 | AM64: 0 | AN64: 0 | AO64: 0 | AP64: 0 | AQ64: 0 | AR64: 0 | AS64: 0 | AT64: 0 | AU64: 0 | AV64: 0 | AX64: =IF(T_DataComboFile[[#This Row],[G&S reporting level indicator]]=1,$AX$16,"Not applicable") -> Level 3 | AY64: =IF(AND($AX$16="Level 3",T_DataComboFile[[#This Row],[Econ3]] = "Goods and services"),IF(T_DataComboFile[[#This Row],[Econ4]] = T_DataComboFile[[#This Row],[Econ3]],1,0),IF(AND($AX$16="Level 4",T_DataComboFile[[#This Row],[Econ4]] = "Goods and services"),0,1)) -> 1 | AZ64: =T_DataComboFile[[#This Row],[2016/17_Source]]*T_DataComboFile[[#This Row],[G&S reporting level indicator]] -> 0 | BA64: =T_DataComboFile[[#This Row],[2017/18_Source]]*T_DataComboFile[[#This Row],[G&S reporting level indicator]] -> 0 | BB64: =T_DataComboFile[[#This Row],[2018/19_Source]]*T_DataComboFile[[#This Row],[G&S reporting level indicator]] -> 0 | BC64: =T_DataComboFile[[#This Row],[2019/20 Main appropriation_Source]]*T_DataComboFile[[#This Row],[G&S reporting level indicator]] -> 0 | BD64: =T_DataComboFile[[#This Row],[2019/20 Adjusted appropriation_Source]]*T_DataComboFile[[#This Row],[G&S reporting level indicator]] -> 0 | BE64: =T_DataComboFile[[#This Row],[2019/20 Revised estimate_Source]]*T_DataComboFile[[#This Row],[G&S reporting level indicator]] -> 0 | BF64: =T_DataComboFile[[#This Row],[2019/20 Preliminary outcome_Source]]*T_DataComboFile[[#This Row],[G&S reporting level indicator]] -> 0 | BG64: =T_DataComboFile[[#This Row],[2020/21 Original_Source]]*T_DataComboFile[[#This Row],[G&S reporting level indicator]] -> 0 | BH64: =T_DataComboFile[[#This Row],[2020/21 SAB_Source]]*T_DataComboFile[[#This Row],[G&S reporting level indicator]] -> 0 | BI64: =T_DataComboFile[[#This Row],[2020/21 Baseline_Source]]*T_DataComboFile[[#This Row],[G&S reporting level indicator]] -> 0 | BJ64: =T_DataComboFile[[#This Row],[2021/22 Baseline_Source]]*T_DataComboFile[[#This Row],[G&S reporting level indicator]] -> 0 | BK64: =T_DataComboFile[[#This Row],[2022/23 Baseline_Source]]*T_DataComboFile[[#This Row],[G&S reporting level indicator]] -> 0 | BL64: =T_DataComboFile[[#This Row],[2023/24 Baseline_Source]]*T_DataComboFile[[#This Row],[G&S reporting level indicator]] -> 0 | BS64: =T_DataComboFile[[#This Row],[2021/22 Baseline]]+T_DataComboFile[[#This Row],[2021/22 Reduction]]+T_DataComboFile[[#This Row],[2021/22 Increase]] -> 0 | BT64: =T_DataComboFile[[#This Row],[2022/23 Baseline]]+T_DataComboFile[[#This Row],[2022/23 Reduction]]+T_DataComboFile[[#This Row],[2022/23 Increase]] -> 0 | BU64: =T_DataComboFile[[#This Row],[2023/24 Baseline]]+T_DataComboFile[[#This Row],[2023/24 Reduction]]+T_DataComboFile[[#This Row],[2023/24 Increase]] -> 0
C65: 2021_22 | D65: ENE2020 | E65: 19 | F65: 1 | G65: 1 | I65: 34561 | J65: 19 | K65: 1 | L65: 1 | N65: 034561 | O65: 19|01|01 | P65: 1 | Q65: 2 | R65: 4 | S65: 44 | T65: 46 | U65: 01|02|04|44|46 | V65: National | W65: Social Development | X65: Administration | Y65: Ministry | AA65: Current | AB65: Transfers and subsidies | AC65: Provinces and municipalities | AD65: Municipalities | AE65: Municipal agencies and funds | AI65: 0 | AJ65: 0 | AK65: 0 | AL65: 0 | AM65: 0 | AN65: 0 | AO65: 0 | AP65: 0 | AQ65: 0 | AR65: 0 | AS65: 0 | AT65: 0 | AU65: 0 | AV65: 0 | AX65: =IF(T_DataComboFile[[#This Row],[G&S reporting level indicator]]=1,$AX$16,"Not applicable") -> Level 3 | AY65: =IF(AND($AX$16="Level 3",T_DataComboFile[[#This Row],[Econ3]] = "Goods and services"),IF(T_DataComboFile[[#This Row],[Econ4]] = T_DataComboFile[[#This Row],[Econ3]],1,0),IF(AND($AX$16="Level 4",T_DataComboFile[[#This Row],[Econ4]] = "Goods and services"),0,1)) -> 1 | AZ65: =T_DataComboFile[[#This Row],[2016/17_Source]]*T_DataComboFile[[#This Row],[G&S reporting level indicator]] -> 0 | BA65: =T_DataComboFile[[#This Row],[2017/18_Source]]*T_DataComboFile[[#This Row],[G&S reporting level indicator]] -> 0 | BB65: =T_DataComboFile[[#This Row],[2018/19_Source]]*T_DataComboFile[[#This Row],[G&S reporting level indicator]] -> 0 | BC65: =T_DataComboFile[[#This Row],[2019/20 Main appropriation_Source]]*T_DataComboFile[[#This Row],[G&S reporting level indicator]] -> 0 | BD65: =T_DataComboFile[[#This Row],[2019/20 Adjusted appropriation_Source]]*T_DataComboFile[[#This Row],[G&S reporting level indicator]] -> 0 | BE65: =T_DataComboFile[[#This Row],[2019/20 Revised estimate_Source]]*T_DataComboFile[[#This Row],[G&S reporting level indicator]] -> 0 | BF65: =T_DataComboFile[[#This Row],[2019/20 Preliminary outcome_Source]]*T_DataComboFile[[#This Row],[G&S reporting level indicator]] -> 0 | BG65: =T_DataComboFile[[#This Row],[2020/21 Original_Source]]*T_DataComboFile[[#This Row],[G&S reporting level indicator]] -> 0 | BH65: =T_DataComboFile[[#This Row],[2020/21 SAB_Source]]*T_DataComboFile[[#This Row],[G&S reporting level indicator]] -> 0 | BI65: =T_DataComboFile[[#This Row],[2020/21 Baseline_Source]]*T_DataComboFile[[#This Row],[G&S reporting level indicator]] -> 0 | BJ65: =T_DataComboFile[[#This Row],[2021/22 Baseline_Source]]*T_DataComboFile[[#This Row],[G&S reporting level indicator]] -> 0 | BK65: =T_DataComboFile[[#This Row],[2022/23 Baseline_Source]]*T_DataComboFile[[#This Row],[G&S reporting level indicator]] -> 0 | BL65: =T_DataComboFile[[#This Row],[2023/24 Baseline_Source]]*T_DataComboFile[[#This Row],[G&S reporting level indicator]] -> 0 | BS65: =T_DataComboFile[[#This Row],[2021/22 Baseline]]+T_DataComboFile[[#This Row],[2021/22 Reduction]]+T_DataComboFile[[#This Row],[2021/22 Increase]] -> 0 | BT65: =T_DataComboFile[[#This Row],[2022/23 Baseline]]+T_DataComboFile[[#This Row],[2022/23 Reduction]]+T_DataComboFile[[#This Row],[2022/23 Increase]] -> 0 | BU65: =T_DataComboFile[[#This Row],[2023/24 Baseline]]+T_DataComboFile[[#This Row],[2023/24 Reduction]]+T_DataComboFile[[#This Row],[2023/24 Increase]] -> 0
C66: 2021_22 | D66: ENE2020 | E66: 19 | F66: 1 | G66: 1 | I66: 34562 | J66: 19 | K66: 1 | L66: 1 | N66: 034562 | O66: 19|01|01 | P66: 1 | Q66: 2 | R66: 5 | S66: 45 | T66: 47 | U66: 01|02|05|45|47 | V66: National | W66: Social Development | X66: Administration | Y66: Ministry | AA66: Current | AB66: Transfers and subsidies | AC66: Departmental agencies and accounts | AD66: Social security funds | AE66: Social security funds | AI66: 0 | AJ66: 0 | AK66: 0 | AL66: 0 | AM66: 0 | AN66: 0 | AO66: 0 | AP66: 0 | AQ66: 0 | AR66: 0 | AS66: 0 | AT66: 0 | AU66: 0 | AV66: 0 | AX66: =IF(T_DataComboFile[[#This Row],[G&S reporting level indicator]]=1,$AX$16,"Not applicable") -> Level 3 | AY66: =IF(AND($AX$16="Level 3",T_DataComboFile[[#This Row],[Econ3]] = "Goods and services"),IF(T_DataComboFile[[#This Row],[Econ4]] = T_DataComboFile[[#This Row],[Econ3]],1,0),IF(AND($AX$16="Level 4",T_DataComboFile[[#This Row],[Econ4]] = "Goods and services"),0,1)) -> 1 | AZ66: =T_DataComboFile[[#This Row],[2016/17_Source]]*T_DataComboFile[[#This Row],[G&S reporting level indicator]] -> 0 | BA66: =T_DataComboFile[[#This Row],[2017/18_Source]]*T_DataComboFile[[#This Row],[G&S reporting level indicator]] -> 0 | BB66: =T_DataComboFile[[#This Row],[2018/19_Source]]*T_DataComboFile[[#This Row],[G&S reporting level indicator]] -> 0 | BC66: =T_DataComboFile[[#This Row],[2019/20 Main appropriation_Source]]*T_DataComboFile[[#This Row],[G&S reporting level indicator]] -> 0 | BD66: =T_DataComboFile[[#This Row],[2019/20 Adjusted appropriation_Source]]*T_DataComboFile[[#This Row],[G&S reporting level indicator]] -> 0 | BE66: =T_DataComboFile[[#This Row],[2019/20 Revised estimate_Source]]*T_DataComboFile[[#This Row],[G&S reporting level indicator]] -> 0 | BF66: =T_DataComboFile[[#This Row],[2019/20 Preliminary outcome_Source]]*T_DataComboFile[[#This Row],[G&S reporting level indicator]] -> 0 | BG66: =T_DataComboFile[[#This Row],[2020/21 Original_Source]]*T_DataComboFile[[#This Row],[G&S reporting level indicator]] -> 0 | BH66: =T_DataComboFile[[#This Row],[2020/21 SAB_Source]]*T_DataComboFile[[#This Row],[G&S reporting level indicator]] -> 0 | BI66: =T_DataComboFile[[#This Row],[2020/21 Baseline_Source]]*T_DataComboFile[[#This Row],[G&S reporting level indicator]] -> 0 | BJ66: =T_DataComboFile[[#This Row],[2021/22 Baseline_Source]]*T_DataComboFile[[#This Row],[G&S reporting level indicator]] -> 0 | BK66: =T_DataComboFile[[#This Row],[2022/23 Baseline_Source]]*T_DataComboFile[[#This Row],[G&S reporting level indicator]] -> 0 | BL66: =T_DataComboFile[[#This Row],[2023/24 Baseline_Source]]*T_DataComboFile[[#This Row],[G&S reporting level indicator]] -> 0 | BS66: =T_DataComboFile[[#This Row],[2021/22 Baseline]]+T_DataComboFile[[#This Row],[2021/22 Reduction]]+T_DataComboFile[[#This Row],[2021/22 Increase]] -> 0 | BT66: =T_DataComboFile[[#This Row],[2022/23 Baseline]]+T_DataComboFile[[#This Row],[2022/23 Reduction]]+T_DataComboFile[[#This Row],[2022/23 Increase]] -> 0 | BU66: =T_DataComboFile[[#This Row],[2023/24 Baseline]]+T_DataComboFile[[#This Row],[2023/24 Reduction]]+T_DataComboFile[[#This Row],[2023/24 Increase]] -> 0
C67: 2021_22 | D67: ENE2020 | E67: 19 | F67: 1 | G67: 1 | I67: 34563 | J67: 19 | K67: 1 | L67: 1 | N67: 034563 | O67: 19|01|01 | P67: 1 | Q67: 2 | R67: 5 | S67: 46 | T67: 48 | U67: 01|02|05|46|48 | V67: National | W67: Social Development | X67: Administration | Y67: Ministry | AA67: Current | AB67: Transfers and subsidies | AC67: Departmental agencies and accounts | AD67: Departmental agencies (non-business entities) | AE67: Departmental agencies (non-business entities) | AI67: 0 | AJ67: 0 | AK67: 0 | AL67: 0 | AM67: 0 | AN67: 0 | AO67: 0 | AP67: 0 | AQ67: 0 | AR67: 0 | AS67: 0 | AT67: 0 | AU67: 0 | AV67: 0 | AX67: =IF(T_DataComboFile[[#This Row],[G&S reporting level indicator]]=1,$AX$16,"Not applicable") -> Level 3 | AY67: =IF(AND($AX$16="Level 3",T_DataComboFile[[#This Row],[Econ3]] = "Goods and services"),IF(T_DataComboFile[[#This Row],[Econ4]] = T_DataComboFile[[#This Row],[Econ3]],1,0),IF(AND($AX$16="Level 4",T_DataComboFile[[#This Row],[Econ4]] = "Goods and services"),0,1)) -> 1 | AZ67: =T_DataComboFile[[#This Row],[2016/17_Source]]*T_DataComboFile[[#This Row],[G&S reporting level indicator]] -> 0 | BA67: =T_DataComboFile[[#This Row],[2017/18_Source]]*T_DataComboFile[[#This Row],[G&S reporting level indicator]] -> 0 | BB67: =T_DataComboFile[[#This Row],[2018/19_Source]]*T_DataComboFile[[#This Row],[G&S reporting level indicator]] -> 0 | BC67: =T_DataComboFile[[#This Row],[2019/20 Main appropriation_Source]]*T_DataComboFile[[#This Row],[G&S reporting level indicator]] -> 0 | BD67: =T_DataComboFile[[#This Row],[2019/20 Adjusted appropriation_Source]]*T_DataComboFile[[#This Row],[G&S reporting level indicator]] -> 0 | BE67: =T_DataComboFile[[#This Row],[2019/20 Revised estimate_Source]]*T_DataComboFile[[#This Row],[G&S reporting level indicator]] -> 0 | BF67: =T_DataComboFile[[#This Row],[2019/20 Preliminary outcome_Source]]*T_DataComboFile[[#This Row],[G&S reporting level indicator]] -> 0 | BG67: =T_DataComboFile[[#This Row],[2020/21 Original_Source]]*T_DataComboFile[[#This Row],[G&S reporting level indicator]] -> 0 | BH67: =T_DataComboFile[[#This Row],[2020/21 SAB_Source]]*T_DataComboFile[[#This Row],[G&S reporting level indicator]] -> 0 | BI67: =T_DataComboFile[[#This Row],[2020/21 Baseline_Source]]*T_DataComboFile[[#This Row],[G&S reporting level indicator]] -> 0 | BJ67: =T_DataComboFile[[#This Row],[2021/22 Baseline_Source]]*T_DataComboFile[[#This Row],[G&S reporting level indicator]] -> 0 | BK67: =T_DataComboFile[[#This Row],[2022/23 Baseline_Source]]*T_DataComboFile[[#This Row],[G&S reporting level indicator]] -> 0 | BL67: =T_DataComboFile[[#This Row],[2023/24 Baseline_Source]]*T_DataComboFile[[#This Row],[G&S reporting level indicator]] -> 0 | BS67: =T_DataComboFile[[#This Row],[2021/22 Baseline]]+T_DataComboFile[[#This Row],[2021/22 Reduction]]+T_DataComboFile[[#This Row],[2021/22 Increase]] -> 0 | BT67: =T_DataComboFile[[#This Row],[2022/23 Baseline]]+T_DataComboFile[[#This Row],[2022/23 Reduction]]+T_DataComboFile[[#This Row],[2022/23 Increase]] -> 0 | BU67: =T_DataComboFile[[#This Row],[2023/24 Baseline]]+T_DataComboFile[[#This Row],[2023/24 Reduction]]+T_DataComboFile[[#This Row],[2023/24 Increase]] -> 0
C68: 2021_22 | D68: ENE2020 | E68: 19 | F68: 1 | G68: 1 | I68: 34564 | J68: 19 | K68: 1 | L68: 1 | N68: 034564 | O68: 19|01|01 | P68: 1 | Q68: 2 | R68: 6 | S68: 47 | T68: 49 | U68: 01|02|06|47|49 | V68: National | W68: Social Development | X68: Administration | Y68: Ministry | AA68: Current | AB68: Transfers and subsidies | AC68: Higher education institutions | AD68: Higher education institutions | AE68: Higher education institutions | AI68: 0 | AJ68: 0 | AK68: 0 | AL68: 0 | AM68: 0 | AN68: 0 | AO68: 0 | AP68: 0 | AQ68: 0 | AR68: 0 | AS68: 0 | AT68: 0 | AU68: 0 | AV68: 0 | AX68: =IF(T_DataComboFile[[#This Row],[G&S reporting level indicator]]=1,$AX$16,"Not applicable") -> Level 3 | AY68: =IF(AND($AX$16="Level 3",T_DataComboFile[[#This Row],[Econ3]] = "Goods and services"),IF(T_DataComboFile[[#This Row],[Econ4]] = T_DataComboFile[[#This Row],[Econ3]],1,0),IF(AND($AX$16="Level 4",T_DataComboFile[[#This Row],[Econ4]] = "Goods and services"),0,1)) -> 1 | AZ68: =T_DataComboFile[[#This Row],[2016/17_Source]]*T_DataComboFile[[#This Row],[G&S reporting level indicator]] -> 0 | BA68: =T_DataComboFile[[#This Row],[2017/18_Source]]*T_DataComboFile[[#This Row],[G&S reporting level indicator]] -> 0 | BB68: =T_DataComboFile[[#This Row],[2018/19_Source]]*T_DataComboFile[[#This Row],[G&S reporting level indicator]] -> 0 | BC68: =T_DataComboFile[[#This Row],[2019/20 Main appropriation_Source]]*T_DataComboFile[[#This Row],[G&S reporting level indicator]] -> 0 | BD68: =T_DataComboFile[[#This Row],[2019/20 Adjusted appropriation_Source]]*T_DataComboFile[[#This Row],[G&S reporting level indicator]] -> 0 | BE68: =T_DataComboFile[[#This Row],[2019/20 Revised estimate_Source]]*T_DataComboFile[[#This Row],[G&S reporting level indicator]] -> 0 | BF68: =T_DataComboFile[[#This Row],[2019/20 Preliminary outcome_Source]]*T_DataComboFile[[#This Row],[G&S reporting level indicator]] -> 0 | BG68: =T_DataComboFile[[#This Row],[2020/21 Original_Source]]*T_DataComboFile[[#This Row],[G&S reporting level indicator]] -> 0 | BH68: =T_DataComboFile[[#This Row],[2020/21 SAB_Source]]*T_DataComboFile[[#This Row],[G&S reporting level indicator]] -> 0 | BI68: =T_DataComboFile[[#This Row],[2020/21 Baseline_Source]]*T_DataComboFile[[#This Row],[G&S reporting level indicator]] -> 0 | BJ68: =T_DataComboFile[[#This Row],[2021/22 Baseline_Source]]*T_DataComboFile[[#This Row],[G&S reporting level indicator]] -> 0 | BK68: =T_DataComboFile[[#This Row],[2022/23 Baseline_Source]]*T_DataComboFile[[#This Row],[G&S reporting level indicator]] -> 0 | BL68: =T_DataComboFile[[#This Row],[2023/24 Baseline_Source]]*T_DataComboFile[[#This Row],[G&S reporting level indicator]] -> 0 | BS68: =T_DataComboFile[[#This Row],[2021/22 Baseline]]+T_DataComboFile[[#This Row],[2021/22 Reduction]]+T_DataComboFile[[#This Row],[2021/22 Increase]] -> 0 | BT68: =T_DataComboFile[[#This Row],[2022/23 Baseline]]+T_DataComboFile[[#This Row],[2022/23 Reduction]]+T_DataComboFile[[#This Row],[2022/23 Increase]] -> 0 | BU68: =T_DataComboFile[[#This Row],[2023/24 Baseline]]+T_DataComboFile[[#This Row],[2023/24 Reduction]]+T_DataComboFile[[#This Row],[2023/24 Increase]] -> 0
C69: 2021_22 | D69: ENE2020 | E69: 19 | F69: 1 | G69: 1 | I69: 34565 | J69: 19 | K69: 1 | L69: 1 | N69: 034565 | O69: 19|01|01 | P69: 1 | Q69: 2 | R69: 7 | S69: 48 | T69: 50 | U69: 01|02|07|48|50 | V69: National | W69: Social Development | X69: Administration | Y69: Ministry | AA69: Current | AB69: Transfers and subsidies | AC69: Foreign governments and international organisations | AD69: Foreign governments and international organisations | AE69: Foreign governments and international organisations | AI69: 0 | AJ69: 0 | AK69: 0 | AL69: 0 | AM69: 0 | AN69: 0 | AO69: 0 | AP69: 0 | AQ69: 0 | AR69: 0 | AS69: 0 | AT69: 0 | AU69: 0 | AV69: 0 | AX69: =IF(T_DataComboFile[[#This Row],[G&S reporting level indicator]]=1,$AX$16,"Not applicable") -> Level 3 | AY69: =IF(AND($AX$16="Level 3",T_DataComboFile[[#This Row],[Econ3]] = "Goods and services"),IF(T_DataComboFile[[#This Row],[Econ4]] = T_DataComboFile[[#This Row],[Econ3]],1,0),IF(AND($AX$16="Level 4",T_DataComboFile[[#This Row],[Econ4]] = "Goods and services"),0,1)) -> 1 | AZ69: =T_DataComboFile[[#This Row],[2016/17_Source]]*T_DataComboFile[[#This Row],[G&S reporting level indicator]] -> 0 | BA69: =T_DataComboFile[[#This Row],[2017/18_Source]]*T_DataComboFile[[#This Row],[G&S reporting level indicator]] -> 0 | BB69: =T_DataComboFile[[#This Row],[2018/19_Source]]*T_DataComboFile[[#This Row],[G&S reporting level indicator]] -> 0 | BC69: =T_DataComboFile[[#This Row],[2019/20 Main appropriation_Source]]*T_DataComboFile[[#This Row],[G&S reporting level indicator]] -> 0 | BD69: =T_DataComboFile[[#This Row],[2019/20 Adjusted appropriation_Source]]*T_DataComboFile[[#This Row],[G&S reporting level indicator]] -> 0 | BE69: =T_DataComboFile[[#This Row],[2019/20 Revised estimate_Source]]*T_DataComboFile[[#This Row],[G&S reporting level indicator]] -> 0 | BF69: =T_DataComboFile[[#This Row],[2019/20 Preliminary outcome_Source]]*T_DataComboFile[[#This Row],[G&S reporting level indicator]] -> 0 | BG69: =T_DataComboFile[[#This Row],[2020/21 Original_Source]]*T_DataComboFile[[#This Row],[G&S reporting level indicator]] -> 0 | BH69: =T_DataComboFile[[#This Row],[2020/21 SAB_Source]]*T_DataComboFile[[#This Row],[G&S reporting level indicator]] -> 0 | BI69: =T_DataComboFile[[#This Row],[2020/21 Baseline_Source]]*T_DataComboFile[[#This Row],[G&S reporting level indicator]] -> 0 | BJ69: =T_DataComboFile[[#This Row],[2021/22 Baseline_Source]]*T_DataComboFile[[#This Row],[G&S reporting level indicator]] -> 0 | BK69: =T_DataComboFile[[#This Row],[2022/23 Baseline_Source]]*T_DataComboFile[[#This Row],[G&S reporting level indicator]] -> 0 | BL69: =T_DataComboFile[[#This Row],[2023/24 Baseline_Source]]*T_DataComboFile[[#This Row],[G&S reporting level indicator]] -> 0 | BS69: =T_DataComboFile[[#This Row],[2021/22 Baseline]]+T_DataComboFile[[#This Row],[2021/22 Reduction]]+T_DataComboFile[[#This Row],[2021/22 Increase]] -> 0 | BT69: =T_DataComboFile[[#This Row],[2022/23 Baseline]]+T_DataComboFile[[#This Row],[2022/23 Reduction]]+T_DataComboFile[[#This Row],[2022/23 Increase]] -> 0 | BU69: =T_DataComboFile[[#This Row],[2023/24 Baseline]]+T_DataComboFile[[#This Row],[2023/24 Reduction]]+T_DataComboFile[[#This Row],[2023/24 Increase]] -> 0
C70: 2021_22 | D70: ENE2020 | E70: 19 | F70: 1 | G70: 1 | I70: 34566 | J70: 19 | K70: 1 | L70: 1 | N70: 034566 | O70: 19|01|01 | P70: 1 | Q70: 2 | R70: 8 | S70: 49 | T70: 51 | U70: 01|02|08|49|51 | V70: National | W70: Social Development | X70: Administration | Y70: Ministry | AA70: Current | AB70: Transfers and subsidies | AC70: Public corporations and private enterprises | AD70: Public corporations | AE70: Subsidies on products and production (pc) | AI70: 0 | AJ70: 0 | AK70: 0 | AL70: 0 | AM70: 0 | AN70: 0 | AO70: 0 | AP70: 0 | AQ70: 0 | AR70: 0 | AS70: 0 | AT70: 0 | AU70: 0 | AV70: 0 | AX70: =IF(T_DataComboFile[[#This Row],[G&S reporting level indicator]]=1,$AX$16,"Not applicable") -> Level 3 | AY70: =IF(AND($AX$16="Level 3",T_DataComboFile[[#This Row],[Econ3]] = "Goods and services"),IF(T_DataComboFile[[#This Row],[Econ4]] = T_DataComboFile[[#This Row],[Econ3]],1,0),IF(AND($AX$16="Level 4",T_DataComboFile[[#This Row],[Econ4]] = "Goods and services"),0,1)) -> 1 | AZ70: =T_DataComboFile[[#This Row],[2016/17_Source]]*T_DataComboFile[[#This Row],[G&S reporting level indicator]] -> 0 | BA70: =T_DataComboFile[[#This Row],[2017/18_Source]]*T_DataComboFile[[#This Row],[G&S reporting level indicator]] -> 0 | BB70: =T_DataComboFile[[#This Row],[2018/19_Source]]*T_DataComboFile[[#This Row],[G&S reporting level indicator]] -> 0 | BC70: =T_DataComboFile[[#This Row],[2019/20 Main appropriation_Source]]*T_DataComboFile[[#This Row],[G&S reporting level indicator]] -> 0 | BD70: =T_DataComboFile[[#This Row],[2019/20 Adjusted appropriation_Source]]*T_DataComboFile[[#This Row],[G&S reporting level indicator]] -> 0 | BE70: =T_DataComboFile[[#This Row],[2019/20 Revised estimate_Source]]*T_DataComboFile[[#This Row],[G&S reporting level indicator]] -> 0 | BF70: =T_DataComboFile[[#This Row],[2019/20 Preliminary outcome_Source]]*T_DataComboFile[[#This Row],[G&S reporting level indicator]] -> 0 | BG70: =T_DataComboFile[[#This Row],[2020/21 Original_Source]]*T_DataComboFile[[#This Row],[G&S reporting level indicator]] -> 0 | BH70: =T_DataComboFile[[#This Row],[2020/21 SAB_Source]]*T_DataComboFile[[#This Row],[G&S reporting level indicator]] -> 0 | BI70: =T_DataComboFile[[#This Row],[2020/21 Baseline_Source]]*T_DataComboFile[[#This Row],[G&S reporting level indicator]] -> 0 | BJ70: =T_DataComboFile[[#This Row],[2021/22 Baseline_Source]]*T_DataComboFile[[#This Row],[G&S reporting level indicator]] -> 0 | BK70: =T_DataComboFile[[#This Row],[2022/23 Baseline_Source]]*T_DataComboFile[[#This Row],[G&S reporting level indicator]] -> 0 | BL70: =T_DataComboFile[[#This Row],[2023/24 Baseline_Source]]*T_DataComboFile[[#This Row],[G&S reporting level indicator]] -> 0 | BS70: =T_DataComboFile[[#This Row],[2021/22 Baseline]]+T_DataComboFile[[#This Row],[2021/22 Reduction]]+T_DataComboFile[[#This Row],[2021/22 Increase]] -> 0 | BT70: =T_DataComboFile[[#This Row],[2022/23 Baseline]]+T_DataComboFile[[#This Row],[2022/23 Reduction]]+T_DataComboFile[[#This Row],[2022/23 Increase]] -> 0 | BU70: =T_DataComboFile[[#This Row],[2023/24 Baseline]]+T_DataComboFile[[#This Row],[2023/24 Reduction]]+T_DataComboFile[[#This Row],[2023/24 Increase]] -> 0
C71: 2021_22 | D71: ENE2020 | E71: 19 | F71: 1 | G71: 1 | I71: 34567 | J71: 19 | K71: 1 | L71: 1 | N71: 034567 | O71: 19|01|01 | P71: 1 | Q71: 2 | R71: 8 | S71: 49 | T71: 52 | U71: 01|02|08|49|52 | V71: National | W71: Social Development | X71: Administration | Y71: Ministry | AA71: Current | AB71: Transfers and subsidies | AC71: Public corporations and private enterprises | AD71: Public corporations | AE71: Other transfers to public corporations | AI71: 0 | AJ71: 0 | AK71: 0 | AL71: 0 | AM71: 0 | AN71: 0 | AO71: 0 | AP71: 0 | AQ71: 0 | AR71: 0 | AS71: 0 | AT71: 0 | AU71: 0 | AV71: 0 | AX71: =IF(T_DataComboFile[[#This Row],[G&S reporting level indicator]]=1,$AX$16,"Not applicable") -> Level 3 | AY71: =IF(AND($AX$16="Level 3",T_DataComboFile[[#This Row],[Econ3]] = "Goods and services"),IF(T_DataComboFile[[#This Row],[Econ4]] = T_DataComboFile[[#This Row],[Econ3]],1,0),IF(AND($AX$16="Level 4",T_DataComboFile[[#This Row],[Econ4]] = "Goods and services"),0,1)) -> 1 | AZ71: =T_DataComboFile[[#This Row],[2016/17_Source]]*T_DataComboFile[[#This Row],[G&S reporting level indicator]] -> 0 | BA71: =T_DataComboFile[[#This Row],[2017/18_Source]]*T_DataComboFile[[#This Row],[G&S reporting level indicator]] -> 0 | BB71: =T_DataComboFile[[#This Row],[2018/19_Source]]*T_DataComboFile[[#This Row],[G&S reporting level indicator]] -> 0 | BC71: =T_DataComboFile[[#This Row],[2019/20 Main appropriation_Source]]*T_DataComboFile[[#This Row],[G&S reporting level indicator]] -> 0 | BD71: =T_DataComboFile[[#This Row],[2019/20 Adjusted appropriation_Source]]*T_DataComboFile[[#This Row],[G&S reporting level indicator]] -> 0 | BE71: =T_DataComboFile[[#This Row],[2019/20 Revised estimate_Source]]*T_DataComboFile[[#This Row],[G&S reporting level indicator]] -> 0 | BF71: =T_DataComboFile[[#This Row],[2019/20 Preliminary outcome_Source]]*T_DataComboFile[[#This Row],[G&S reporting level indicator]] -> 0 | BG71: =T_DataComboFile[[#This Row],[2020/21 Original_Source]]*T_DataComboFile[[#This Row],[G&S reporting level indicator]] -> 0 | BH71: =T_DataComboFile[[#This Row],[2020/21 SAB_Source]]*T_DataComboFile[[#This Row],[G&S reporting level indicator]] -> 0 | BI71: =T_DataComboFile[[#This Row],[2020/21 Baseline_Source]]*T_DataComboFile[[#This Row],[G&S reporting level indicator]] -> 0 | BJ71: =T_DataComboFile[[#This Row],[2021/22 Baseline_Source]]*T_DataComboFile[[#This Row],[G&S reporting level indicator]] -> 0 | BK71: =T_DataComboFile[[#This Row],[2022/23 Baseline_Source]]*T_DataComboFile[[#This Row],[G&S reporting level indicator]] -> 0 | BL71: =T_DataComboFile[[#This Row],[2023/24 Baseline_Source]]*T_DataComboFile[[#This Row],[G&S reporting level indicator]] -> 0 | BS71: =T_DataComboFile[[#This Row],[2021/22 Baseline]]+T_DataComboFile[[#This Row],[2021/22 Reduction]]+T_DataComboFile[[#This Row],[2021/22 Increase]] -> 0 | BT71: =T_DataComboFile[[#This Row],[2022/23 Baseline]]+T_DataComboFile[[#This Row],[2022/23 Reduction]]+T_DataComboFile[[#This Row],[2022/23 Increase]] -> 0 | BU71: =T_DataComboFile[[#This Row],[2023/24 Baseline]]+T_DataComboFile[[#This Row],[2023/24 Reduction]]+T_DataComboFile[[#This Row],[2023/24 Increase]] -> 0
C72: 2021_22 | D72: ENE2020 | E72: 19 | F72: 1 | G72: 1 | I72: 34568 | J72: 19 | K72: 1 | L72: 1 | N72: 034568 | O72: 19|01|01 | P72: 1 | Q72: 2 | R72: 8 | S72: 50 | T72: 53 | U72: 01|02|08|50|53 | V72: National | W72: Social Development | X72: Administration | Y72: Ministry | AA72: Current | AB72: Transfers and subsidies | AC72: Public corporations and private enterprises | AD72: Private enterprises | AE72: Subsidies on products and production (pe) | AI72: 0 | AJ72: 0 | AK72: 0 | AL72: 0 | AM72: 0 | AN72: 0 | AO72: 0 | AP72: 0 | AQ72: 0 | AR72: 0 | AS72: 0 | AT72: 0 | AU72: 0 | AV72: 0 | AX72: =IF(T_DataComboFile[[#This Row],[G&S reporting level indicator]]=1,$AX$16,"Not applicable") -> Level 3 | AY72: =IF(AND($AX$16="Level 3",T_DataComboFile[[#This Row],[Econ3]] = "Goods and services"),IF(T_DataComboFile[[#This Row],[Econ4]] = T_DataComboFile[[#This Row],[Econ3]],1,0),IF(AND($AX$16="Level 4",T_DataComboFile[[#This Row],[Econ4]] = "Goods and services"),0,1)) -> 1 | AZ72: =T_DataComboFile[[#This Row],[2016/17_Source]]*T_DataComboFile[[#This Row],[G&S reporting level indicator]] -> 0 | BA72: =T_DataComboFile[[#This Row],[2017/18_Source]]*T_DataComboFile[[#This Row],[G&S reporting level indicator]] -> 0 | BB72: =T_DataComboFile[[#This Row],[2018/19_Source]]*T_DataComboFile[[#This Row],[G&S reporting level indicator]] -> 0 | BC72: =T_DataComboFile[[#This Row],[2019/20 Main appropriation_Source]]*T_DataComboFile[[#This Row],[G&S reporting level indicator]] -> 0 | BD72: =T_DataComboFile[[#This Row],[2019/20 Adjusted appropriation_Source]]*T_DataComboFile[[#This Row],[G&S reporting level indicator]] -> 0 | BE72: =T_DataComboFile[[#This Row],[2019/20 Revised estimate_Source]]*T_DataComboFile[[#This Row],[G&S reporting level indicator]] -> 0 | BF72: =T_DataComboFile[[#This Row],[2019/20 Preliminary outcome_Source]]*T_DataComboFile[[#This Row],[G&S reporting level indicator]] -> 0 | BG72: =T_DataComboFile[[#This Row],[2020/21 Original_Source]]*T_DataComboFile[[#This Row],[G&S reporting level indicator]] -> 0 | BH72: =T_DataComboFile[[#This Row],[2020/21 SAB_Source]]*T_DataComboFile[[#This Row],[G&S reporting level indicator]] -> 0 | BI72: =T_DataComboFile[[#This Row],[2020/21 Baseline_Source]]*T_DataComboFile[[#This Row],[G&S reporting level indicator]] -> 0 | BJ72: =T_DataComboFile[[#This Row],[2021/22 Baseline_Source]]*T_DataComboFile[[#This Row],[G&S reporting level indicator]] -> 0 | BK72: =T_DataComboFile[[#This Row],[2022/23 Baseline_Source]]*T_DataComboFile[[#This Row],[G&S reporting level indicator]] -> 0 | BL72: =T_DataComboFile[[#This Row],[2023/24 Baseline_Source]]*T_DataComboFile[[#This Row],[G&S reporting level indicator]] -> 0 | BS72: =T_DataComboFile[[#This Row],[2021/22 Baseline]]+T_DataComboFile[[#This Row],[2021/22 Reduction]]+T_DataComboFile[[#This Row],[2021/22 Increase]] -> 0 | BT72: =T_DataComboFile[[#This Row],[2022/23 Baseline]]+T_DataComboFile[[#This Row],[2022/23 Reduction]]+T_DataComboFile[[#This Row],[2022/23 Increase]] -> 0 | BU72: =T_DataComboFile[[#This Row],[2023/24 Baseline]]+T_DataComboFile[[#This Row],[2023/24 Reduction]]+T_DataComboFile[[#This Row],[2023/24 Increase]] -> 0
C73: 2021_22 | D73: ENE2020 | E73: 19 | F73: 1 | G73: 1 | I73: 34569 | J73: 19 | K73: 1 | L73: 1 | N73: 034569 | O73: 19|01|01 | P73: 1 | Q73: 2 | R73: 8 | S73: 50 | T73: 54 | U73: 01|02|08|50|54 | V73: National | W73: Social Development | X73: Administration | Y73: Ministry | AA73: Current | AB73: Transfers and subsidies | AC73: Public corporations and private enterprises | AD73: Private enterprises | AE73: Other transfers to private enterprises | AI73: 0 | AJ73: 0 | AK73: 0 | AL73: 0 | AM73: 0 | AN73: 0 | AO73: 0 | AP73: 0 | AQ73: 0 | AR73: 0 | AS73: 0 | AT73: 0 | AU73: 0 | AV73: 0 | AX73: =IF(T_DataComboFile[[#This Row],[G&S reporting level indicator]]=1,$AX$16,"Not applicable") -> Level 3 | AY73: =IF(AND($AX$16="Level 3",T_DataComboFile[[#This Row],[Econ3]] = "Goods and services"),IF(T_DataComboFile[[#This Row],[Econ4]] = T_DataComboFile[[#This Row],[Econ3]],1,0),IF(AND($AX$16="Level 4",T_DataComboFile[[#This Row],[Econ4]] = "Goods and services"),0,1)) -> 1 | AZ73: =T_DataComboFile[[#This Row],[2016/17_Source]]*T_DataComboFile[[#This Row],[G&S reporting level indicator]] -> 0 | BA73: =T_DataComboFile[[#This Row],[2017/18_Source]]*T_DataComboFile[[#This Row],[G&S reporting level indicator]] -> 0 | BB73: =T_DataComboFile[[#This Row],[2018/19_Source]]*T_DataComboFile[[#This Row],[G&S reporting level indicator]] -> 0 | BC73: =T_DataComboFile[[#This Row],[2019/20 Main appropriation_Source]]*T_DataComboFile[[#This Row],[G&S reporting level indicator]] -> 0 | BD73: =T_DataComboFile[[#This Row],[2019/20 Adjusted appropriation_Source]]*T_DataComboFile[[#This Row],[G&S reporting level indicator]] -> 0 | BE73: =T_DataComboFile[[#This Row],[2019/20 Revised estimate_Source]]*T_DataComboFile[[#This Row],[G&S reporting level indicator]] -> 0 | BF73: =T_DataComboFile[[#This Row],[2019/20 Preliminary outcome_Source]]*T_DataComboFile[[#This Row],[G&S reporting level indicator]] -> 0 | BG73: =T_DataComboFile[[#This Row],[2020/21 Original_Source]]*T_DataComboFile[[#This Row],[G&S reporting level indicator]] -> 0 | BH73: =T_DataComboFile[[#This Row],[2020/21 SAB_Source]]*T_DataComboFile[[#This Row],[G&S reporting level indicator]] -> 0 | BI73: =T_DataComboFile[[#This Row],[2020/21 Baseline_Source]]*T_DataComboFile[[#This Row],[G&S reporting level indicator]] -> 0 | BJ73: =T_DataComboFile[[#This Row],[2021/22 Baseline_Source]]*T_DataComboFile[[#This Row],[G&S reporting level indicator]] -> 0 | BK73: =T_DataComboFile[[#This Row],[2022/23 Baseline_Source]]*T_DataComboFile[[#This Row],[G&S reporting level indicator]] -> 0 | BL73: =T_DataComboFile[[#This Row],[2023/24 Baseline_Source]]*T_DataComboFile[[#This Row],[G&S reporting level indicator]] -> 0 | BS73: =T_DataComboFile[[#This Row],[2021/22 Baseline]]+T_DataComboFile[[#This Row],[2021/22 Reduction]]+T_DataComboFile[[#This Row],[2021/22 Increase]] -> 0 | BT73: =T_DataComboFile[[#This Row],[2022/23 Baseline]]+T_DataComboFile[[#This Row],[2022/23 Reduction]]+T_DataComboFile[[#This Row],[2022/23 Increase]] -> 0 | BU73: =T_DataComboFile[[#This Row],[2023/24 Baseline]]+T_DataComboFile[[#This Row],[2023/24 Reduction]]+T_DataComboFile[[#This Row],[2023/24 Increase]] -> 0
C74: 2021_22 | D74: ENE2020 | E74: 19 | F74: 1 | G74: 1 | I74: 34570 | J74: 19 | K74: 1 | L74: 1 | N74: 034570 | O74: 19|01|01 | P74: 1 | Q74: 2 | R74: 9 | S74: 51 | T74: 55 | U74: 01|02|09|51|55 | V74: National | W74: Social Development | X74: Administration | Y74: Ministry | AA74: Current | AB74: Transfers and subsidies | AC74: Non-profit institutions | AD74: Non-profit institutions | AE74: Non-profit institutions | AI74: 0 | AJ74: 0 | AK74: 0 | AL74: 0 | AM74: 0 | AN74: 0 | AO74: 0 | AP74: 0 | AQ74: 0 | AR74: 0 | AS74: 0 | AT74: 0 | AU74: 0 | AV74: 0 | AX74: =IF(T_DataComboFile[[#This Row],[G&S reporting level indicator]]=1,$AX$16,"Not applicable") -> Level 3 | AY74: =IF(AND($AX$16="Level 3",T_DataComboFile[[#This Row],[Econ3]] = "Goods and services"),IF(T_DataComboFile[[#This Row],[Econ4]] = T_DataComboFile[[#This Row],[Econ3]],1,0),IF(AND($AX$16="Level 4",T_DataComboFile[[#This Row],[Econ4]] = "Goods and services"),0,1)) -> 1 | AZ74: =T_DataComboFile[[#This Row],[2016/17_Source]]*T_DataComboFile[[#This Row],[G&S reporting level indicator]] -> 0 | BA74: =T_DataComboFile[[#This Row],[2017/18_Source]]*T_DataComboFile[[#This Row],[G&S reporting level indicator]] -> 0 | BB74: =T_DataComboFile[[#This Row],[2018/19_Source]]*T_DataComboFile[[#This Row],[G&S reporting level indicator]] -> 0 | BC74: =T_DataComboFile[[#This Row],[2019/20 Main appropriation_Source]]*T_DataComboFile[[#This Row],[G&S reporting level indicator]] -> 0 | BD74: =T_DataComboFile[[#This Row],[2019/20 Adjusted appropriation_Source]]*T_DataComboFile[[#This Row],[G&S reporting level indicator]] -> 0 | BE74: =T_DataComboFile[[#This Row],[2019/20 Revised estimate_Source]]*T_DataComboFile[[#This Row],[G&S reporting level indicator]] -> 0 | BF74: =T_DataComboFile[[#This Row],[2019/20 Preliminary outcome_Source]]*T_DataComboFile[[#This Row],[G&S reporting level indicator]] -> 0 | BG74: =T_DataComboFile[[#This Row],[2020/21 Original_Source]]*T_DataComboFile[[#This Row],[G&S reporting level indicator]] -> 0 | BH74: =T_DataComboFile[[#This Row],[2020/21 SAB_Source]]*T_DataComboFile[[#This Row],[G&S reporting level indicator]] -> 0 | BI74: =T_DataComboFile[[#This Row],[2020/21 Baseline_Source]]*T_DataComboFile[[#This Row],[G&S reporting level indicator]] -> 0 | BJ74: =T_DataComboFile[[#This Row],[2021/22 Baseline_Source]]*T_DataComboFile[[#This Row],[G&S reporting level indicator]] -> 0 | BK74: =T_DataComboFile[[#This Row],[2022/23 Baseline_Source]]*T_DataComboFile[[#This Row],[G&S reporting level indicator]] -> 0 | BL74: =T_DataComboFile[[#This Row],[2023/24 Baseline_Source]]*T_DataComboFile[[#This Row],[G&S reporting level indicator]] -> 0 | BS74: =T_DataComboFile[[#This Row],[2021/22 Baseline]]+T_DataComboFile[[#This Row],[2021/22 Reduction]]+T_DataComboFile[[#This Row],[2021/22 Increase]] -> 0 | BT74: =T_DataComboFile[[#This Row],[2022/23 Baseline]]+T_DataComboFile[[#This Row],[2022/23 Reduction]]+T_DataComboFile[[#This Row],[2022/23 Increase]] -> 0 | BU74: =T_DataComboFile[[#This Row],[2023/24 Baseline]]+T_DataComboFile[[#This Row],[2023/24 Reduction]]+T_DataComboFile[[#This Row],[2023/24 Increase]] -> 0
A75: NAT|Employee social benefits | B75: 19|Social benefits | C75: 2021_22 | D75: ENE2020 | E75: 19 | F75: 1 | G75: 1 | H75: 7436 | I75: 34571 | J75: 19 | K75: 1 | L75: 1 | M75: 7436 | N75: 034571 | O75: 19|01|01 | P75: 1 | Q75: 2 | R75: 10 | S75: 52 | T75: 56 | U75: 01|02|10|52|56 | V75: National | W75: Social Development | X75: Administration | Y75: Ministry | Z75: Employee social benefits | AA75: Current | AB75: Transfers and subsidies | AC75: Households | AD75: Social benefits | AE75: Social benefits | AF75: Social development | AG75: Social protection | AH75: NAT | AI75: 12 | AJ75: 167 | AK75: 1039 | AL75: 50 | AM75: 4350 | AN75: 4350 | AO75: 4350 | AP75: 53 | AQ75: 53 | AR75: 53 | AS75: 57 | AT75: 60 | AU75: 63 | AV75: 1 | AX75: =IF(T_DataComboFile[[#This Row],[G&S reporting level indicator]]=1,$AX$16,"Not applicable") -> Level 3 | AY75: =IF(AND($AX$16="Level 3",T_DataComboFile[[#This Row],[Econ3]] = "Goods and services"),IF(T_DataComboFile[[#This Row],[Econ4]] = T_DataComboFile[[#This Row],[Econ3]],1,0),IF(AND($AX$16="Level 4",T_DataComboFile[[#This Row],[Econ4]] = "Goods and services"),0,1)) -> 1 | AZ75: =T_DataComboFile[[#This Row],[2016/17_Source]]*T_DataComboFile[[#This Row],[G&S reporting level indicator]] -> 12 | BA75: =T_DataComboFile[[#This Row],[2017/18_Source]]*T_DataComboFile[[#This Row],[G&S reporting level indicator]] -> 167 | BB75: =T_DataComboFile[[#This Row],[2018/19_Source]]*T_DataComboFile[[#This Row],[G&S reporting level indicator]] -> 1039 | BC75: =T_DataComboFile[[#This Row],[2019/20 Main appropriation_Source]]*T_DataComboFile[[#This Row],[G&S reporting level indicator]] -> 50 | BD75: =T_DataComboFile[[#This Row],[2019/20 Adjusted appropriation_Source]]*T_DataComboFile[[#This Row],[G&S reporting level indicator]] -> 4350 | BE75: =T_DataComboFile[[#This Row],[2019/20 Revised estimate_Source]]*T_DataComboFile[[#This Row],[G&S reporting level indicator]] -> 4350 | BF75: =T_DataComboFile[[#This Row],[2019/20 Preliminary outcome_Source]]*T_DataComboFile[[#This Row],[G&S reporting level indicator]] -> 4350 | BG75: =T_DataComboFile[[#This Row],[2020/21 Original_Source]]*T_DataComboFile[[#This Row],[G&S reporting level indicator]] -> 53 | BH75: =T_DataComboFile[[#This Row],[2020/21 SAB_Source]]*T_DataComboFile[[#This Row],[G&S reporting level indicator]] -> 53 | BI75: =T_DataComboFile[[#This Row],[2020/21 Baseline_Source]]*T_DataComboFile[[#This Row],[G&S reporting level indicator]] -> 53 | BJ75: =T_DataComboFile[[#This Row],[2021/22 Baseline_Source]]*T_DataComboFile[[#This Row],[G&S reporting level indicator]] -> 57 | BK75: =T_DataComboFile[[#This Row],[2022/23 Baseline_Source]]*T_DataComboFile[[#This Row],[G&S reporting level indicator]] -> 60 | BL75: =T_DataComboFile[[#This Row],[2023/24 Baseline_Source]]*T_DataComboFile[[#This Row],[G&S reporting level indicator]] -> 63 | BS75: =T_DataComboFile[[#This Row],[2021/22 Baseline]]+T_DataComboFile[[#This Row],[2021/22 Reduction]]+T_DataComboFile[[#This Row],[2021/22 Increase]] -> 57 | BT75: =T_DataComboFile[[#This Row],[2022/23 Baseline]]+T_DataComboFile[[#This Row],[2022/23 Reduction]]+T_DataComboFile[[#This Row],[2022/23 Increase]] -> 60 | BU75: =T_DataComboFile[[#This Row],[2023/24 Baseline]]+T_DataComboFile[[#This Row],[2023/24 Reduction]]+T_DataComboFile[[#This Row],[2023/24 Increase]] -> 63
C76: 2021_22 | D76: ENE2020 | E76: 19 | F76: 1 | G76: 1 | I76: 34572 | J76: 19 | K76: 1 | L76: 1 | N76: 034572 | O76: 19|01|01 | P76: 1 | Q76: 2 | R76: 10 | S76: 53 | T76: 57 | U76: 01|02|10|53|57 | V76: National | W76: Social Development | X76: Administration | Y76: Ministry | AA76: Current | AB76: Transfers and subsidies | AC76: Households | AD76: Other transfers to households | AE76: Other transfers to households | AI76: 0 | AJ76: 0 | AK76: 0 | AL76: 0 | AM76: 0 | AN76: 0 | AO76: 0 | AP76: 0 | AQ76: 0 | AR76: 0 | AS76: 0 | AT76: 0 | AU76: 0 | AV76: 0 | AX76: =IF(T_DataComboFile[[#This Row],[G&S reporting level indicator]]=1,$AX$16,"Not applicable") -> Level 3 | AY76: =IF(AND($AX$16="Level 3",T_DataComboFile[[#This Row],[Econ3]] = "Goods and services"),IF(T_DataComboFile[[#This Row],[Econ4]] = T_DataComboFile[[#This Row],[Econ3]],1,0),IF(AND($AX$16="Level 4",T_DataComboFile[[#This Row],[Econ4]] = "Goods and services"),0,1)) -> 1 | AZ76: =T_DataComboFile[[#This Row],[2016/17_Source]]*T_DataComboFile[[#This Row],[G&S reporting level indicator]] -> 0 | BA76: =T_DataComboFile[[#This Row],[2017/18_Source]]*T_DataComboFile[[#This Row],[G&S reporting level indicator]] -> 0 | BB76: =T_DataComboFile[[#This Row],[2018/19_Source]]*T_DataComboFile[[#This Row],[G&S reporting level indicator]] -> 0 | BC76: =T_DataComboFile[[#This Row],[2019/20 Main appropriation_Source]]*T_DataComboFile[[#This Row],[G&S reporting level indicator]] -> 0 | BD76: =T_DataComboFile[[#This Row],[2019/20 Adjusted appropriation_Source]]*T_DataComboFile[[#This Row],[G&S reporting level indicator]] -> 0 | BE76: =T_DataComboFile[[#This Row],[2019/20 Revised estimate_Source]]*T_DataComboFile[[#This Row],[G&S reporting level indicator]] -> 0 | BF76: =T_DataComboFile[[#This Row],[2019/20 Preliminary outcome_Source]]*T_DataComboFile[[#This Row],[G&S reporting level indicator]] -> 0 | BG76: =T_DataComboFile[[#This Row],[2020/21 Original_Source]]*T_DataComboFile[[#This Row],[G&S reporting level indicator]] -> 0 | BH76: =T_DataComboFile[[#This Row],[2020/21 SAB_Source]]*T_DataComboFile[[#This Row],[G&S reporting level indicator]] -> 0 | BI76: =T_DataComboFile[[#This Row],[2020/21 Baseline_Source]]*T_DataComboFile[[#This Row],[G&S reporting level indicator]] -> 0 | BJ76: =T_DataComboFile[[#This Row],[2021/22 Baseline_Source]]*T_DataComboFile[[#This Row],[G&S reporting level indicator]] -> 0 | BK76: =T_DataComboFile[[#This Row],[2022/23 Baseline_Source]]*T_DataComboFile[[#This Row],[G&S reporting level indicator]] -> 0 | BL76: =T_DataComboFile[[#This Row],[2023/24 Baseline_Source]]*T_DataComboFile[[#This Row],[G&S reporting level indicator]] -> 0 | BS76: =T_DataComboFile[[#This Row],[2021/22 Baseline]]+T_DataComboFile[[#This Row],[2021/22 Reduction]]+T_DataComboFile[[#This Row],[2021/22 Increase]] -> 0 | BT76: =T_DataComboFile[[#This Row],[2022/23 Baseline]]+T_DataComboFile[[#This Row],[2022/23 Reduction]]+T_DataComboFile[[#This Row],[2022/23 Increase]] -> 0 | BU76: =T_DataComboFile[[#This Row],[2023/24 Baseline]]+T_DataComboFile[[#This Row],[2023/24 Reduction]]+T_DataComboFile[[#This Row],[2023/24 Increase]] -> 0
C77: 2021_22 | D77: ENE2020 | E77: 19 | F77: 1 | G77: 1 | I77: 34573 | J77: 19 | K77: 1 | L77: 1 | N77: 034573 | O77: 19|01|01 | P77: 2 | Q77: 2 | R77: 4 | S77: 43 | T77: 43 | U77: 02|02|04|43|43 | V77: National | W77: Social Development | X77: Administration | Y77: Ministry | AA77: Capital | AB77: Transfers and subsidies | AC77: Provinces and municipalities | AD77: Provinces | AE77: Provincial Revenue Funds | AI77: 0 | AJ77: 0 | AK77: 0 | AL77: 0 | AM77: 0 | AN77: 0 | AO77: 0 | AP77: 0 | AQ77: 0 | AR77: 0 | AS77: 0 | AT77: 0 | AU77: 0 | AV77: 0 | AX77: =IF(T_DataComboFile[[#This Row],[G&S reporting level indicator]]=1,$AX$16,"Not applicable") -> Level 3 | AY77: =IF(AND($AX$16="Level 3",T_DataComboFile[[#This Row],[Econ3]] = "Goods and services"),IF(T_DataComboFile[[#This Row],[Econ4]] = T_DataComboFile[[#This Row],[Econ3]],1,0),IF(AND($AX$16="Level 4",T_DataComboFile[[#This Row],[Econ4]] = "Goods and services"),0,1)) -> 1 | AZ77: =T_DataComboFile[[#This Row],[2016/17_Source]]*T_DataComboFile[[#This Row],[G&S reporting level indicator]] -> 0 | BA77: =T_DataComboFile[[#This Row],[2017/18_Source]]*T_DataComboFile[[#This Row],[G&S reporting level indicator]] -> 0 | BB77: =T_DataComboFile[[#This Row],[2018/19_Source]]*T_DataComboFile[[#This Row],[G&S reporting level indicator]] -> 0 | BC77: =T_DataComboFile[[#This Row],[2019/20 Main appropriation_Source]]*T_DataComboFile[[#This Row],[G&S reporting level indicator]] -> 0 | BD77: =T_DataComboFile[[#This Row],[2019/20 Adjusted appropriation_Source]]*T_DataComboFile[[#This Row],[G&S reporting level indicator]] -> 0 | BE77: =T_DataComboFile[[#This Row],[2019/20 Revised estimate_Source]]*T_DataComboFile[[#This Row],[G&S reporting level indicator]] -> 0 | BF77: =T_DataComboFile[[#This Row],[2019/20 Preliminary outcome_Source]]*T_DataComboFile[[#This Row],[G&S reporting level indicator]] -> 0 | BG77: =T_DataComboFile[[#This Row],[2020/21 Original_Source]]*T_DataComboFile[[#This Row],[G&S reporting level indicator]] -> 0 | BH77: =T_DataComboFile[[#This Row],[2020/21 SAB_Source]]*T_DataComboFile[[#This Row],[G&S reporting level indicator]] -> 0 | BI77: =T_DataComboFile[[#This Row],[2020/21 Baseline_Source]]*T_DataComboFile[[#This Row],[G&S reporting level indicator]] -> 0 | BJ77: =T_DataComboFile[[#This Row],[2021/22 Baseline_Source]]*T_DataComboFile[[#This Row],[G&S reporting level indicator]] -> 0 | BK77: =T_DataComboFile[[#This Row],[2022/23 Baseline_Source]]*T_DataComboFile[[#This Row],[G&S reporting level indicator]] -> 0 | BL77: =T_DataComboFile[[#This Row],[2023/24 Baseline_Source]]*T_DataComboFile[[#This Row],[G&S reporting level indicator]] -> 0 | BS77: =T_DataComboFile[[#This Row],[2021/22 Baseline]]+T_DataComboFile[[#This Row],[2021/22 Reduction]]+T_DataComboFile[[#This Row],[2021/22 Increase]] -> 0 | BT77: =T_DataComboFile[[#This Row],[2022/23 Baseline]]+T_DataComboFile[[#This Row],[2022/23 Reduction]]+T_DataComboFile[[#This Row],[2022/23 Increase]] -> 0 | BU77: =T_DataComboFile[[#This Row],[2023/24 Baseline]]+T_DataComboFile[[#This Row],[2023/24 Reduction]]+T_DataComboFile[[#This Row],[2023/24 Increase]] -> 0
C78: 2021_22 | D78: ENE2020 | E78: 19 | F78: 1 | G78: 1 | I78: 34574 | J78: 19 | K78: 1 | L78: 1 | N78: 034574 | O78: 19|01|01 | P78: 2 | Q78: 2 | R78: 4 | S78: 44 | T78: 45 | U78: 02|02|04|44|45 | V78: National | W78: Social Development | X78: Administration | Y78: Ministry | AA78: Capital | AB78: Transfers and subsidies | AC78: Provinces and municipalities | AD78: Municipalities | AE78: Municipal bank accounts | AI78: 0 | AJ78: 0 | AK78: 0 | AL78: 0 | AM78: 0 | AN78: 0 | AO78: 0 | AP78: 0 | AQ78: 0 | AR78: 0 | AS78: 0 | AT78: 0 | AU78: 0 | AV78: 0 | AX78: =IF(T_DataComboFile[[#This Row],[G&S reporting level indicator]]=1,$AX$16,"Not applicable") -> Level 3 | AY78: =IF(AND($AX$16="Level 3",T_DataComboFile[[#This Row],[Econ3]] = "Goods and services"),IF(T_DataComboFile[[#This Row],[Econ4]] = T_DataComboFile[[#This Row],[Econ3]],1,0),IF(AND($AX$16="Level 4",T_DataComboFile[[#This Row],[Econ4]] = "Goods and services"),0,1)) -> 1 | AZ78: =T_DataComboFile[[#This Row],[2016/17_Source]]*T_DataComboFile[[#This Row],[G&S reporting level indicator]] -> 0 | BA78: =T_DataComboFile[[#This Row],[2017/18_Source]]*T_DataComboFile[[#This Row],[G&S reporting level indicator]] -> 0 | BB78: =T_DataComboFile[[#This Row],[2018/19_Source]]*T_DataComboFile[[#This Row],[G&S reporting level indicator]] -> 0 | BC78: =T_DataComboFile[[#This Row],[2019/20 Main appropriation_Source]]*T_DataComboFile[[#This Row],[G&S reporting level indicator]] -> 0 | BD78: =T_DataComboFile[[#This Row],[2019/20 Adjusted appropriation_Source]]*T_DataComboFile[[#This Row],[G&S reporting level indicator]] -> 0 | BE78: =T_DataComboFile[[#This Row],[2019/20 Revised estimate_Source]]*T_DataComboFile[[#This Row],[G&S reporting level indicator]] -> 0 | BF78: =T_DataComboFile[[#This Row],[2019/20 Preliminary outcome_Source]]*T_DataComboFile[[#This Row],[G&S reporting level indicator]] -> 0 | BG78: =T_DataComboFile[[#This Row],[2020/21 Original_Source]]*T_DataComboFile[[#This Row],[G&S reporting level indicator]] -> 0 | BH78: =T_DataComboFile[[#This Row],[2020/21 SAB_Source]]*T_DataComboFile[[#This Row],[G&S reporting level indicator]] -> 0 | BI78: =T_DataComboFile[[#This Row],[2020/21 Baseline_Source]]*T_DataComboFile[[#This Row],[G&S reporting level indicator]] -> 0 | BJ78: =T_DataComboFile[[#This Row],[2021/22 Baseline_Source]]*T_DataComboFile[[#This Row],[G&S reporting level indicator]] -> 0 | BK78: =T_DataComboFile[[#This Row],[2022/23 Baseline_Source]]*T_DataComboFile[[#This Row],[G&S reporting level indicator]] -> 0 | BL78: =T_DataComboFile[[#This Row],[2023/24 Baseline_Source]]*T_DataComboFile[[#This Row],[G&S reporting level indicator]] -> 0 | BS78: =T_DataComboFile[[#This Row],[2021/22 Baseline]]+T_DataComboFile[[#This Row],[2021/22 Reduction]]+T_DataComboFile[[#This Row],[2021/22 Increase]] -> 0 | BT78: =T_DataComboFile[[#This Row],[2022/23 Baseline]]+T_DataComboFile[[#This Row],[2022/23 Reduction]]+T_DataComboFile[[#This Row],[2022/23 Increase]] -> 0 | BU78: =T_DataComboFile[[#This Row],[2023/24 Baseline]]+T_DataComboFile[[#This Row],[2023/24 Reduction]]+T_DataComboFile[[#This Row],[2023/24 Increase]] -> 0
C79: 2021_22 | D79: ENE2020 | E79: 19 | F79: 1 | G79: 1 | I79: 34575 | J79: 19 | K79: 1 | L79: 1 | N79: 034575 | O79: 19|01|01 | P79: 2 | Q79: 2 | R79: 5 | S79: 46 | T79: 48 | U79: 02|02|05|46|48 | V79: National | W79: Social Development | X79: Administration | Y79: Ministry | AA79: Capital | AB79: Transfers and subsidies | AC79: Departmental agencies and accounts | AD79: Departmental agencies (non-business entities) | AE79: Departmental agencies (non-business entities) | AI79: 0 | AJ79: 0 | AK79: 0 | AL79: 0 | AM79: 0 | AN79: 0 | AO79: 0 | AP79: 0 | AQ79: 0 | AR79: 0 | AS79: 0 | AT79: 0 | AU79: 0 | AV79: 0 | AX79: =IF(T_DataComboFile[[#This Row],[G&S reporting level indicator]]=1,$AX$16,"Not applicable") -> Level 3 | AY79: =IF(AND($AX$16="Level 3",T_DataComboFile[[#This Row],[Econ3]] = "Goods and services"),IF(T_DataComboFile[[#This Row],[Econ4]] = T_DataComboFile[[#This Row],[Econ3]],1,0),IF(AND($AX$16="Level 4",T_DataComboFile[[#This Row],[Econ4]] = "Goods and services"),0,1)) -> 1 | AZ79: =T_DataComboFile[[#This Row],[2016/17_Source]]*T_DataComboFile[[#This Row],[G&S reporting level indicator]] -> 0 | BA79: =T_DataComboFile[[#This Row],[2017/18_Source]]*T_DataComboFile[[#This Row],[G&S reporting level indicator]] -> 0 | BB79: =T_DataComboFile[[#This Row],[2018/19_Source]]*T_DataComboFile[[#This Row],[G&S reporting level indicator]] -> 0 | BC79: =T_DataComboFile[[#This Row],[2019/20 Main appropriation_Source]]*T_DataComboFile[[#This Row],[G&S reporting level indicator]] -> 0 | BD79: =T_DataComboFile[[#This Row],[2019/20 Adjusted appropriation_Source]]*T_DataComboFile[[#This Row],[G&S reporting level indicator]] -> 0 | BE79: =T_DataComboFile[[#This Row],[2019/20 Revised estimate_Source]]*T_DataComboFile[[#This Row],[G&S reporting level indicator]] -> 0 | BF79: =T_DataComboFile[[#This Row],[2019/20 Preliminary outcome_Source]]*T_DataComboFile[[#This Row],[G&S reporting level indicator]] -> 0 | BG79: =T_DataComboFile[[#This Row],[2020/21 Original_Source]]*T_DataComboFile[[#This Row],[G&S reporting level indicator]] -> 0 | BH79: =T_DataComboFile[[#This Row],[2020/21 SAB_Source]]*T_DataComboFile[[#This Row],[G&S reporting level indicator]] -> 0 | BI79: =T_DataComboFile[[#This Row],[2020/21 Baseline_Source]]*T_DataComboFile[[#This Row],[G&S reporting level indicator]] -> 0 | BJ79: =T_DataComboFile[[#This Row],[2021/22 Baseline_Source]]*T_DataComboFile[[#This Row],[G&S reporting level indicator]] -> 0 | BK79: =T_DataComboFile[[#This Row],[2022/23 Baseline_Source]]*T_DataComboFile[[#This Row],[G&S reporting level indicator]] -> 0 | BL79: =T_DataComboFile[[#This Row],[2023/24 Baseline_Source]]*T_DataComboFile[[#This Row],[G&S reporting level indicator]] -> 0 | BS79: =T_DataComboFile[[#This Row],[2021/22 Baseline]]+T_DataComboFile[[#This Row],[2021/22 Reduction]]+T_DataComboFile[[#This Row],[2021/22 Increase]] -> 0 | BT79: =T_DataComboFile[[#This Row],[2022/23 Baseline]]+T_DataComboFile[[#This Row],[2022/23 Reduction]]+T_DataComboFile[[#This Row],[2022/23 Increase]] -> 0 | BU79: =T_DataComboFile[[#This Row],[2023/24 Baseline]]+T_DataComboFile[[#This Row],[2023/24 Reduction]]+T_DataComboFile[[#This Row],[2023/24 Increase]] -> 0
C80: 2021_22 | D80: ENE2020 | E80: 19 | F80: 1 | G80: 1 | I80: 34576 | J80: 19 | K80: 1 | L80: 1 | N80: 034576 | O80: 19|01|01 | P80: 2 | Q80: 2 | R80: 6 | S80: 47 | T80: 49 | U80: 02|02|06|47|49 | V80: National | W80: Social Development | X80: Administration | Y80: Ministry | AA80: Capital | AB80: Transfers and subsidies | AC80: Higher education institutions | AD80: Higher education institutions | AE80: Higher education institutions | AI80: 0 | AJ80: 0 | AK80: 0 | AL80: 0 | AM80: 0 | AN80: 0 | AO80: 0 | AP80: 0 | AQ80: 0 | AR80: 0 | AS80: 0 | AT80: 0 | AU80: 0 | AV80: 0 | AX80: =IF(T_DataComboFile[[#This Row],[G&S reporting level indicator]]=1,$AX$16,"Not applicable") -> Level 3 | AY80: =IF(AND($AX$16="Level 3",T_DataComboFile[[#This Row],[Econ3]] = "Goods and services"),IF(T_DataComboFile[[#This Row],[Econ4]] = T_DataComboFile[[#This Row],[Econ3]],1,0),IF(AND($AX$16="Level 4",T_DataComboFile[[#This Row],[Econ4]] = "Goods and services"),0,1)) -> 1 | AZ80: =T_DataComboFile[[#This Row],[2016/17_Source]]*T_DataComboFile[[#This Row],[G&S reporting level indicator]] -> 0 | BA80: =T_DataComboFile[[#This Row],[2017/18_Source]]*T_DataComboFile[[#This Row],[G&S reporting level indicator]] -> 0 | BB80: =T_DataComboFile[[#This Row],[2018/19_Source]]*T_DataComboFile[[#This Row],[G&S reporting level indicator]] -> 0 | BC80: =T_DataComboFile[[#This Row],[2019/20 Main appropriation_Source]]*T_DataComboFile[[#This Row],[G&S reporting level indicator]] -> 0 | BD80: =T_DataComboFile[[#This Row],[2019/20 Adjusted appropriation_Source]]*T_DataComboFile[[#This Row],[G&S reporting level indicator]] -> 0 | BE80: =T_DataComboFile[[#This Row],[2019/20 Revised estimate_Source]]*T_DataComboFile[[#This Row],[G&S reporting level indicator]] -> 0 | BF80: =T_DataComboFile[[#This Row],[2019/20 Preliminary outcome_Source]]*T_DataComboFile[[#This Row],[G&S reporting level indicator]] -> 0 | BG80: =T_DataComboFile[[#This Row],[2020/21 Original_Source]]*T_DataComboFile[[#This Row],[G&S reporting level indicator]] -> 0 | BH80: =T_DataComboFile[[#This Row],[2020/21 SAB_Source]]*T_DataComboFile[[#This Row],[G&S reporting level indicator]] -> 0 | BI80: =T_DataComboFile[[#This Row],[2020/21 Baseline_Source]]*T_DataComboFile[[#This Row],[G&S reporting level indicator]] -> 0 | BJ80: =T_DataComboFile[[#This Row],[2021/22 Baseline_Source]]*T_DataComboFile[[#This Row],[G&S reporting level indicator]] -> 0 | BK80: =T_DataComboFile[[#This Row],[2022/23 Baseline_Source]]*T_DataComboFile[[#This Row],[G&S reporting level indicator]] -> 0 | BL80: =T_DataComboFile[[#This Row],[2023/24 Baseline_Source]]*T_DataComboFile[[#This Row],[G&S reporting level indicator]] -> 0 | BS80: =T_DataComboFile[[#This Row],[2021/22 Baseline]]+T_DataComboFile[[#This Row],[2021/22 Reduction]]+T_DataComboFile[[#This Row],[2021/22 Increase]] -> 0 | BT80: =T_DataComboFile[[#This Row],[2022/23 Baseline]]+T_DataComboFile[[#This Row],[2022/23 Reduction]]+T_DataComboFile[[#This Row],[2022/23 Increase]] -> 0 | BU80: =T_DataComboFile[[#This Row],[2023/24 Baseline]]+T_DataComboFile[[#This Row],[2023/24 Reduction]]+T_DataComboFile[[#This Row],[2023/24 Increase]] -> 0
C81: 2021_22 | D81: ENE2020 | E81: 19 | F81: 1 | G81: 1 | I81: 34577 | J81: 19 | K81: 1 | L81: 1 | N81: 034577 | O81: 19|01|01 | P81: 2 | Q81: 2 | R81: 7 | S81: 48 | T81: 50 | U81: 02|02|07|48|50 | V81: National | W81: Social Development | X81: Administration | Y81: Ministry | AA81: Capital | AB81: Transfers and subsidies | AC81: Foreign governments and international organisations | AD81: Foreign governments and international organisations | AE81: Foreign governments and international organisations | AI81: 0 | AJ81: 0 | AK81: 0 | AL81: 0 | AM81: 0 | AN81: 0 | AO81: 0 | AP81: 0 | AQ81: 0 | AR81: 0 | AS81: 0 | AT81: 0 | AU81: 0 | AV81: 0 | AX81: =IF(T_DataComboFile[[#This Row],[G&S reporting level indicator]]=1,$AX$16,"Not applicable") -> Level 3 | AY81: =IF(AND($AX$16="Level 3",T_DataComboFile[[#This Row],[Econ3]] = "Goods and services"),IF(T_DataComboFile[[#This Row],[Econ4]] = T_DataComboFile[[#This Row],[Econ3]],1,0),IF(AND($AX$16="Level 4",T_DataComboFile[[#This Row],[Econ4]] = "Goods and services"),0,1)) -> 1 | AZ81: =T_DataComboFile[[#This Row],[2016/17_Source]]*T_DataComboFile[[#This Row],[G&S reporting level indicator]] -> 0 | BA81: =T_DataComboFile[[#This Row],[2017/18_Source]]*T_DataComboFile[[#This Row],[G&S reporting level indicator]] -> 0 | BB81: =T_DataComboFile[[#This Row],[2018/19_Source]]*T_DataComboFile[[#This Row],[G&S reporting level indicator]] -> 0 | BC81: =T_DataComboFile[[#This Row],[2019/20 Main appropriation_Source]]*T_DataComboFile[[#This Row],[G&S reporting level indicator]] -> 0 | BD81: =T_DataComboFile[[#This Row],[2019/20 Adjusted appropriation_Source]]*T_DataComboFile[[#This Row],[G&S reporting level indicator]] -> 0 | BE81: =T_DataComboFile[[#This Row],[2019/20 Revised estimate_Source]]*T_DataComboFile[[#This Row],[G&S reporting level indicator]] -> 0 | BF81: =T_DataComboFile[[#This Row],[2019/20 Preliminary outcome_Source]]*T_DataComboFile[[#This Row],[G&S reporting level indicator]] -> 0 | BG81: =T_DataComboFile[[#This Row],[2020/21 Original_Source]]*T_DataComboFile[[#This Row],[G&S reporting level indicator]] -> 0 | BH81: =T_DataComboFile[[#This Row],[2020/21 SAB_Source]]*T_DataComboFile[[#This Row],[G&S reporting level indicator]] -> 0 | BI81: =T_DataComboFile[[#This Row],[2020/21 Baseline_Source]]*T_DataComboFile[[#This Row],[G&S reporting level indicator]] -> 0 | BJ81: =T_DataComboFile[[#This Row],[2021/22 Baseline_Source]]*T_DataComboFile[[#This Row],[G&S reporting level indicator]] -> 0 | BK81: =T_DataComboFile[[#This Row],[2022/23 Baseline_Source]]*T_DataComboFile[[#This Row],[G&S reporting level indicator]] -> 0 | BL81: =T_DataComboFile[[#This Row],[2023/24 Baseline_Source]]*T_DataComboFile[[#This Row],[G&S reporting level indicator]] -> 0 | BS81: =T_DataComboFile[[#This Row],[2021/22 Baseline]]+T_DataComboFile[[#This Row],[2021/22 Reduction]]+T_DataComboFile[[#This Row],[2021/22 Increase]] -> 0 | BT81: =T_DataComboFile[[#This Row],[2022/23 Baseline]]+T_DataComboFile[[#This Row],[2022/23 Reduction]]+T_DataComboFile[[#This Row],[2022/23 Increase]] -> 0 | BU81: =T_DataComboFile[[#This Row],[2023/24 Baseline]]+T_DataComboFile[[#This Row],[2023/24 Reduction]]+T_DataComboFile[[#This Row],[2023/24 Increase]] -> 0
C82: 2021_22 | D82: ENE2020 | E82: 19 | F82: 1 | G82: 1 | I82: 34578 | J82: 19 | K82: 1 | L82: 1 | N82: 034578 | O82: 19|01|01 | P82: 2 | Q82: 2 | R82: 8 | S82: 49 | T82: 51 | U82: 02|02|08|49|51 | V82: National | W82: Social Development | X82: Administration | Y82: Ministry | AA82: Capital | AB82: Transfers and subsidies | AC82: Public corporations and private enterprises | AD82: Public corporations | AE82: Subsidies on products and production (pc) | AI82: 0 | AJ82: 0 | AK82: 0 | AL82: 0 | AM82: 0 | AN82: 0 | AO82: 0 | AP82: 0 | AQ82: 0 | AR82: 0 | AS82: 0 | AT82: 0 | AU82: 0 | AV82: 0 | AX82: =IF(T_DataComboFile[[#This Row],[G&S reporting level indicator]]=1,$AX$16,"Not applicable") -> Level 3 | AY82: =IF(AND($AX$16="Level 3",T_DataComboFile[[#This Row],[Econ3]] = "Goods and services"),IF(T_DataComboFile[[#This Row],[Econ4]] = T_DataComboFile[[#This Row],[Econ3]],1,0),IF(AND($AX$16="Level 4",T_DataComboFile[[#This Row],[Econ4]] = "Goods and services"),0,1)) -> 1 | AZ82: =T_DataComboFile[[#This Row],[2016/17_Source]]*T_DataComboFile[[#This Row],[G&S reporting level indicator]] -> 0 | BA82: =T_DataComboFile[[#This Row],[2017/18_Source]]*T_DataComboFile[[#This Row],[G&S reporting level indicator]] -> 0 | BB82: =T_DataComboFile[[#This Row],[2018/19_Source]]*T_DataComboFile[[#This Row],[G&S reporting level indicator]] -> 0 | BC82: =T_DataComboFile[[#This Row],[2019/20 Main appropriation_Source]]*T_DataComboFile[[#This Row],[G&S reporting level indicator]] -> 0 | BD82: =T_DataComboFile[[#This Row],[2019/20 Adjusted appropriation_Source]]*T_DataComboFile[[#This Row],[G&S reporting level indicator]] -> 0 | BE82: =T_DataComboFile[[#This Row],[2019/20 Revised estimate_Source]]*T_DataComboFile[[#This Row],[G&S reporting level indicator]] -> 0 | BF82: =T_DataComboFile[[#This Row],[2019/20 Preliminary outcome_Source]]*T_DataComboFile[[#This Row],[G&S reporting level indicator]] -> 0 | BG82: =T_DataComboFile[[#This Row],[2020/21 Original_Source]]*T_DataComboFile[[#This Row],[G&S reporting level indicator]] -> 0 | BH82: =T_DataComboFile[[#This Row],[2020/21 SAB_Source]]*T_DataComboFile[[#This Row],[G&S reporting level indicator]] -> 0 | BI82: =T_DataComboFile[[#This Row],[2020/21 Baseline_Source]]*T_DataComboFile[[#This Row],[G&S reporting level indicator]] -> 0 | BJ82: =T_DataComboFile[[#This Row],[2021/22 Baseline_Source]]*T_DataComboFile[[#This Row],[G&S reporting level indicator]] -> 0 | BK82: =T_DataComboFile[[#This Row],[2022/23 Baseline_Source]]*T_DataComboFile[[#This Row],[G&S reporting level indicator]] -> 0 | BL82: =T_DataComboFile[[#This Row],[2023/24 Baseline_Source]]*T_DataComboFile[[#This Row],[G&S reporting level indicator]] -> 0 | BS82: =T_DataComboFile[[#This Row],[2021/22 Baseline]]+T_DataComboFile[[#This Row],[2021/22 Reduction]]+T_DataComboFile[[#This Row],[2021/22 Increase]] -> 0 | BT82: =T_DataComboFile[[#This Row],[2022/23 Baseline]]+T_DataComboFile[[#This Row],[2022/23 Reduction]]+T_DataComboFile[[#This Row],[2022/23 Increase]] -> 0 | BU82: =T_DataComboFile[[#This Row],[2023/24 Baseline]]+T_DataComboFile[[#This Row],[2023/24 Reduction]]+T_DataComboFile[[#This Row],[2023/24 Increase]] -> 0
C83: 2021_22 | D83: ENE2020 | E83: 19 | F83: 1 | G83: 1 | I83: 34579 | J83: 19 | K83: 1 | L83: 1 | N83: 034579 | O83: 19|01|01 | P83: 2 | Q83: 2 | R83: 8 | S83: 49 | T83: 52 | U83: 02|02|08|49|52 | V83: National | W83: Social Development | X83: Administration | Y83: Ministry | AA83: Capital | AB83: Transfers and subsidies | AC83: Public corporations and private enterprises | AD83: Public corporations | AE83: Other transfers to public corporations | AI83: 0 | AJ83: 0 | AK83: 0 | AL83: 0 | AM83: 0 | AN83: 0 | AO83: 0 | AP83: 0 | AQ83: 0 | AR83: 0 | AS83: 0 | AT83: 0 | AU83: 0 | AV83: 0 | AX83: =IF(T_DataComboFile[[#This Row],[G&S reporting level indicator]]=1,$AX$16,"Not applicable") -> Level 3 | AY83: =IF(AND($AX$16="Level 3",T_DataComboFile[[#This Row],[Econ3]] = "Goods and services"),IF(T_DataComboFile[[#This Row],[Econ4]] = T_DataComboFile[[#This Row],[Econ3]],1,0),IF(AND($AX$16="Level 4",T_DataComboFile[[#This Row],[Econ4]] = "Goods and services"),0,1)) -> 1 | AZ83: =T_DataComboFile[[#This Row],[2016/17_Source]]*T_DataComboFile[[#This Row],[G&S reporting level indicator]] -> 0 | BA83: =T_DataComboFile[[#This Row],[2017/18_Source]]*T_DataComboFile[[#This Row],[G&S reporting level indicator]] -> 0 | BB83: =T_DataComboFile[[#This Row],[2018/19_Source]]*T_DataComboFile[[#This Row],[G&S reporting level indicator]] -> 0 | BC83: =T_DataComboFile[[#This Row],[2019/20 Main appropriation_Source]]*T_DataComboFile[[#This Row],[G&S reporting level indicator]] -> 0 | BD83: =T_DataComboFile[[#This Row],[2019/20 Adjusted appropriation_Source]]*T_DataComboFile[[#This Row],[G&S reporting level indicator]] -> 0 | BE83: =T_DataComboFile[[#This Row],[2019/20 Revised estimate_Source]]*T_DataComboFile[[#This Row],[G&S reporting level indicator]] -> 0 | BF83: =T_DataComboFile[[#This Row],[2019/20 Preliminary outcome_Source]]*T_DataComboFile[[#This Row],[G&S reporting level indicator]] -> 0 | BG83: =T_DataComboFile[[#This Row],[2020/21 Original_Source]]*T_DataComboFile[[#This Row],[G&S reporting level indicator]] -> 0 | BH83: =T_DataComboFile[[#This Row],[2020/21 SAB_Source]]*T_DataComboFile[[#This Row],[G&S reporting level indicator]] -> 0 | BI83: =T_DataComboFile[[#This Row],[2020/21 Baseline_Source]]*T_DataComboFile[[#This Row],[G&S reporting level indicator]] -> 0 | BJ83: =T_DataComboFile[[#This Row],[2021/22 Baseline_Source]]*T_DataComboFile[[#This Row],[G&S reporting level indicator]] -> 0 | BK83: =T_DataComboFile[[#This Row],[2022/23 Baseline_Source]]*T_DataComboFile[[#This Row],[G&S reporting level indicator]] -> 0 | BL83: =T_DataComboFile[[#This Row],[2023/24 Baseline_Source]]*T_DataComboFile[[#This Row],[G&S reporting level indicator]] -> 0 | BS83: =T_DataComboFile[[#This Row],[2021/22 Baseline]]+T_DataComboFile[[#This Row],[2021/22 Reduction]]+T_DataComboFile[[#This Row],[2021/22 Increase]] -> 0 | BT83: =T_DataComboFile[[#This Row],[2022/23 Baseline]]+T_DataComboFile[[#This Row],[2022/23 Reduction]]+T_DataComboFile[[#This Row],[2022/23 Increase]] -> 0 | BU83: =T_DataComboFile[[#This Row],[2023/24 Baseline]]+T_DataComboFile[[#This Row],[2023/24 Reduction]]+T_DataComboFile[[#This Row],[2023/24 Increase]] -> 0
C84: 2021_22 | D84: ENE2020 | E84: 19 | F84: 1 | G84: 1 | I84: 34580 | J84: 19 | K84: 1 | L84: 1 | N84: 034580 | O84: 19|01|01 | P84: 2 | Q84: 2 | R84: 8 | S84: 50 | T84: 54 | U84: 02|02|08|50|54 | V84: National | W84: Social Development | X84: Administration | Y84: Ministry | AA84: Capital | AB84: Transfers and subsidies | AC84: Public corporations and private enterprises | AD84: Private enterprises | AE84: Other transfers to private enterprises | AI84: 0 | AJ84: 0 | AK84: 0 | AL84: 0 | AM84: 0 | AN84: 0 | AO84: 0 | AP84: 0 | AQ84: 0 | AR84: 0 | AS84: 0 | AT84: 0 | AU84: 0 | AV84: 0 | AX84: =IF(T_DataComboFile[[#This Row],[G&S reporting level indicator]]=1,$AX$16,"Not applicable") -> Level 3 | AY84: =IF(AND($AX$16="Level 3",T_DataComboFile[[#This Row],[Econ3]] = "Goods and services"),IF(T_DataComboFile[[#This Row],[Econ4]] = T_DataComboFile[[#This Row],[Econ3]],1,0),IF(AND($AX$16="Level 4",T_DataComboFile[[#This Row],[Econ4]] = "Goods and services"),0,1)) -> 1 | AZ84: =T_DataComboFile[[#This Row],[2016/17_Source]]*T_DataComboFile[[#This Row],[G&S reporting level indicator]] -> 0 | BA84: =T_DataComboFile[[#This Row],[2017/18_Source]]*T_DataComboFile[[#This Row],[G&S reporting level indicator]] -> 0 | BB84: =T_DataComboFile[[#This Row],[2018/19_Source]]*T_DataComboFile[[#This Row],[G&S reporting level indicator]] -> 0 | BC84: =T_DataComboFile[[#This Row],[2019/20 Main appropriation_Source]]*T_DataComboFile[[#This Row],[G&S reporting level indicator]] -> 0 | BD84: =T_DataComboFile[[#This Row],[2019/20 Adjusted appropriation_Source]]*T_DataComboFile[[#This Row],[G&S reporting level indicator]] -> 0 | BE84: =T_DataComboFile[[#This Row],[2019/20 Revised estimate_Source]]*T_DataComboFile[[#This Row],[G&S reporting level indicator]] -> 0 | BF84: =T_DataComboFile[[#This Row],[2019/20 Preliminary outcome_Source]]*T_DataComboFile[[#This Row],[G&S reporting level indicator]] -> 0 | BG84: =T_DataComboFile[[#This Row],[2020/21 Original_Source]]*T_DataComboFile[[#This Row],[G&S reporting level indicator]] -> 0 | BH84: =T_DataComboFile[[#This Row],[2020/21 SAB_Source]]*T_DataComboFile[[#This Row],[G&S reporting level indicator]] -> 0 | BI84: =T_DataComboFile[[#This Row],[2020/21 Baseline_Source]]*T_DataComboFile[[#This Row],[G&S reporting level indicator]] -> 0 | BJ84: =T_DataComboFile[[#This Row],[2021/22 Baseline_Source]]*T_DataComboFile[[#This Row],[G&S reporting level indicator]] -> 0 | BK84: =T_DataComboFile[[#This Row],[2022/23 Baseline_Source]]*T_DataComboFile[[#This Row],[G&S reporting level indicator]] -> 0 | BL84: =T_DataComboFile[[#This Row],[2023/24 Baseline_Source]]*T_DataComboFile[[#This Row],[G&S reporting level indicator]] -> 0 | BS84: =T_DataComboFile[[#This Row],[2021/22 Baseline]]+T_DataComboFile[[#This Row],[2021/22 Reduction]]+T_DataComboFile[[#This Row],[2021/22 Increase]] -> 0 | BT84: =T_DataComboFile[[#This Row],[2022/23 Baseline]]+T_DataComboFile[[#This Row],[2022/23 Reduction]]+T_DataComboFile[[#This Row],[2022/23 Increase]] -> 0 | BU84: =T_DataComboFile[[#This Row],[2023/24 Baseline]]+T_DataComboFile[[#This Row],[2023/24 Reduction]]+T_DataComboFile[[#This Row],[2023/24 Increase]] -> 0
C85: 2021_22 | D85: ENE2020 | E85: 19 | F85: 1 | G85: 1 | I85: 34581 | J85: 19 | K85: 1 | L85: 1 | N85: 034581 | O85: 19|01|01 | P85: 2 | Q85: 2 | R85: 9 | S85: 51 | T85: 55 | U85: 02|02|09|51|55 | V85: National | W85: Social Development | X85: Administration | Y85: Ministry | AA85: Capital | AB85: Transfers and subsidies | AC85: Non-profit institutions | AD85: Non-profit institutions | AE85: Non-profit institutions | AI85: 0 | AJ85: 0 | AK85: 0 | AL85: 0 | AM85: 0 | AN85: 0 | AO85: 0 | AP85: 0 | AQ85: 0 | AR85: 0 | AS85: 0 | AT85: 0 | AU85: 0 | AV85: 0 | AX85: =IF(T_DataComboFile[[#This Row],[G&S reporting level indicator]]=1,$AX$16,"Not applicable") -> Level 3 | AY85: =IF(AND($AX$16="Level 3",T_DataComboFile[[#This Row],[Econ3]] = "Goods and services"),IF(T_DataComboFile[[#This Row],[Econ4]] = T_DataComboFile[[#This Row],[Econ3]],1,0),IF(AND($AX$16="Level 4",T_DataComboFile[[#This Row],[Econ4]] = "Goods and services"),0,1)) -> 1 | AZ85: =T_DataComboFile[[#This Row],[2016/17_Source]]*T_DataComboFile[[#This Row],[G&S reporting level indicator]] -> 0 | BA85: =T_DataComboFile[[#This Row],[2017/18_Source]]*T_DataComboFile[[#This Row],[G&S reporting level indicator]] -> 0 | BB85: =T_DataComboFile[[#This Row],[2018/19_Source]]*T_DataComboFile[[#This Row],[G&S reporting level indicator]] -> 0 | BC85: =T_DataComboFile[[#This Row],[2019/20 Main appropriation_Source]]*T_DataComboFile[[#This Row],[G&S reporting level indicator]] -> 0 | BD85: =T_DataComboFile[[#This Row],[2019/20 Adjusted appropriation_Source]]*T_DataComboFile[[#This Row],[G&S reporting level indicator]] -> 0 | BE85: =T_DataComboFile[[#This Row],[2019/20 Revised estimate_Source]]*T_DataComboFile[[#This Row],[G&S reporting level indicator]] -> 0 | BF85: =T_DataComboFile[[#This Row],[2019/20 Preliminary outcome_Source]]*T_DataComboFile[[#This Row],[G&S reporting level indicator]] -> 0 | BG85: =T_DataComboFile[[#This Row],[2020/21 Original_Source]]*T_DataComboFile[[#This Row],[G&S reporting level indicator]] -> 0 | BH85: =T_DataComboFile[[#This Row],[2020/21 SAB_Source]]*T_DataComboFile[[#This Row],[G&S reporting level indicator]] -> 0 | BI85: =T_DataComboFile[[#This Row],[2020/21 Baseline_Source]]*T_DataComboFile[[#This Row],[G&S reporting level indicator]] -> 0 | BJ85: =T_DataComboFile[[#This Row],[2021/22 Baseline_Source]]*T_DataComboFile[[#This Row],[G&S reporting level indicator]] -> 0 | BK85: =T_DataComboFile[[#This Row],[2022/23 Baseline_Source]]*T_DataComboFile[[#This Row],[G&S reporting level indicator]] -> 0 | BL85: =T_DataComboFile[[#This Row],[2023/24 Baseline_Source]]*T_DataComboFile[[#This Row],[G&S reporting level indicator]] -> 0 | BS85: =T_DataComboFile[[#This Row],[2021/22 Baseline]]+T_DataComboFile[[#This Row],[2021/22 Reduction]]+T_DataComboFile[[#This Row],[2021/22 Increase]] -> 0 | BT85: =T_DataComboFile[[#This Row],[2022/23 Baseline]]+T_DataComboFile[[#This Row],[2022/23 Reduction]]+T_DataComboFile[[#This Row],[2022/23 Increase]] -> 0 | BU85: =T_DataComboFile[[#This Row],[2023/24 Baseline]]+T_DataComboFile[[#This Row],[2023/24 Reduction]]+T_DataComboFile[[#This Row],[2023/24 Increase]] -> 0
C86: 2021_22 | D86: ENE2020 | E86: 19 | F86: 1 | G86: 1 | I86: 34582 | J86: 19 | K86: 1 | L86: 1 | N86: 034582 | O86: 19|01|01 | P86: 2 | Q86: 2 | R86: 10 | S86: 53 | T86: 57 | U86: 02|02|10|53|57 | V86: National | W86: Social Development | X86: Administration | Y86: Ministry | AA86: Capital | AB86: Transfers and subsidies | AC86: Households | AD86: Other transfers to households | AE86: Other transfers to households | AI86: 0 | AJ86: 0 | AK86: 0 | AL86: 0 | AM86: 0 | AN86: 0 | AO86: 0 | AP86: 0 | AQ86: 0 | AR86: 0 | AS86: 0 | AT86: 0 | AU86: 0 | AV86: 0 | AX86: =IF(T_DataComboFile[[#This Row],[G&S reporting level indicator]]=1,$AX$16,"Not applicable") -> Level 3 | AY86: =IF(AND($AX$16="Level 3",T_DataComboFile[[#This Row],[Econ3]] = "Goods and services"),IF(T_DataComboFile[[#This Row],[Econ4]] = T_DataComboFile[[#This Row],[Econ3]],1,0),IF(AND($AX$16="Level 4",T_DataComboFile[[#This Row],[Econ4]] = "Goods and services"),0,1)) -> 1 | AZ86: =T_DataComboFile[[#This Row],[2016/17_Source]]*T_DataComboFile[[#This Row],[G&S reporting level indicator]] -> 0 | BA86: =T_DataComboFile[[#This Row],[2017/18_Source]]*T_DataComboFile[[#This Row],[G&S reporting level indicator]] -> 0 | BB86: =T_DataComboFile[[#This Row],[2018/19_Source]]*T_DataComboFile[[#This Row],[G&S reporting level indicator]] -> 0 | BC86: =T_DataComboFile[[#This Row],[2019/20 Main appropriation_Source]]*T_DataComboFile[[#This Row],[G&S reporting level indicator]] -> 0 | BD86: =T_DataComboFile[[#This Row],[2019/20 Adjusted appropriation_Source]]*T_DataComboFile[[#This Row],[G&S reporting level indicator]] -> 0 | BE86: =T_DataComboFile[[#This Row],[2019/20 Revised estimate_Source]]*T_DataComboFile[[#This Row],[G&S reporting level indicator]] -> 0 | BF86: =T_DataComboFile[[#This Row],[2019/20 Preliminary outcome_Source]]*T_DataComboFile[[#This Row],[G&S reporting level indicator]] -> 0 | BG86: =T_DataComboFile[[#This Row],[2020/21 Original_Source]]*T_DataComboFile[[#This Row],[G&S reporting level indicator]] -> 0 | BH86: =T_DataComboFile[[#This Row],[2020/21 SAB_Source]]*T_DataComboFile[[#This Row],[G&S reporting level indicator]] -> 0 | BI86: =T_DataComboFile[[#This Row],[2020/21 Baseline_Source]]*T_DataComboFile[[#This Row],[G&S reporting level indicator]] -> 0 | BJ86: =T_DataComboFile[[#This Row],[2021/22 Baseline_Source]]*T_DataComboFile[[#This Row],[G&S reporting level indicator]] -> 0 | BK86: =T_DataComboFile[[#This Row],[2022/23 Baseline_Source]]*T_DataComboFile[[#This Row],[G&S reporting level indicator]] -> 0 | BL86: =T_DataComboFile[[#This Row],[2023/24 Baseline_Source]]*T_DataComboFile[[#This Row],[G&S reporting level indicator]] -> 0 | BS86: =T_DataComboFile[[#This Row],[2021/22 Baseline]]+T_DataComboFile[[#This Row],[2021/22 Reduction]]+T_DataComboFile[[#This Row],[2021/22 Increase]] -> 0 | BT86: =T_DataComboFile[[#This Row],[2022/23 Baseline]]+T_DataComboFile[[#This Row],[2022/23 Reduction]]+T_DataComboFile[[#This Row],[2022/23 Increase]] -> 0 | BU86: =T_DataComboFile[[#This Row],[2023/24 Baseline]]+T_DataComboFile[[#This Row],[2023/24 Reduction]]+T_DataComboFile[[#This Row],[2023/24 Increase]] -> 0
C87: 2021_22 | D87: ENE2020 | E87: 19 | F87: 1 | G87: 1 | I87: 34583 | J87: 19 | K87: 1 | L87: 1 | N87: 034583 | O87: 19|01|01 | P87: 2 | Q87: 3 | R87: 11 | S87: 54 | T87: 58 | U87: 02|03|11|54|58 | V87: National | W87: Social Development | X87: Administration | Y87: Ministry | AA87: Capital | AB87: Payments for capital assets | AC87: Buildings and other fixed structures | AD87: Buildings | AE87: Buildings | AI87: 0 | AJ87: 0 | AK87: 0 | AL87: 0 | AM87: 0 | AN87: 0 | AO87: 0 | AP87: 0 | AQ87: 0 | AR87: 0 | AS87: 0 | AT87: 0 | AU87: 0 | AV87: 0 | AX87: =IF(T_DataComboFile[[#This Row],[G&S reporting level indicator]]=1,$AX$16,"Not applicable") -> Level 3 | AY87: =IF(AND($AX$16="Level 3",T_DataComboFile[[#This Row],[Econ3]] = "Goods and services"),IF(T_DataComboFile[[#This Row],[Econ4]] = T_DataComboFile[[#This Row],[Econ3]],1,0),IF(AND($AX$16="Level 4",T_DataComboFile[[#This Row],[Econ4]] = "Goods and services"),0,1)) -> 1 | AZ87: =T_DataComboFile[[#This Row],[2016/17_Source]]*T_DataComboFile[[#This Row],[G&S reporting level indicator]] -> 0 | BA87: =T_DataComboFile[[#This Row],[2017/18_Source]]*T_DataComboFile[[#This Row],[G&S reporting level indicator]] -> 0 | BB87: =T_DataComboFile[[#This Row],[2018/19_Source]]*T_DataComboFile[[#This Row],[G&S reporting level indicator]] -> 0 | BC87: =T_DataComboFile[[#This Row],[2019/20 Main appropriation_Source]]*T_DataComboFile[[#This Row],[G&S reporting level indicator]] -> 0 | BD87: =T_DataComboFile[[#This Row],[2019/20 Adjusted appropriation_Source]]*T_DataComboFile[[#This Row],[G&S reporting level indicator]] -> 0 | BE87: =T_DataComboFile[[#This Row],[2019/20 Revised estimate_Source]]*T_DataComboFile[[#This Row],[G&S reporting level indicator]] -> 0 | BF87: =T_DataComboFile[[#This Row],[2019/20 Preliminary outcome_Source]]*T_DataComboFile[[#This Row],[G&S reporting level indicator]] -> 0 | BG87: =T_DataComboFile[[#This Row],[2020/21 Original_Source]]*T_DataComboFile[[#This Row],[G&S reporting level indicator]] -> 0 | BH87: =T_DataComboFile[[#This Row],[2020/21 SAB_Source]]*T_DataComboFile[[#This Row],[G&S reporting level indicator]] -> 0 | BI87: =T_DataComboFile[[#This Row],[2020/21 Baseline_Source]]*T_DataComboFile[[#This Row],[G&S reporting level indicator]] -> 0 | BJ87: =T_DataComboFile[[#This Row],[2021/22 Baseline_Source]]*T_DataComboFile[[#This Row],[G&S reporting level indicator]] -> 0 | BK87: =T_DataComboFile[[#This Row],[2022/23 Baseline_Source]]*T_DataComboFile[[#This Row],[G&S reporting level indicator]] -> 0 | BL87: =T_DataComboFile[[#This Row],[2023/24 Baseline_Source]]*T_DataComboFile[[#This Row],[G&S reporting level indicator]] -> 0 | BS87: =T_DataComboFile[[#This Row],[2021/22 Baseline]]+T_DataComboFile[[#This Row],[2021/22 Reduction]]+T_DataComboFile[[#This Row],[2021/22 Increase]] -> 0 | BT87: =T_DataComboFile[[#This Row],[2022/23 Baseline]]+T_DataComboFile[[#This Row],[2022/23 Reduction]]+T_DataComboFile[[#This Row],[2022/23 Increase]] -> 0 | BU87: =T_DataComboFile[[#This Row],[2023/24 Baseline]]+T_DataComboFile[[#This Row],[2023/24 Reduction]]+T_DataComboFile[[#This Row],[2023/24 Increase]] -> 0
C88: 2021_22 | D88: ENE2020 | E88: 19 | F88: 1 | G88: 1 | I88: 34584 | J88: 19 | K88: 1 | L88: 1 | N88: 034584 | O88: 19|01|01 | P88: 2 | Q88: 3 | R88: 11 | S88: 55 | T88: 59 | U88: 02|03|11|55|59 | V88: National | W88: Social Development | X88: Administration | Y88: Ministry | AA88: Capital | AB88: Payments for capital assets | AC88: Buildings and other fixed structures | AD88: Other fixed structures | AE88: Other fixed structures | AI88: 0 | AJ88: 0 | AK88: 0 | AL88: 0 | AM88: 0 | AN88: 0 | AO88: 0 | AP88: 0 | AQ88: 0 | AR88: 0 | AS88: 0 | AT88: 0 | AU88: 0 | AV88: 0 | AX88: =IF(T_DataComboFile[[#This Row],[G&S reporting level indicator]]=1,$AX$16,"Not applicable") -> Level 3 | AY88: =IF(AND($AX$16="Level 3",T_DataComboFile[[#This Row],[Econ3]] = "Goods and services"),IF(T_DataComboFile[[#This Row],[Econ4]] = T_DataComboFile[[#This Row],[Econ3]],1,0),IF(AND($AX$16="Level 4",T_DataComboFile[[#This Row],[Econ4]] = "Goods and services"),0,1)) -> 1 | AZ88: =T_DataComboFile[[#This Row],[2016/17_Source]]*T_DataComboFile[[#This Row],[G&S reporting level indicator]] -> 0 | BA88: =T_DataComboFile[[#This Row],[2017/18_Source]]*T_DataComboFile[[#This Row],[G&S reporting level indicator]] -> 0 | BB88: =T_DataComboFile[[#This Row],[2018/19_Source]]*T_DataComboFile[[#This Row],[G&S reporting level indicator]] -> 0 | BC88: =T_DataComboFile[[#This Row],[2019/20 Main appropriation_Source]]*T_DataComboFile[[#This Row],[G&S reporting level indicator]] -> 0 | BD88: =T_DataComboFile[[#This Row],[2019/20 Adjusted appropriation_Source]]*T_DataComboFile[[#This Row],[G&S reporting level indicator]] -> 0 | BE88: =T_DataComboFile[[#This Row],[2019/20 Revised estimate_Source]]*T_DataComboFile[[#This Row],[G&S reporting level indicator]] -> 0 | BF88: =T_DataComboFile[[#This Row],[2019/20 Preliminary outcome_Source]]*T_DataComboFile[[#This Row],[G&S reporting level indicator]] -> 0 | BG88: =T_DataComboFile[[#This Row],[2020/21 Original_Source]]*T_DataComboFile[[#This Row],[G&S reporting level indicator]] -> 0 | BH88: =T_DataComboFile[[#This Row],[2020/21 SAB_Source]]*T_DataComboFile[[#This Row],[G&S reporting level indicator]] -> 0 | BI88: =T_DataComboFile[[#This Row],[2020/21 Baseline_Source]]*T_DataComboFile[[#This Row],[G&S reporting level indicator]] -> 0 | BJ88: =T_DataComboFile[[#This Row],[2021/22 Baseline_Source]]*T_DataComboFile[[#This Row],[G&S reporting level indicator]] -> 0 | BK88: =T_DataComboFile[[#This Row],[2022/23 Baseline_Source]]*T_DataComboFile[[#This Row],[G&S reporting level indicator]] -> 0 | BL88: =T_DataComboFile[[#This Row],[2023/24 Baseline_Source]]*T_DataComboFile[[#This Row],[G&S reporting level indicator]] -> 0 | BS88: =T_DataComboFile[[#This Row],[2021/22 Baseline]]+T_DataComboFile[[#This Row],[2021/22 Reduction]]+T_DataComboFile[[#This Row],[2021/22 Increase]] -> 0 | BT88: =T_DataComboFile[[#This Row],[2022/23 Baseline]]+T_DataComboFile[[#This Row],[2022/23 Reduction]]+T_DataComboFile[[#This Row],[2022/23 Increase]] -> 0 | BU88: =T_DataComboFile[[#This Row],[2023/24 Baseline]]+T_DataComboFile[[#This Row],[2023/24 Reduction]]+T_DataComboFile[[#This Row],[2023/24 Increase]] -> 0
A89: NAT|Non-transfer item | B89: 19|Transport equipment | C89: 2021_22 | D89: ENE2020 | E89: 19 | F89: 1 | G89: 1 | H89: 7437 | I89: 34585 | J89: 19 | K89: 1 | L89: 1 | M89: 7437 | N89: 034585 | O89: 19|01|01 | P89: 2 | Q89: 3 | R89: 12 | S89: 56 | T89: 60 | U89: 02|03|12|56|60 | V89: National | W89: Social Development | X89: Administration | Y89: Ministry | Z89: Non-transfer item | AA89: Capital | AB89: Payments for capital assets | AC89: Machinery and equipment | AD89: Transport equipment | AE89: Transport equipment | AF89: Social development | AG89: Social protection | AH89: NAT | AI89: 2464 | AJ89: 0 | AK89: 778 | AL89: 0 | AM89: 0 | AN89: 0 | AO89: 0 | AP89: 0 | AQ89: 0 | AR89: 0 | AS89: 0 | AT89: 0 | AU89: 0 | AV89: 1 | AX89: =IF(T_DataComboFile[[#This Row],[G&S reporting level indicator]]=1,$AX$16,"Not applicable") -> Level 3 | AY89: =IF(AND($AX$16="Level 3",T_DataComboFile[[#This Row],[Econ3]] = "Goods and services"),IF(T_DataComboFile[[#This Row],[Econ4]] = T_DataComboFile[[#This Row],[Econ3]],1,0),IF(AND($AX$16="Level 4",T_DataComboFile[[#This Row],[Econ4]] = "Goods and services"),0,1)) -> 1 | AZ89: =T_DataComboFile[[#This Row],[2016/17_Source]]*T_DataComboFile[[#This Row],[G&S reporting level indicator]] -> 2464 | BA89: =T_DataComboFile[[#This Row],[2017/18_Source]]*T_DataComboFile[[#This Row],[G&S reporting level indicator]] -> 0 | BB89: =T_DataComboFile[[#This Row],[2018/19_Source]]*T_DataComboFile[[#This Row],[G&S reporting level indicator]] -> 778 | BC89: =T_DataComboFile[[#This Row],[2019/20 Main appropriation_Source]]*T_DataComboFile[[#This Row],[G&S reporting level indicator]] -> 0 | BD89: =T_DataComboFile[[#This Row],[2019/20 Adjusted appropriation_Source]]*T_DataComboFile[[#This Row],[G&S reporting level indicator]] -> 0 | BE89: =T_DataComboFile[[#This Row],[2019/20 Revised estimate_Source]]*T_DataComboFile[[#This Row],[G&S reporting level indicator]] -> 0 | BF89: =T_DataComboFile[[#This Row],[2019/20 Preliminary outcome_Source]]*T_DataComboFile[[#This Row],[G&S reporting level indicator]] -> 0 | BG89: =T_DataComboFile[[#This Row],[2020/21 Original_Source]]*T_DataComboFile[[#This Row],[G&S reporting level indicator]] -> 0 | BH89: =T_DataComboFile[[#This Row],[2020/21 SAB_Source]]*T_DataComboFile[[#This Row],[G&S reporting level indicator]] -> 0 | BI89: =T_DataComboFile[[#This Row],[2020/21 Baseline_Source]]*T_DataComboFile[[#This Row],[G&S reporting level indicator]] -> 0 | BJ89: =T_DataComboFile[[#This Row],[2021/22 Baseline_Source]]*T_DataComboFile[[#This Row],[G&S reporting level indicator]] -> 0 | BK89: =T_DataComboFile[[#This Row],[2022/23 Baseline_Source]]*T_DataComboFile[[#This Row],[G&S reporting level indicator]] -> 0 | BL89: =T_DataComboFile[[#This Row],[2023/24 Baseline_Source]]*T_DataComboFile[[#This Row],[G&S reporting level indicator]] -> 0 | BS89: =T_DataComboFile[[#This Row],[2021/22 Baseline]]+T_DataComboFile[[#This Row],[2021/22 Reduction]]+T_DataComboFile[[#This Row],[2021/22 Increase]] -> 0 | BT89: =T_DataComboFile[[#This Row],[2022/23 Baseline]]+T_DataComboFile[[#This Row],[2022/23 Reduction]]+T_DataComboFile[[#This Row],[2022/23 Increase]] -> 0 | BU89: =T_DataComboFile[[#This Row],[2023/24 Baseline]]+T_DataComboFile[[#This Row],[2023/24 Reduction]]+T_DataComboFile[[#This Row],[2023/24 Increase]] -> 0
A90: NAT|Non-transfer item | B90: 19|Other machinery and equipment | C90: 2021_22 | D90: ENE2020 | E90: 19 | F90: 1 | G90: 1 | H90: 7438 | I90: 34586 | J90: 19 | K90: 1 | L90: 1 | M90: 7438 | N90: 034586 | O90: 19|01|01 | P90: 2 | Q90: 3 | R90: 12 | S90: 57 | T90: 61 | U90: 02|03|12|57|61 | V90: National | W90: Social Development | X90: Administration | Y90: Ministry | Z90: Non-transfer item | AA90: Capital | AB90: Payments for capital assets | AC90: Machinery and equipment | AD90: Other machinery and equipment | AE90: Other machinery and equipment | AF90: Social development | AG90: Social protection | AH90: NAT | AI90: 27 | AJ90: 42 | AK90: 111 | AL90: 287 | AM90: 287 | AN90: 287 | AO90: 287 | AP90: 303 | AQ90: 303 | AR90: 303 | AS90: 320 | AT90: 337 | AU90: 352 | AV90: 1 | AX90: =IF(T_DataComboFile[[#This Row],[G&S reporting level indicator]]=1,$AX$16,"Not applicable") -> Level 3 | AY90: =IF(AND($AX$16="Level 3",T_DataComboFile[[#This Row],[Econ3]] = "Goods and services"),IF(T_DataComboFile[[#This Row],[Econ4]] = T_DataComboFile[[#This Row],[Econ3]],1,0),IF(AND($AX$16="Level 4",T_DataComboFile[[#This Row],[Econ4]] = "Goods and services"),0,1)) -> 1 | AZ90: =T_DataComboFile[[#This Row],[2016/17_Source]]*T_DataComboFile[[#This Row],[G&S reporting level indicator]] -> 27 | BA90: =T_DataComboFile[[#This Row],[2017/18_Source]]*T_DataComboFile[[#This Row],[G&S reporting level indicator]] -> 42 | BB90: =T_DataComboFile[[#This Row],[2018/19_Source]]*T_DataComboFile[[#This Row],[G&S reporting level indicator]] -> 111 | BC90: =T_DataComboFile[[#This Row],[2019/20 Main appropriation_Source]]*T_DataComboFile[[#This Row],[G&S reporting level indicator]] -> 287 | BD90: =T_DataComboFile[[#This Row],[2019/20 Adjusted appropriation_Source]]*T_DataComboFile[[#This Row],[G&S reporting level indicator]] -> 287 | BE90: =T_DataComboFile[[#This Row],[2019/20 Revised estimate_Source]]*T_DataComboFile[[#This Row],[G&S reporting level indicator]] -> 287 | BF90: =T_DataComboFile[[#This Row],[2019/20 Preliminary outcome_Source]]*T_DataComboFile[[#This Row],[G&S reporting level indicator]] -> 287 | BG90: =T_DataComboFile[[#This Row],[2020/21 Original_Source]]*T_DataComboFile[[#This Row],[G&S reporting level indicator]] -> 303 | BH90: =T_DataComboFile[[#This Row],[2020/21 SAB_Source]]*T_DataComboFile[[#This Row],[G&S reporting level indicator]] -> 303 | BI90: =T_DataComboFile[[#This Row],[2020/21 Baseline_Source]]*T_DataComboFile[[#This Row],[G&S reporting level indicator]] -> 303 | BJ90: =T_DataComboFile[[#This Row],[2021/22 Baseline_Source]]*T_DataComboFile[[#This Row],[G&S reporting level indicator]] -> 320 | BK90: =T_DataComboFile[[#This Row],[2022/23 Baseline_Source]]*T_DataComboFile[[#This Row],[G&S reporting level indicator]] -> 337 | BL90: =T_DataComboFile[[#This Row],[2023/24 Baseline_Source]]*T_DataComboFile[[#This Row],[G&S reporting level indicator]] -> 352 | BS90: =T_DataComboFile[[#This Row],[2021/22 Baseline]]+T_DataComboFile[[#This Row],[2021/22 Reduction]]+T_DataComboFile[[#This Row],[2021/22 Increase]] -> 320 | BT90: =T_DataComboFile[[#This Row],[2022/23 Baseline]]+T_DataComboFile[[#This Row],[2022/23 Reduction]]+T_DataComboFile[[#This Row],[2022/23 Increase]] -> 337 | BU90: =T_DataComboFile[[#This Row],[2023/24 Baseline]]+T_DataComboFile[[#This Row],[2023/24 Reduction]]+T_DataComboFile[[#This Row],[2023/24 Increase]] -> 352
C91: 2021_22 | D91: ENE2020 | E91: 19 | F91: 1 | G91: 1 | I91: 34587 | J91: 19 | K91: 1 | L91: 1 | N91: 034587 | O91: 19|01|01 | P91: 2 | Q91: 3 | R91: 13 | S91: 58 | T91: 62 | U91: 02|03|13|58|62 | V91: National | W91: Social Development | X91: Administration | Y91: Ministry | AA91: Capital | AB91: Payments for capital assets | AC91: Heritage assets | AD91: Heritage assets | AE91: Heritage assets | AI91: 0 | AJ91: 0 | AK91: 0 | AL91: 0 | AM91: 0 | AN91: 0 | AO91: 0 | AP91: 0 | AQ91: 0 | AR91: 0 | AS91: 0 | AT91: 0 | AU91: 0 | AV91: 0 | AX91: =IF(T_DataComboFile[[#This Row],[G&S reporting level indicator]]=1,$AX$16,"Not applicable") -> Level 3 | AY91: =IF(AND($AX$16="Level 3",T_DataComboFile[[#This Row],[Econ3]] = "Goods and services"),IF(T_DataComboFile[[#This Row],[Econ4]] = T_DataComboFile[[#This Row],[Econ3]],1,0),IF(AND($AX$16="Level 4",T_DataComboFile[[#This Row],[Econ4]] = "Goods and services"),0,1)) -> 1 | AZ91: =T_DataComboFile[[#This Row],[2016/17_Source]]*T_DataComboFile[[#This Row],[G&S reporting level indicator]] -> 0 | BA91: =T_DataComboFile[[#This Row],[2017/18_Source]]*T_DataComboFile[[#This Row],[G&S reporting level indicator]] -> 0 | BB91: =T_DataComboFile[[#This Row],[2018/19_Source]]*T_DataComboFile[[#This Row],[G&S reporting level indicator]] -> 0 | BC91: =T_DataComboFile[[#This Row],[2019/20 Main appropriation_Source]]*T_DataComboFile[[#This Row],[G&S reporting level indicator]] -> 0 | BD91: =T_DataComboFile[[#This Row],[2019/20 Adjusted appropriation_Source]]*T_DataComboFile[[#This Row],[G&S reporting level indicator]] -> 0 | BE91: =T_DataComboFile[[#This Row],[2019/20 Revised estimate_Source]]*T_DataComboFile[[#This Row],[G&S reporting level indicator]] -> 0 | BF91: =T_DataComboFile[[#This Row],[2019/20 Preliminary outcome_Source]]*T_DataComboFile[[#This Row],[G&S reporting level indicator]] -> 0 | BG91: =T_DataComboFile[[#This Row],[2020/21 Original_Source]]*T_DataComboFile[[#This Row],[G&S reporting level indicator]] -> 0 | BH91: =T_DataComboFile[[#This Row],[2020/21 SAB_Source]]*T_DataComboFile[[#This Row],[G&S reporting level indicator]] -> 0 | BI91: =T_DataComboFile[[#This Row],[2020/21 Baseline_Source]]*T_DataComboFile[[#This Row],[G&S reporting level indicator]] -> 0 | BJ91: =T_DataComboFile[[#This Row],[2021/22 Baseline_Source]]*T_DataComboFile[[#This Row],[G&S reporting level indicator]] -> 0 | BK91: =T_DataComboFile[[#This Row],[2022/23 Baseline_Source]]*T_DataComboFile[[#This Row],[G&S reporting level indicator]] -> 0 | BL91: =T_DataComboFile[[#This Row],[2023/24 Baseline_Source]]*T_DataComboFile[[#This Row],[G&S reporting level indicator]] -> 0 | BS91: =T_DataComboFile[[#This Row],[2021/22 Baseline]]+T_DataComboFile[[#This Row],[2021/22 Reduction]]+T_DataComboFile[[#This Row],[2021/22 Increase]] -> 0 | BT91: =T_DataComboFile[[#This Row],[2022/23 Baseline]]+T_DataComboFile[[#This Row],[2022/23 Reduction]]+T_DataComboFile[[#This Row],[2022/23 Increase]] -> 0 | BU91: =T_DataComboFile[[#This Row],[2023/24 Baseline]]+T_DataComboFile[[#This Row],[2023/24 Reduction]]+T_DataComboFile[[#This Row],[2023/24 Increase]] -> 0
C92: 2021_22 | D92: ENE2020 | E92: 19 | F92: 1 | G92: 1 | I92: 34588 | J92: 19 | K92: 1 | L92: 1 | N92: 034588 | O92: 19|01|01 | P92: 2 | Q92: 3 | R92: 14 | S92: 59 | T92: 63 | U92: 02|03|14|59|63 | V92: National | W92: Social Development | X92: Administration | Y92: Ministry | AA92: Capital | AB92: Payments for capital assets | AC92: Specialised military assets | AD92: Specialised military assets | AE92: Specialised military assets | AI92: 0 | AJ92: 0 | AK92: 0 | AL92: 0 | AM92: 0 | AN92: 0 | AO92: 0 | AP92: 0 | AQ92: 0 | AR92: 0 | AS92: 0 | AT92: 0 | AU92: 0 | AV92: 0 | AX92: =IF(T_DataComboFile[[#This Row],[G&S reporting level indicator]]=1,$AX$16,"Not applicable") -> Level 3 | AY92: =IF(AND($AX$16="Level 3",T_DataComboFile[[#This Row],[Econ3]] = "Goods and services"),IF(T_DataComboFile[[#This Row],[Econ4]] = T_DataComboFile[[#This Row],[Econ3]],1,0),IF(AND($AX$16="Level 4",T_DataComboFile[[#This Row],[Econ4]] = "Goods and services"),0,1)) -> 1 | AZ92: =T_DataComboFile[[#This Row],[2016/17_Source]]*T_DataComboFile[[#This Row],[G&S reporting level indicator]] -> 0 | BA92: =T_DataComboFile[[#This Row],[2017/18_Source]]*T_DataComboFile[[#This Row],[G&S reporting level indicator]] -> 0 | BB92: =T_DataComboFile[[#This Row],[2018/19_Source]]*T_DataComboFile[[#This Row],[G&S reporting level indicator]] -> 0 | BC92: =T_DataComboFile[[#This Row],[2019/20 Main appropriation_Source]]*T_DataComboFile[[#This Row],[G&S reporting level indicator]] -> 0 | BD92: =T_DataComboFile[[#This Row],[2019/20 Adjusted appropriation_Source]]*T_DataComboFile[[#This Row],[G&S reporting level indicator]] -> 0 | BE92: =T_DataComboFile[[#This Row],[2019/20 Revised estimate_Source]]*T_DataComboFile[[#This Row],[G&S reporting level indicator]] -> 0 | BF92: =T_DataComboFile[[#This Row],[2019/20 Preliminary outcome_Source]]*T_DataComboFile[[#This Row],[G&S reporting level indicator]] -> 0 | BG92: =T_DataComboFile[[#This Row],[2020/21 Original_Source]]*T_DataComboFile[[#This Row],[G&S reporting level indicator]] -> 0 | BH92: =T_DataComboFile[[#This Row],[2020/21 SAB_Source]]*T_DataComboFile[[#This Row],[G&S reporting level indicator]] -> 0 | BI92: =T_DataComboFile[[#This Row],[2020/21 Baseline_Source]]*T_DataComboFile[[#This Row],[G&S reporting level indicator]] -> 0 | BJ92: =T_DataComboFile[[#This Row],[2021/22 Baseline_Source]]*T_DataComboFile[[#This Row],[G&S reporting level indicator]] -> 0 | BK92: =T_DataComboFile[[#This Row],[2022/23 Baseline_Source]]*T_DataComboFile[[#This Row],[G&S reporting level indicator]] -> 0 | BL92: =T_DataComboFile[[#This Row],[2023/24 Baseline_Source]]*T_DataComboFile[[#This Row],[G&S reporting level indicator]] -> 0 | BS92: =T_DataComboFile[[#This Row],[2021/22 Baseline]]+T_DataComboFile[[#This Row],[2021/22 Reduction]]+T_DataComboFile[[#This Row],[2021/22 Increase]] -> 0 | BT92: =T_DataComboFile[[#This Row],[2022/23 Baseline]]+T_DataComboFile[[#This Row],[2022/23 Reduction]]+T_DataComboFile[[#This Row],[2022/23 Increase]] -> 0 | BU92: =T_DataComboFile[[#This Row],[2023/24 Baseline]]+T_DataComboFile[[#This Row],[2023/24 Reduction]]+T_DataComboFile[[#This Row],[2023/24 Increase]] -> 0
C93: 2021_22 | D93: ENE2020 | E93: 19 | F93: 1 | G93: 1 | I93: 34589 | J93: 19 | K93: 1 | L93: 1 | N93: 034589 | O93: 19|01|01 | P93: 2 | Q93: 3 | R93: 15 | S93: 60 | T93: 64 | U93: 02|03|15|60|64 | V93: National | W93: Social Development | X93: Administration | Y93: Ministry | AA93: Capital | AB93: Payments for capital assets | AC93: Biological assets | AD93: Biological assets | AE93: Biological assets | AI93: 0 | AJ93: 0 | AK93: 0 | AL93: 0 | AM93: 0 | AN93: 0 | AO93: 0 | AP93: 0 | AQ93: 0 | AR93: 0 | AS93: 0 | AT93: 0 | AU93: 0 | AV93: 0 | AX93: =IF(T_DataComboFile[[#This Row],[G&S reporting level indicator]]=1,$AX$16,"Not applicable") -> Level 3 | AY93: =IF(AND($AX$16="Level 3",T_DataComboFile[[#This Row],[Econ3]] = "Goods and services"),IF(T_DataComboFile[[#This Row],[Econ4]] = T_DataComboFile[[#This Row],[Econ3]],1,0),IF(AND($AX$16="Level 4",T_DataComboFile[[#This Row],[Econ4]] = "Goods and services"),0,1)) -> 1 | AZ93: =T_DataComboFile[[#This Row],[2016/17_Source]]*T_DataComboFile[[#This Row],[G&S reporting level indicator]] -> 0 | BA93: =T_DataComboFile[[#This Row],[2017/18_Source]]*T_DataComboFile[[#This Row],[G&S reporting level indicator]] -> 0 | BB93: =T_DataComboFile[[#This Row],[2018/19_Source]]*T_DataComboFile[[#This Row],[G&S reporting level indicator]] -> 0 | BC93: =T_DataComboFile[[#This Row],[2019/20 Main appropriation_Source]]*T_DataComboFile[[#This Row],[G&S reporting level indicator]] -> 0 | BD93: =T_DataComboFile[[#This Row],[2019/20 Adjusted appropriation_Source]]*T_DataComboFile[[#This Row],[G&S reporting level indicator]] -> 0 | BE93: =T_DataComboFile[[#This Row],[2019/20 Revised estimate_Source]]*T_DataComboFile[[#This Row],[G&S reporting level indicator]] -> 0 | BF93: =T_DataComboFile[[#This Row],[2019/20 Preliminary outcome_Source]]*T_DataComboFile[[#This Row],[G&S reporting level indicator]] -> 0 | BG93: =T_DataComboFile[[#This Row],[2020/21 Original_Source]]*T_DataComboFile[[#This Row],[G&S reporting level indicator]] -> 0 | BH93: =T_DataComboFile[[#This Row],[2020/21 SAB_Source]]*T_DataComboFile[[#This Row],[G&S reporting level indicator]] -> 0 | BI93: =T_DataComboFile[[#This Row],[2020/21 Baseline_Source]]*T_DataComboFile[[#This Row],[G&S reporting level indicator]] -> 0 | BJ93: =T_DataComboFile[[#This Row],[2021/22 Baseline_Source]]*T_DataComboFile[[#This Row],[G&S reporting level indicator]] -> 0 | BK93: =T_DataComboFile[[#This Row],[2022/23 Baseline_Source]]*T_DataComboFile[[#This Row],[G&S reporting level indicator]] -> 0 | BL93: =T_DataComboFile[[#This Row],[2023/24 Baseline_Source]]*T_DataComboFile[[#This Row],[G&S reporting level indicator]] -> 0 | BS93: =T_DataComboFile[[#This Row],[2021/22 Baseline]]+T_DataComboFile[[#This Row],[2021/22 Reduction]]+T_DataComboFile[[#This Row],[2021/22 Increase]] -> 0 | BT93: =T_DataComboFile[[#This Row],[2022/23 Baseline]]+T_DataComboFile[[#This Row],[2022/23 Reduction]]+T_DataComboFile[[#This Row],[2022/23 Increase]] -> 0 | BU93: =T_DataComboFile[[#This Row],[2023/24 Baseline]]+T_DataComboFile[[#This Row],[2023/24 Reduction]]+T_DataComboFile[[#This Row],[2023/24 Increase]] -> 0
C94: 2021_22 | D94: ENE2020 | E94: 19 | F94: 1 | G94: 1 | I94: 34590 | J94: 19 | K94: 1 | L94: 1 | N94: 034590 | O94: 19|01|01 | P94: 2 | Q94: 3 | R94: 16 | S94: 61 | T94: 65 | U94: 02|03|16|61|65 | V94: National | W94: Social Development | X94: Administration | Y94: Ministry | AA94: Capital | AB94: Payments for capital assets | AC94: Land and sub-soil assets | AD94: Land and sub-soil assets | AE94: Land and sub-soil assets | AI94: 0 | AJ94: 0 | AK94: 0 | AL94: 0 | AM94: 0 | AN94: 0 | AO94: 0 | AP94: 0 | AQ94: 0 | AR94: 0 | AS94: 0 | AT94: 0 | AU94: 0 | AV94: 0 | AX94: =IF(T_DataComboFile[[#This Row],[G&S reporting level indicator]]=1,$AX$16,"Not applicable") -> Level 3 | AY94: =IF(AND($AX$16="Level 3",T_DataComboFile[[#This Row],[Econ3]] = "Goods and services"),IF(T_DataComboFile[[#This Row],[Econ4]] = T_DataComboFile[[#This Row],[Econ3]],1,0),IF(AND($AX$16="Level 4",T_DataComboFile[[#This Row],[Econ4]] = "Goods and services"),0,1)) -> 1 | AZ94: =T_DataComboFile[[#This Row],[2016/17_Source]]*T_DataComboFile[[#This Row],[G&S reporting level indicator]] -> 0 | BA94: =T_DataComboFile[[#This Row],[2017/18_Source]]*T_DataComboFile[[#This Row],[G&S reporting level indicator]] -> 0 | BB94: =T_DataComboFile[[#This Row],[2018/19_Source]]*T_DataComboFile[[#This Row],[G&S reporting level indicator]] -> 0 | BC94: =T_DataComboFile[[#This Row],[2019/20 Main appropriation_Source]]*T_DataComboFile[[#This Row],[G&S reporting level indicator]] -> 0 | BD94: =T_DataComboFile[[#This Row],[2019/20 Adjusted appropriation_Source]]*T_DataComboFile[[#This Row],[G&S reporting level indicator]] -> 0 | BE94: =T_DataComboFile[[#This Row],[2019/20 Revised estimate_Source]]*T_DataComboFile[[#This Row],[G&S reporting level indicator]] -> 0 | BF94: =T_DataComboFile[[#This Row],[2019/20 Preliminary outcome_Source]]*T_DataComboFile[[#This Row],[G&S reporting level indicator]] -> 0 | BG94: =T_DataComboFile[[#This Row],[2020/21 Original_Source]]*T_DataComboFile[[#This Row],[G&S reporting level indicator]] -> 0 | BH94: =T_DataComboFile[[#This Row],[2020/21 SAB_Source]]*T_DataComboFile[[#This Row],[G&S reporting level indicator]] -> 0 | BI94: =T_DataComboFile[[#This Row],[2020/21 Baseline_Source]]*T_DataComboFile[[#This Row],[G&S reporting level indicator]] -> 0 | BJ94: =T_DataComboFile[[#This Row],[2021/22 Baseline_Source]]*T_DataComboFile[[#This Row],[G&S reporting level indicator]] -> 0 | BK94: =T_DataComboFile[[#This Row],[2022/23 Baseline_Source]]*T_DataComboFile[[#This Row],[G&S reporting level indicator]] -> 0 | BL94: =T_DataComboFile[[#This Row],[2023/24 Baseline_Source]]*T_DataComboFile[[#This Row],[G&S reporting level indicator]] -> 0 | BS94: =T_DataComboFile[[#This Row],[2021/22 Baseline]]+T_DataComboFile[[#This Row],[2021/22 Reduction]]+T_DataComboFile[[#This Row],[2021/22 Increase]] -> 0 | BT94: =T_DataComboFile[[#This Row],[2022/23 Baseline]]+T_DataComboFile[[#This Row],[2022/23 Reduction]]+T_DataComboFile[[#This Row],[2022/23 Increase]] -> 0 | BU94: =T_DataComboFile[[#This Row],[2023/24 Baseline]]+T_DataComboFile[[#This Row],[2023/24 Reduction]]+T_DataComboFile[[#This Row],[2023/24 Increase]] -> 0
C95: 2021_22 | D95: ENE2020 | E95: 19 | F95: 1 | G95: 1 | I95: 34591 | J95: 19 | K95: 1 | L95: 1 | N95: 034591 | O95: 19|01|01 | P95: 2 | Q95: 3 | R95: 17 | S95: 62 | T95: 66 | U95: 02|03|17|62|66 | V95: National | W95: Social Development | X95: Administration | Y95: Ministry | AA95: Capital | AB95: Payments for capital assets | AC95: Software and other intangible assets | AD95: Software and other intangible assets | AE95: Software and other intangible assets | AI95: 0 | AJ95: 0 | AK95: 0 | AL95: 0 | AM95: 0 | AN95: 0 | AO95: 0 | AP95: 0 | AQ95: 0 | AR95: 0 | AS95: 0 | AT95: 0 | AU95: 0 | AV95: 0 | AX95: =IF(T_DataComboFile[[#This Row],[G&S reporting level indicator]]=1,$AX$16,"Not applicable") -> Level 3 | AY95: =IF(AND($AX$16="Level 3",T_DataComboFile[[#This Row],[Econ3]] = "Goods and services"),IF(T_DataComboFile[[#This Row],[Econ4]] = T_DataComboFile[[#This Row],[Econ3]],1,0),IF(AND($AX$16="Level 4",T_DataComboFile[[#This Row],[Econ4]] = "Goods and services"),0,1)) -> 1 | AZ95: =T_DataComboFile[[#This Row],[2016/17_Source]]*T_DataComboFile[[#This Row],[G&S reporting level indicator]] -> 0 | BA95: =T_DataComboFile[[#This Row],[2017/18_Source]]*T_DataComboFile[[#This Row],[G&S reporting level indicator]] -> 0 | BB95: =T_DataComboFile[[#This Row],[2018/19_Source]]*T_DataComboFile[[#This Row],[G&S reporting level indicator]] -> 0 | BC95: =T_DataComboFile[[#This Row],[2019/20 Main appropriation_Source]]*T_DataComboFile[[#This Row],[G&S reporting level indicator]] -> 0 | BD95: =T_DataComboFile[[#This Row],[2019/20 Adjusted appropriation_Source]]*T_DataComboFile[[#This Row],[G&S reporting level indicator]] -> 0 | BE95: =T_DataComboFile[[#This Row],[2019/20 Revised estimate_Source]]*T_DataComboFile[[#This Row],[G&S reporting level indicator]] -> 0 | BF95: =T_DataComboFile[[#This Row],[2019/20 Preliminary outcome_Source]]*T_DataComboFile[[#This Row],[G&S reporting level indicator]] -> 0 | BG95: =T_DataComboFile[[#This Row],[2020/21 Original_Source]]*T_DataComboFile[[#This Row],[G&S reporting level indicator]] -> 0 | BH95: =T_DataComboFile[[#This Row],[2020/21 SAB_Source]]*T_DataComboFile[[#This Row],[G&S reporting level indicator]] -> 0 | BI95: =T_DataComboFile[[#This Row],[2020/21 Baseline_Source]]*T_DataComboFile[[#This Row],[G&S reporting level indicator]] -> 0 | BJ95: =T_DataComboFile[[#This Row],[2021/22 Baseline_Source]]*T_DataComboFile[[#This Row],[G&S reporting level indicator]] -> 0 | BK95: =T_DataComboFile[[#This Row],[2022/23 Baseline_Source]]*T_DataComboFile[[#This Row],[G&S reporting level indicator]] -> 0 | BL95: =T_DataComboFile[[#This Row],[2023/24 Baseline_Source]]*T_DataComboFile[[#This Row],[G&S reporting level indicator]] -> 0 | BS95: =T_DataComboFile[[#This Row],[2021/22 Baseline]]+T_DataComboFile[[#This Row],[2021/22 Reduction]]+T_DataComboFile[[#This Row],[2021/22 Increase]] -> 0 | BT95: =T_DataComboFile[[#This Row],[2022/23 Baseline]]+T_DataComboFile[[#This Row],[2022/23 Reduction]]+T_DataComboFile[[#This Row],[2022/23 Increase]] -> 0 | BU95: =T_DataComboFile[[#This Row],[2023/24 Baseline]]+T_DataComboFile[[#This Row],[2023/24 Reduction]]+T_DataComboFile[[#This Row],[2023/24 Increase]] -> 0
C96: 2021_22 | D96: ENE2020 | E96: 19 | F96: 1 | G96: 1 | I96: 34592 | J96: 19 | K96: 1 | L96: 1 | N96: 034592 | O96: 19|01|01 | P96: 3 | Q96: 4 | R96: 18 | S96: 63 | T96: 67 | U96: 03|04|18|63|67 | V96: National | W96: Social Development | X96: Administration | Y96: Ministry | AA96: Payments for financial assets | AB96: Payments for financial assets | AC96: Payments for financial assets | AD96: Payments for financial assets | AE96: Payments for financial assets | AI96: 0 | AJ96: 0 | AK96: 0 | AL96: 0 | AM96: 0 | AN96: 0 | AO96: 0 | AP96: 0 | AQ96: 0 | AR96: 0 | AS96: 0 | AT96: 0 | AU96: 0 | AV96: 0 | AX96: =IF(T_DataComboFile[[#This Row],[G&S reporting level indicator]]=1,$AX$16,"Not applicable") -> Level 3 | AY96: =IF(AND($AX$16="Level 3",T_DataComboFile[[#This Row],[Econ3]] = "Goods and services"),IF(T_DataComboFile[[#This Row],[Econ4]] = T_DataComboFile[[#This Row],[Econ3]],1,0),IF(AND($AX$16="Level 4",T_DataComboFile[[#This Row],[Econ4]] = "Goods and services"),0,1)) -> 1 | AZ96: =T_DataComboFile[[#This Row],[2016/17_Source]]*T_DataComboFile[[#This Row],[G&S reporting level indicator]] -> 0 | BA96: =T_DataComboFile[[#This Row],[2017/18_Source]]*T_DataComboFile[[#This Row],[G&S reporting level indicator]] -> 0 | BB96: =T_DataComboFile[[#This Row],[2018/19_Source]]*T_DataComboFile[[#This Row],[G&S reporting level indicator]] -> 0 | BC96: =T_DataComboFile[[#This Row],[2019/20 Main appropriation_Source]]*T_DataComboFile[[#This Row],[G&S reporting level indicator]] -> 0 | BD96: =T_DataComboFile[[#This Row],[2019/20 Adjusted appropriation_Source]]*T_DataComboFile[[#This Row],[G&S reporting level indicator]] -> 0 | BE96: =T_DataComboFile[[#This Row],[2019/20 Revised estimate_Source]]*T_DataComboFile[[#This Row],[G&S reporting level indicator]] -> 0 | BF96: =T_DataComboFile[[#This Row],[2019/20 Preliminary outcome_Source]]*T_DataComboFile[[#This Row],[G&S reporting level indicator]] -> 0 | BG96: =T_DataComboFile[[#This Row],[2020/21 Original_Source]]*T_DataComboFile[[#This Row],[G&S reporting level indicator]] -> 0 | BH96: =T_DataComboFile[[#This Row],[2020/21 SAB_Source]]*T_DataComboFile[[#This Row],[G&S reporting level indicator]] -> 0 | BI96: =T_DataComboFile[[#This Row],[2020/21 Baseline_Source]]*T_DataComboFile[[#This Row],[G&S reporting level indicator]] -> 0 | BJ96: =T_DataComboFile[[#This Row],[2021/22 Baseline_Source]]*T_DataComboFile[[#This Row],[G&S reporting level indicator]] -> 0 | BK96: =T_DataComboFile[[#This Row],[2022/23 Baseline_Source]]*T_DataComboFile[[#This Row],[G&S reporting level indicator]] -> 0 | BL96: =T_DataComboFile[[#This Row],[2023/24 Baseline_Source]]*T_DataComboFile[[#This Row],[G&S reporting level indicator]] -> 0 | BS96: =T_DataComboFile[[#This Row],[2021/22 Baseline]]+T_DataComboFile[[#This Row],[2021/22 Reduction]]+T_DataComboFile[[#This Row],[2021/22 Increase]] -> 0 | BT96: =T_DataComboFile[[#This Row],[2022/23 Baseline]]+T_DataComboFile[[#This Row],[2022/23 Reduction]]+T_DataComboFile[[#This Row],[2022/23 Increase]] -> 0 | BU96: =T_DataComboFile[[#This Row],[2023/24 Baseline]]+T_DataComboFile[[#This Row],[2023/24 Reduction]]+T_DataComboFile[[#This Row],[2023/24 Increase]] -> 0
A97: NAT|Non-transfer item | B97: 19|Salaries and wages | C97: 2021_22 | D97: ENE2020 | E97: 19 | F97: 1 | G97: 2 | H97: 7439 | I97: 34593 | J97: 19 | K97: 1 | L97: 2 | M97: 7439 | N97: 034593 | O97: 19|01|02 | P97: 1 | Q97: 1 | R97: 1 | S97: 1 | T97: 1 | U97: 01|01|01|01|01 | V97: National | W97: Social Development | X97: Administration | Y97: Department Management | Z97: Non-transfer item | AA97: Current | AB97: Current payments | AC97: Compensation of employees | AD97: Salaries and wages | AE97: Salaries and wages | AF97: Social development | AG97: Social protection | AH97: NAT | AI97: 39114 | AJ97: 45113 | AK97: 42200 | AL97: 41071 | AM97: 41071 | AN97: 41071 | AO97: 41071 | AP97: 43284 | AQ97: 43284 | AR97: 40831 | AS97: 42571 | AT97: 44426 | AU97: 46384 | AV97: 1 | AX97: =IF(T_DataComboFile[[#This Row],[G&S reporting level indicator]]=1,$AX$16,"Not applicable") -> Level 3 | AY97: =IF(AND($AX$16="Level 3",T_DataComboFile[[#This Row],[Econ3]] = "Goods and services"),IF(T_DataComboFile[[#This Row],[Econ4]] = T_DataComboFile[[#This Row],[Econ3]],1,0),IF(AND($AX$16="Level 4",T_DataComboFile[[#This Row],[Econ4]] = "Goods and services"),0,1)) -> 1 | AZ97: =T_DataComboFile[[#This Row],[2016/17_Source]]*T_DataComboFile[[#This Row],[G&S reporting level indicator]] -> 39114 | BA97: =T_DataComboFile[[#This Row],[2017/18_Source]]*T_DataComboFile[[#This Row],[G&S reporting level indicator]] -> 45113 | BB97: =T_DataComboFile[[#This Row],[2018/19_Source]]*T_DataComboFile[[#This Row],[G&S reporting level indicator]] -> 42200 | BC97: =T_DataComboFile[[#This Row],[2019/20 Main appropriation_Source]]*T_DataComboFile[[#This Row],[G&S reporting level indicator]] -> 41071 | BD97: =T_DataComboFile[[#This Row],[2019/20 Adjusted appropriation_Source]]*T_DataComboFile[[#This Row],[G&S reporting level indicator]] -> 41071 | BE97: =T_DataComboFile[[#This Row],[2019/20 Revised estimate_Source]]*T_DataComboFile[[#This Row],[G&S reporting level indicator]] -> 41071 | BF97: =T_DataComboFile[[#This Row],[2019/20 Preliminary outcome_Source]]*T_DataComboFile[[#This Row],[G&S reporting level indicator]] -> 41071 | BG97: =T_DataComboFile[[#This Row],[2020/21 Original_Source]]*T_DataComboFile[[#This Row],[G&S reporting level indicator]] -> 43284 | BH97: =T_DataComboFile[[#This Row],[2020/21 SAB_Source]]*T_DataComboFile[[#This Row],[G&S reporting level indicator]] -> 43284 | BI97: =T_DataComboFile[[#This Row],[2020/21 Baseline_Source]]*T_DataComboFile[[#This Row],[G&S reporting level indicator]] -> 40831 | BJ97: =T_DataComboFile[[#This Row],[2021/22 Baseline_Source]]*T_DataComboFile[[#This Row],[G&S reporting level indicator]] -> 42571 | BK97: =T_DataComboFile[[#This Row],[2022/23 Baseline_Source]]*T_DataComboFile[[#This Row],[G&S reporting level indicator]] -> 44426 | BL97: =T_DataComboFile[[#This Row],[2023/24 Baseline_Source]]*T_DataComboFile[[#This Row],[G&S reporting level indicator]] -> 46384 | BS97: =T_DataComboFile[[#This Row],[2021/22 Baseline]]+T_DataComboFile[[#This Row],[2021/22 Reduction]]+T_DataComboFile[[#This Row],[2021/22 Increase]] -> 42571 | BT97: =T_DataComboFile[[#This Row],[2022/23 Baseline]]+T_DataComboFile[[#This Row],[2022/23 Reduction]]+T_DataComboFile[[#This Row],[2022/23 Increase]] -> 44426 | BU97: =T_DataComboFile[[#This Row],[2023/24 Baseline]]+T_DataComboFile[[#This Row],[2023/24 Reduction]]+T_DataComboFile[[#This Row],[2023/24 Increase]] -> 46384
A98: NAT|Non-transfer item | B98: 19|Social contributions | C98: 2021_22 | D98: ENE2020 | E98: 19 | F98: 1 | G98: 2 | H98: 7440 | I98: 34594 | J98: 19 | K98: 1 | L98: 2 | M98: 7440 | N98: 034594 | O98: 19|01|02 | P98: 1 | Q98: 1 | R98: 1 | S98: 2 | T98: 2 | U98: 01|01|01|02|02 | V98: National | W98: Social Development | X98: Administration | Y98: Department Management | Z98: Non-transfer item | AA98: Current | AB98: Current payments | AC98: Compensation of employees | AD98: Social contributions | AE98: Social contributions | AF98: Social development | AG98: Social protection | AH98: NAT | AI98: 4088 | AJ98: 4467 | AK98: 4584 | AL98: 1575 | AM98: 1575 | AN98: 1575 | AO98: 1575 | AP98: 1558 | AQ98: 1558 | AR98: 1470 | AS98: 1549 | AT98: 1736 | AU98: 1812 | AV98: 1 | AX98: =IF(T_DataComboFile[[#This Row],[G&S reporting level indicator]]=1,$AX$16,"Not applicable") -> Level 3 | AY98: =IF(AND($AX$16="Level 3",T_DataComboFile[[#This Row],[Econ3]] = "Goods and services"),IF(T_DataComboFile[[#This Row],[Econ4]] = T_DataComboFile[[#This Row],[Econ3]],1,0),IF(AND($AX$16="Level 4",T_DataComboFile[[#This Row],[Econ4]] = "Goods and services"),0,1)) -> 1 | AZ98: =T_DataComboFile[[#This Row],[2016/17_Source]]*T_DataComboFile[[#This Row],[G&S reporting level indicator]] -> 4088 | BA98: =T_DataComboFile[[#This Row],[2017/18_Source]]*T_DataComboFile[[#This Row],[G&S reporting level indicator]] -> 4467 | BB98: =T_DataComboFile[[#This Row],[2018/19_Source]]*T_DataComboFile[[#This Row],[G&S reporting level indicator]] -> 4584 | BC98: =T_DataComboFile[[#This Row],[2019/20 Main appropriation_Source]]*T_DataComboFile[[#This Row],[G&S reporting level indicator]] -> 1575 | BD98: =T_DataComboFile[[#This Row],[2019/20 Adjusted appropriation_Source]]*T_DataComboFile[[#This Row],[G&S reporting level indicator]] -> 1575 | BE98: =T_DataComboFile[[#This Row],[2019/20 Revised estimate_Source]]*T_DataComboFile[[#This Row],[G&S reporting level indicator]] -> 1575 | BF98: =T_DataComboFile[[#This Row],[2019/20 Preliminary outcome_Source]]*T_DataComboFile[[#This Row],[G&S reporting level indicator]] -> 1575 | BG98: =T_DataComboFile[[#This Row],[2020/21 Original_Source]]*T_DataComboFile[[#This Row],[G&S reporting level indicator]] -> 1558 | BH98: =T_DataComboFile[[#This Row],[2020/21 SAB_Source]]*T_DataComboFile[[#This Row],[G&S reporting level indicator]] -> 1558 | BI98: =T_DataComboFile[[#This Row],[2020/21 Baseline_Source]]*T_DataComboFile[[#This Row],[G&S reporting level indicator]] -> 1470 | BJ98: =T_DataComboFile[[#This Row],[2021/22 Baseline_Source]]*T_DataComboFile[[#This Row],[G&S reporting level indicator]] -> 1549 | BK98: =T_DataComboFile[[#This Row],[2022/23 Baseline_Source]]*T_DataComboFile[[#This Row],[G&S reporting level indicator]] -> 1736 | BL98: =T_DataComboFile[[#This Row],[2023/24 Baseline_Source]]*T_DataComboFile[[#This Row],[G&S reporting level indicator]] -> 1812 | BS98: =T_DataComboFile[[#This Row],[2021/22 Baseline]]+T_DataComboFile[[#This Row],[2021/22 Reduction]]+T_DataComboFile[[#This Row],[2021/22 Increase]] -> 1549 | BT98: =T_DataComboFile[[#This Row],[2022/23 Baseline]]+T_DataComboFile[[#This Row],[2022/23 Reduction]]+T_DataComboFile[[#This Row],[2022/23 Increase]] -> 1736 | BU98: =T_DataComboFile[[#This Row],[2023/24 Baseline]]+T_DataComboFile[[#This Row],[2023/24 Reduction]]+T_DataComboFile[[#This Row],[2023/24 Increase]] -> 1812
C99: 2021_22 | D99: ENE2020 | E99: 19 | F99: 1 | G99: 2 | I99: 34595 | J99: 19 | K99: 1 | L99: 2 | N99: 034595 | O99: 19|01|02 | P99: 1 | Q99: 1 | R99: 2 | S99: 2 | T99: 2 | U99: 01|01|02|02|02 | V99: National | W99: Social Development | X99: Administration | Y99: Department Management | Z99: Non-transfer item | AA99: Current | AB99: Current payments | AC99: Goods and services | AD99: Goods and services | AE99: Goods and services | AF99: Social development | AG99: Social protection | AH99: NAT | AI99: 14505 | AJ99: 16519 | AK99: 17805 | AL99: 26854 | AM99: 26854 | AN99: 26854 | AO99: 26854 | AP99: 28883 | AQ99: 24883 | AR99: 28883 | AS99: 30479 | AT99: 31627 | AU99: 33020 | AV99: 1 | AX99: =IF(T_DataComboFile[[#This Row],[G&S reporting level indicator]]=1,$AX$16,"Not applicable") -> Level 3 | AY99: =IF(AND($AX$16="Level 3",T_DataComboFile[[#This Row],[Econ3]] = "Goods and services"),IF(T_DataComboFile[[#This Row],[Econ4]] = T_DataComboFile[[#This Row],[Econ3]],1,0),IF(AND($AX$16="Level 4",T_DataComboFile[[#This Row],[Econ4]] = "Goods and services"),0,1)) -> 1 | AZ99: =T_DataComboFile[[#This Row],[2016/17_Source]]*T_DataComboFile[[#This Row],[G&S reporting level indicator]] -> 14505 | BA99: =T_DataComboFile[[#This Row],[2017/18_Source]]*T_DataComboFile[[#This Row],[G&S reporting level indicator]] -> 16519 | BB99: =T_DataComboFile[[#This Row],[2018/19_Source]]*T_DataComboFile[[#This Row],[G&S reporting level indicator]] -> 17805 | BC99: =T_DataComboFile[[#This Row],[2019/20 Main appropriation_Source]]*T_DataComboFile[[#This Row],[G&S reporting level indicator]] -> 26854 | BD99: =T_DataComboFile[[#This Row],[2019/20 Adjusted appropriation_Source]]*T_DataComboFile[[#This Row],[G&S reporting level indicator]] -> 26854 | BE99: =T_DataComboFile[[#This Row],[2019/20 Revised estimate_Source]]*T_DataComboFile[[#This Row],[G&S reporting level indicator]] -> 26854 | BF99: =T_DataComboFile[[#This Row],[2019/20 Preliminary outcome_Source]]*T_DataComboFile[[#This Row],[G&S reporting level indicator]] -> 26854 | BG99: =T_DataComboFile[[#This Row],[2020/21 Original_Source]]*T_DataComboFile[[#This Row],[G&S reporting level indicator]] -> 28883 | BH99: =T_DataComboFile[[#This Row],[2020/21 SAB_Source]]*T_DataComboFile[[#This Row],[G&S reporting level indicator]] -> 24883 | BI99: =T_DataComboFile[[#This Row],[2020/21 Baseline_Source]]*T_DataComboFile[[#This Row],[G&S reporting level indicator]] -> 28883 | BJ99: =T_DataComboFile[[#This Row],[2021/22 Baseline_Source]]*T_DataComboFile[[#This Row],[G&S reporting level indicator]] -> 30479 | BK99: =T_DataComboFile[[#This Row],[2022/23 Baseline_Source]]*T_DataComboFile[[#This Row],[G&S reporting level indicator]] -> 31627 | BL99: =T_DataComboFile[[#This Row],[2023/24 Baseline_Source]]*T_DataComboFile[[#This Row],[G&S reporting level indicator]] -> 33020 | BS99: =T_DataComboFile[[#This Row],[2021/22 Baseline]]+T_DataComboFile[[#This Row],[2021/22 Reduction]]+T_DataComboFile[[#This Row],[2021/22 Increase]] -> 30479 | BT99: =T_DataComboFile[[#This Row],[2022/23 Baseline]]+T_DataComboFile[[#This Row],[2022/23 Reduction]]+T_DataComboFile[[#This Row],[2022/23 Increase]] -> 31627 | BU99: =T_DataComboFile[[#This Row],[2023/24 Baseline]]+T_DataComboFile[[#This Row],[2023/24 Reduction]]+T_DataComboFile[[#This Row],[2023/24 Increase]] -> 33020
A100: NAT|Non-transfer item | B100: 19|Administrative fees | C100: 2021_22 | D100: ENE2020 | E100: 19 | F100: 1 | G100: 2 | H100: 7441 | I100: 34596 | J100: 19 | K100: 1 | L100: 2 | M100: 7441 | N100: 034596 | O100: 19|01|02 | P100: 1 | Q100: 1 | R100: 2 | S100: 3 | T100: 3 | U100: 01|01|02|03|03 | V100: National | W100: Social Development | X100: Administration | Y100: Department Management | Z100: Non-transfer item | AA100: Current | AB100: Current payments | AC100: Goods and services | AD100: Administrative fees | AE100: Administrative fees | AF100: Social development | AG100: Social protection | AH100: NAT | AI100: 260 | AJ100: 572 | AK100: 370 | AL100: 282 | AM100: 282 | AN100: 282 | AO100: 282 | AP100: 292 | AQ100: 292 | AR100: 292 | AS100: 305 | AT100: 311 | AU100: 325 | AV100: 1 | AX100: =IF(T_DataComboFile[[#This Row],[G&S reporting level indicator]]=1,$AX$16,"Not applicable") -> Not applicable | AY100: =IF(AND($AX$16="Level 3",T_DataComboFile[[#This Row],[Econ3]] = "Goods and services"),IF(T_DataComboFile[[#This Row],[Econ4]] = T_DataComboFile[[#This Row],[Econ3]],1,0),IF(AND($AX$16="Level 4",T_DataComboFile[[#This Row],[Econ4]] = "Goods and services"),0,1)) -> 0 | AZ100: =T_DataComboFile[[#This Row],[2016/17_Source]]*T_DataComboFile[[#This Row],[G&S reporting level indicator]] -> 0 | BA100: =T_DataComboFile[[#This Row],[2017/18_Source]]*T_DataComboFile[[#This Row],[G&S reporting level indicator]] -> 0 | BB100: =T_DataComboFile[[#This Row],[2018/19_Source]]*T_DataComboFile[[#This Row],[G&S reporting level indicator]] -> 0 | BC100: =T_DataComboFile[[#This Row],[2019/20 Main appropriation_Source]]*T_DataComboFile[[#This Row],[G&S reporting level indicator]] -> 0 | BD100: =T_DataComboFile[[#This Row],[2019/20 Adjusted appropriation_Source]]*T_DataComboFile[[#This Row],[G&S reporting level indicator]] -> 0 | BE100: =T_DataComboFile[[#This Row],[2019/20 Revised estimate_Source]]*T_DataComboFile[[#This Row],[G&S reporting level indicator]] -> 0 | BF100: =T_DataComboFile[[#This Row],[2019/20 Preliminary outcome_Source]]*T_DataComboFile[[#This Row],[G&S reporting level indicator]] -> 0 | BG100: =T_DataComboFile[[#This Row],[2020/21 Original_Source]]*T_DataComboFile[[#This Row],[G&S reporting level indicator]] -> 0 | BH100: =T_DataComboFile[[#This Row],[2020/21 SAB_Source]]*T_DataComboFile[[#This Row],[G&S reporting level indicator]] -> 0 | BI100: =T_DataComboFile[[#This Row],[2020/21 Baseline_Source]]*T_DataComboFile[[#This Row],[G&S reporting level indicator]] -> 0 | BJ100: =T_DataComboFile[[#This Row],[2021/22 Baseline_Source]]*T_DataComboFile[[#This Row],[G&S reporting level indicator]] -> 0 | BK100: =T_DataComboFile[[#This Row],[2022/23 Baseline_Source]]*T_DataComboFile[[#This Row],[G&S reporting level indicator]] -> 0 | BL100: =T_DataComboFile[[#This Row],[2023/24 Baseline_Source]]*T_DataComboFile[[#This Row],[G&S reporting level indicator]] -> 0 | BS100: =T_DataComboFile[[#This Row],[2021/22 Baseline]]+T_DataComboFile[[#This Row],[2021/22 Reduction]]+T_DataComboFile[[#This Row],[2021/22 Increase]] -> 0 | BT100: =T_DataComboFile[[#This Row],[2022/23 Baseline]]+T_DataComboFile[[#This Row],[2022/23 Reduction]]+T_DataComboFile[[#This Row],[2022/23 Increase]] -> 0 | BU100: =T_DataComboFile[[#This Row],[2023/24 Baseline]]+T_DataComboFile[[#This Row],[2023/24 Reduction]]+T_DataComboFile[[#This Row],[2023/24 Increase]] -> 0
A101: NAT|Non-transfer item | B101: 19|Advertising | C101: 2021_22 | D101: ENE2020 | E101: 19 | F101: 1 | G101: 2 | H101: 7442 | I101: 34597 | J101: 19 | K101: 1 | L101: 2 | M101: 7442 | N101: 034597 | O101: 19|01|02 | P101: 1 | Q101: 1 | R101: 2 | S101: 4 | T101: 4 | U101: 01|01|02|04|04 | V101: National | W101: Social Development | X101: Administration | Y101: Department Management | Z101: Non-transfer item | AA101: Current | AB101: Current payments | AC101: Goods and services | AD101: Advertising | AE101: Advertising | AF101: Social development | AG101: Social protection | AH101: NAT | AI101: 1 | AJ101: 833 | AK101: 177 | AL101: 286 | AM101: 286 | AN101: 286 | AO101: 286 | AP101: 302 | AQ101: 302 | AR101: 302 | AS101: 319 | AT101: 331 | AU101: 346 | AV101: 1 | AX101: =IF(T_DataComboFile[[#This Row],[G&S reporting level indicator]]=1,$AX$16,"Not applicable") -> Not applicable | AY101: =IF(AND($AX$16="Level 3",T_DataComboFile[[#This Row],[Econ3]] = "Goods and services"),IF(T_DataComboFile[[#This Row],[Econ4]] = T_DataComboFile[[#This Row],[Econ3]],1,0),IF(AND($AX$16="Level 4",T_DataComboFile[[#This Row],[Econ4]] = "Goods and services"),0,1)) -> 0 | AZ101: =T_DataComboFile[[#This Row],[2016/17_Source]]*T_DataComboFile[[#This Row],[G&S reporting level indicator]] -> 0 | BA101: =T_DataComboFile[[#This Row],[2017/18_Source]]*T_DataComboFile[[#This Row],[G&S reporting level indicator]] -> 0 | BB101: =T_DataComboFile[[#This Row],[2018/19_Source]]*T_DataComboFile[[#This Row],[G&S reporting level indicator]] -> 0 | BC101: =T_DataComboFile[[#This Row],[2019/20 Main appropriation_Source]]*T_DataComboFile[[#This Row],[G&S reporting level indicator]] -> 0 | BD101: =T_DataComboFile[[#This Row],[2019/20 Adjusted appropriation_Source]]*T_DataComboFile[[#This Row],[G&S reporting level indicator]] -> 0 | BE101: =T_DataComboFile[[#This Row],[2019/20 Revised estimate_Source]]*T_DataComboFile[[#This Row],[G&S reporting level indicator]] -> 0 | BF101: =T_DataComboFile[[#This Row],[2019/20 Preliminary outcome_Source]]*T_DataComboFile[[#This Row],[G&S reporting level indicator]] -> 0 | BG101: =T_DataComboFile[[#This Row],[2020/21 Original_Source]]*T_DataComboFile[[#This Row],[G&S reporting level indicator]] -> 0 | BH101: =T_DataComboFile[[#This Row],[2020/21 SAB_Source]]*T_DataComboFile[[#This Row],[G&S reporting level indicator]] -> 0 | BI101: =T_DataComboFile[[#This Row],[2020/21 Baseline_Source]]*T_DataComboFile[[#This Row],[G&S reporting level indicator]] -> 0 | BJ101: =T_DataComboFile[[#This Row],[2021/22 Baseline_Source]]*T_DataComboFile[[#This Row],[G&S reporting level indicator]] -> 0 | BK101: =T_DataComboFile[[#This Row],[2022/23 Baseline_Source]]*T_DataComboFile[[#This Row],[G&S reporting level indicator]] -> 0 | BL101: =T_DataComboFile[[#This Row],[2023/24 Baseline_Source]]*T_DataComboFile[[#This Row],[G&S reporting level indicator]] -> 0 | BS101: =T_DataComboFile[[#This Row],[2021/22 Baseline]]+T_DataComboFile[[#This Row],[2021/22 Reduction]]+T_DataComboFile[[#This Row],[2021/22 Increase]] -> 0 | BT101: =T_DataComboFile[[#This Row],[2022/23 Baseline]]+T_DataComboFile[[#This Row],[2022/23 Reduction]]+T_DataComboFile[[#This Row],[2022/23 Increase]] -> 0 | BU101: =T_DataComboFile[[#This Row],[2023/24 Baseline]]+T_DataComboFile[[#This Row],[2023/24 Reduction]]+T_DataComboFile[[#This Row],[2023/24 Increase]] -> 0
